Workbook

Sheet  (hidden)
A1: Таблиця обчислення орієнтовної вартості споживчого кредиту під заставу рухомого майна | Y1: застава | Z1: позичальник
X2: 1 | Y2: =O8+O10 -> 60000 | Z2: =Y2-O8 -> 60000
B3: Дата кредиту | D3: =[1]калькулятор!C4 -> 2021-01-01 | H3: Одноразова комісія за надання кредиту, % від суми кредиту | N3: =[1]калькулятор!G4 -> 0 | P3: =N3 -> 0 | X3: 2 | Y3: =IF($D$8>12,K37,0) -> 53100.13437 | Z3: =IF(Y3>0,$Z$2,0) -> 60000
B4: Мінімальна вартість ТЗ, грн | D4: ='графік платежів'!C5 -> 1333334 | H4: Одноразова комісія за надання кредиту, грн | N4: =N3*D6 -> 0 | P4: =D6*P3 -> 0 | X4: 3 | Y4: =IF($D$8>24,K49,0) -> 44263.27554 | Z4: =IF(Y4>0,$Z$2,0) -> 60000
H5: Розрахунково-касове обслуговування, грн | N5: =[1]калькулятор!C8 -> 0 | P5: 0 | X5: 4 | Y5: =IF($D$8>36,K61,0) -> 32945.65371 | Z5: 60000
B6: Сумма кредиту, грн | D6: ='графік платежів'!C6 -> 1000000 | H6: Послуги третіх осіб | I6: Додаткові витрати, повязані з оформленням кредиту | X6: 5 | Y6: =IF($D$8>48,K73,0) -> 18457.04748 | Z6: 60000
G7: =IF(D6<30000,"Мин. Сумма кредита - 30 тис грн",IF(D6>500000,"Макс. сума кредиту 500 тыс грн"," ")) -> Макс. сума кредиту 500 тыс грн | I7: Послуги нотаріуса, грн | N7: =[1]калькулятор!G6 -> 4000 | P7: =N7 -> 4000 | X7: 6 | Y7: =IF($D$8>60,K85,0) -> 0 | Z7: 0 | AA7: відсутнє
B8: Строк кредиту, міс | D8: ='графік платежів'!C7 -> 60 | G8: =IF(D8>120,"Макс. строк- 60 міс."," ") ->  | I8: Страхування застави %/грн | N8: =[1]калькулятор!G8 -> 0 | O8: =N8*D4 -> 0 | P8: =P4 -> 0 | T8: кредит | X8: 7 | Y8: =IF($D$8>72,K97,0) -> 0 | Z8: 0 | AA8: наявне | AB8: ПМ | AC8: 1700
B9: Відсоткова ставка | D9: ='графік платежів'!C8 -> 0.25 | G9: =-PMT(D9/12,D8,D6) -> 29351.32338 | I9: Послуги оцінювача, грн | N9: =[1]калькулятор!G7 -> 1500 | P9: =P5 -> 0 | T9: за власні кошти | X9: 8 | Y9: =IF($D$8>84,K109,0) -> 0 | Z9: 0
B10: Дата погашення | D10: =EDATE(D3,D8) -> 2026-01-01 | I10: Страхування позичальника,%/грн | N10: 0.06 | O10: =N10*D6 -> 60000 | X10: 9 | Y10: =IF($D$8>96,K121,0) -> 0 | Z10: 0 | AC10: =D4/AC8 -> 784.3141176
C11: Дата початку плаваючої ставки | I11: Інші послуги третіх осіб | N11: 0 | X11: 10 | Y11: =IF($D$8>108,K133,0) -> 0 | Z11: 0
C12: Діючий Індекс UIDR (12 міс у гривні) | E12: =F12+F13 -> 0 | F12: 0 | P12: =IF(M12="наявне",D6*D8*0.12%,0) -> 0 | X12: 11 | Y12: =IF($D$8>120,K145,0) -> 0 | Z12: 0
C13: Маржа | F13: 0 | X13: 12 | Y13: =IF($D$8>132,K157,0) -> 0 | Z13: 0
C14: Відсоткова ставка з 25 місяця | F14: 0.1699 | H14: Інші послуги банку | M14: Пакет "Фамільний" | N14: 0 | X14: 13 | Y14: =IF($D$8>144,K169,0) -> 0 | Z14: 0
C15: Відсоткова ставка з 25 місяця | F15: 0.1699 | X15: 14 | Y15: =IF($D$8>156,K181,0) -> 0 | Z15: 0 | AC15: =IF(AC10<165,"3%",IF(AC10>290,"5%","4%")) -> 5%
X16: 15 | Y16: =IF($D$8>168,K193,0) -> 0 | Z16: 0
X17: 16 | Y17: =IF($D$8>180,K205,0) -> 0 | Z17: 0
X18: 17 | Y18: =IF($D$8>192,K217,0) -> 0 | Z18: 0
X19: 18 | Y19: =IF($D$8>204,K229,0) -> 0 | Z19: 0
X20: 19 | Y20: =IF($D$8>216,K241,0) -> 0 | Z20: 0
X21: 20 | Y21: =IF($D$8>228,K253,0) -> 0 | Z21: 0
A22: № | B22: Дата платежу | C22: Дата платежу | D22: Кіль-кість днів у звітньо-му періоді | E22: Залишок основного боргу для нарахування відсотків | F22: Погашення основної суми кредиту | G22: Орієнтовна сума відсотків | H22: Орієнтовна сума платежу за розрахунковий період | I22: Послуги третіх осіб | M22: Одноразова комісія за надання кредиту | N22: Інші послуги банка | O22: Щомісячна комісія | P22: Реальна річна процентна ставка, % | Q22: Загальна вартість кредиту, грн. | R22: Грошовий потік | Y22: =SUM(Y2:Y21) -> 208766.1111 | Z22: =SUM(Z2:Z21) -> 300000
I23: Послуги нотаріуса | J23: Послуги оцінювача | K23: Послуги страховика | L23: Інші послуги третіх осіб
B24: =D3 -> 2021-01-01 | C24: =IF(A24>$D$8,"",B24) -> 2021-01-01 | E24: =D6 -> 1000000 | H24: =-E24+I24+J24+K24+L24+M24+N24+O24 -> -934500 | I24: =P7 -> 4000 | J24: =$N$9 -> 1500 | K24: =O8+O10 -> 60000 | L24: =N11 -> 0 | M24: =P8 -> 0 | N24: =N14 -> 0 | R24: =H24 -> -934500 | T24: =T25 -> 365
A25: 1 | B25: =EDATE($B$24,A25) -> 2021-02-01 | C25: =IF(A25>$D$8,"",B25) -> 2021-02-01 | D25: =B25-B24 -> 31 | E25: =E24-F25 -> 991881.5566 | F25: =IF(AND(A24="",A26=""),"",IF(A25="",ROUND(SUM($F24:F$25),2),IF(A25=$D$8,$E$24-ROUND(SUM($F24:F$25),2),($G$9-G25)))) -> 8118.443376 | G25: =IF(T25<>T24,ROUND(SUM(V25*$D$9*E24/T25,W25*$D$9*E24/T24),2),ROUND(E24*$D$9*D25/T24,2)) -> 21232.88 | H25: =IF(A24=$D$8,SUM($H24:H$25),IF(A24>$D$8,"",F25+G25+O25)) -> 29351.32338 | O25: =IF(A24=$D$8,SUM($O24:O$25),IF(A24>$D$8," ",$N$5*$D$6)) -> 0 | P25: =IF(A24=$D$8,XIRR(H$24:H24,C$24:C24),"") ->  | R25: =SUM(H25:Q25) -> 29351.32338 | S25: =IF(C25="","",YEAR(C25)) -> 2021 | T25: =IF(OR(S25=2024,S25=2028,S25=2016,S25=2020,S25=2024,S25=2028,S25=2032,S25=2036,S25=2040),366,365) -> 365 | U25: =IF(C25="","",DAY(C25)) -> 1 | V25: =U25-1 -> 0 | W25: =D25-V25 -> 31
A26: =IF(A25<$D$8,A25+1,"") -> 2 | B26: =EDATE($B$24,A26) -> 2021-03-01 | C26: =IF(B26=$D$10,B26-1,(IF(B26>$D$10," ",B26))) -> 2021-03-01 | D26: 28 | E26: =E25-F26 -> 981552.6232 | F26: =IF(AND(A25="",A27=""),"",IF(A26="",ROUND(SUM($F25:F$25),2),IF(A26=$D$8,$E$24-ROUND(SUM($F25:F$25),2),($G$9-G26)))) -> 10328.93338 | G26: =IF(A25=$D$8,ROUND(SUM($G$25:G25),2),IF(A26>$D$8,"",IF(T26<>T25,ROUND(SUM(V26*$D$9*E25/T26,W26*$D$9*E25/T25),2),ROUND(E25*$D$9*D26/T25,2)))) -> 19022.39 | H26: =IF(A25=$D$8,SUM($H$25:H25),IF(A25>$D$8,"",F26+G26+O26)) -> 29351.32338 | O26: =IF(A25=$D$8,SUM($O$25:O25),IF(A25>$D$8," ",$N$5*$D$6)) -> 0 | P26: =IF(A25=$D$8,XIRR(H$24:H25,C$24:C25),"") ->  | R26: =SUM(H26:Q26) -> 29351.32338 | S26: =IF(C26="","",YEAR(C26)) -> 2021 | T26: =IF(OR(S26=2024,S26=2028,S26=2016,S26=2020,S26=2024,S26=2028,S26=2032,S26=2036,S26=2040),366,365) -> 365 | U26: =IF(C26="","",DAY(C26)) -> 1 | V26: =U26-1 -> 0 | W26: =D26-V26 -> 28
A27: 3 | B27: =IF(A27="","",EDATE($B$24,A27)) -> 2021-04-01 | C27: 2021-04-01 | D27: 31 | E27: =E26-F27 -> 973042.4899 | F27: =IF(AND(A26="",A28=""),"",IF(A27="",ROUND(SUM($F$25:F26),2),IF(A27=$D$8,$E$24-ROUND(SUM($F$25:F26),2),($G$9-G27)))) -> 8510.133376 | G27: =IF(A26=$D$8,ROUND(SUM($G$25:G26),2),IF(A27>$D$8,"",IF(T27<>T26,ROUND(SUM(V27*$D$9*E26/T27,W27*$D$9*E26/T26),2),ROUND(E26*$D$9*D27/T26,2)))) -> 20841.19 | H27: =IF(A26=$D$8,SUM($H$25:H26),IF(A26>$D$8,"",F27+G27+O27)) -> 29351.32338 | O27: =IF(A26=$D$8,SUM($O$25:O26),IF(A26>$D$8," ",$N$5*$D$6)) -> 0 | P27: =IF(A26=$D$8,XIRR(H$24:H26,C$24:C26),"") ->  | Q27: =IF(A26=$D$8,G27+M27+F27+I27+J27+K29+L27+N27+O27,"") ->  | R27: 29351.32338 | S27: 2021 | T27: 365 | U27: 1 | V27: 0 | W27: 31
A28: 4 | B28: 2021-05-01 | C28: 2021-05-01 | D28: 30 | E28: 963685.1865 | F28: =IF(AND(A27="",A29=""),"",IF(A28="",ROUND(SUM($F$25:F27),2),IF(A28=$D$8,$E$24-ROUND(SUM($F$25:F27),2),($G$9-G28)))) -> 9357.303376 | G28: =IF(A27=$D$8,ROUND(SUM($G$25:G27),2),IF(A28>$D$8,"",IF(T28<>T27,ROUND(SUM(V28*$D$9*E27/T28,W28*$D$9*E27/T27),2),ROUND(E27*$D$9*D28/T27,2)))) -> 19994.02 | H28: =IF(A27=$D$8,SUM($H$25:H27),IF(A27>$D$8,"",F28+G28+O28)) -> 29351.32338 | O28: =IF(A27=$D$8,SUM($O$25:O27),IF(A27>$D$8," ",$N$5*$D$6)) -> 0 | P28: =IF(A27=$D$8,XIRR(H$24:H27,C$24:C27),"") ->  | Q28: =IF(A27=$D$8,G28+M28+F28+I28+J28+#REF!+L28+N28+O28,"") ->  | R28: 29351.32338 | S28: 2021 | T28: 365 | U28: 1 | V28: 0 | W28: 30
A29: 5 | B29: 2021-06-01 | C29: 2021-06-01 | D29: 31 | E29: 954795.6731 | F29: =IF(AND(A28="",A30=""),"",IF(A29="",ROUND(SUM($F$25:F28),2),IF(A29=$D$8,$E$24-ROUND(SUM($F$25:F28),2),($G$9-G29)))) -> 8889.513376 | G29: =IF(A28=$D$8,ROUND(SUM($G$25:G28),2),IF(A29>$D$8,"",IF(T29<>T28,ROUND(SUM(V29*$D$9*E28/T29,W29*$D$9*E28/T28),2),ROUND(E28*$D$9*D29/T28,2)))) -> 20461.81 | H29: =IF(A28=$D$8,SUM($H$25:H28),IF(A28>$D$8,"",F29+G29+O29)) -> 29351.32338 | I29: =IF(A29="",$I$24,"") ->  | J29: =IF(A29="",$J$24,"") ->  | L29: =IF(A29="",$L$29,"") ->  | N29: =IF(A28=$D$8,$N$24,"") ->  | O29: =IF(A28=$D$8,SUM($O$25:O28),IF(A28>$D$8," ",$N$5*$D$6)) -> 0 | P29: =IF(A28=$D$8,XIRR(H$24:H28,C$24:C28),"") ->  | Q29: =IF(A28=$D$8,G29+M29+F29+I29+J29+#REF!+L29+N29+O29,"") ->  | R29: 29351.32338 | S29: 2021 | T29: 365 | U29: 1 | V29: 0 | W29: 31
A30: 6 | B30: 2021-07-01 | C30: 2021-07-01 | D30: 30 | E30: 945063.4397 | F30: =IF(AND(A29="",A31=""),"",IF(A30="",ROUND(SUM($F$25:F29),2),IF(A30=$D$8,$E$24-ROUND(SUM($F$25:F29),2),($G$9-G30)))) -> 9732.233376 | G30: =IF(A29=$D$8,ROUND(SUM($G$25:G29),2),IF(A30>$D$8,"",IF(T30<>T29,ROUND(SUM(V30*$D$9*E29/T30,W30*$D$9*E29/T29),2),ROUND(E29*$D$9*D30/T29,2)))) -> 19619.09 | H30: =IF(A29=$D$8,SUM($H$25:H29),IF(A29>$D$8,"",F30+G30+O30)) -> 29351.32338 | I30: =IF(A29=$D$8,$I$24,"") ->  | J30: =IF(A30="",$J$24,"") ->  | L30: =IF(A30="",$L$24,"") ->  | M30: =IF(A29=$D$8,$M$24,"") ->  | O30: =IF(A29=$D$8,SUM($O$25:O29),IF(A29>$D$8," ",$N$5*$D$6)) -> 0 | P30: =IF(A29=$D$8,XIRR(H$24:H29,C$24:C29),"") ->  | Q30: =IF(A29=$D$8,G30+M30+F30+I30+J30+K30+L30+N30+O30,"") ->  | R30: 29351.32338 | S30: 2021 | T30: 365 | U30: 1 | V30: 0 | W30: 30
A31: 7 | B31: 2021-08-01 | C31: 2021-08-01 | D31: =IF(A31>$D$8,"",C31-C30) -> 31 | E31: 935778.5364 | F31: =IF(AND(A30="",A32=""),"",IF(A31="",ROUND(SUM($F$25:F30),2),IF(A31=$D$8,$E$24-ROUND(SUM($F$25:F30),2),($G$9-G31)))) -> 9284.903376 | G31: =IF(A30=$D$8,ROUND(SUM($G$25:G30),2),IF(A31>$D$8,"",IF(T31<>T30,ROUND(SUM(V31*$D$9*E30/T31,W31*$D$9*E30/T30),2),ROUND(E30*$D$9*D31/T30,2)))) -> 20066.42 | H31: =IF(A30=$D$8,SUM($H$25:H30),IF(A30>$D$8,"",F31+G31+O31)) -> 29351.32338 | L31: =IF(A31="",$L$24,"") ->  | O31: =IF(A30=$D$8,SUM($O$25:O30),IF(A30>$D$8," ",$N$5*$D$6)) -> 0 | P31: =IF(A30=$D$8,XIRR(H$24:H30,C$24:C30),"") ->  | R31: 29351.32338 | S31: 2021 | T31: 365 | U31: 1 | V31: 0 | W31: 31
A32: 8 | B32: 2021-09-01 | C32: 2021-09-01 | D32: 31 | E32: =IF(A32>$D$8,"",E31-F32) -> 926296.483 | F32: =IF(AND(A31="",A33=""),"",IF(A32="",ROUND(SUM($F$25:F31),2),IF(A32=$D$8,$E$24-ROUND(SUM($F$25:F31),2),($G$9-G32)))) -> 9482.053376 | G32: =IF(A31=$D$8,ROUND(SUM($G$25:G31),2),IF(A32>$D$8,"",IF(T32<>T31,ROUND(SUM(V32*$D$9*E31/T32,W32*$D$9*E31/T31),2),ROUND(E31*$D$9*D32/T31,2)))) -> 19869.27 | H32: =IF(A31=$D$8,SUM($H$25:H31),IF(A31>$D$8,"",F32+G32+O32)) -> 29351.32338 | J32: =IF(A31=$D$8,$J$24,"") ->  | O32: =IF(A31=$D$8,SUM($O$25:O31),IF(A31>$D$8," ",$N$5*$D$6)) -> 0 | P32: =IF(A31=$D$8,XIRR(H$24:H31,C$24:C31),"") ->  | R32: 29351.32338 | S32: 2021 | T32: 365 | U32: 1 | V32: 0 | W32: 31
A33: 9 | B33: 2021-10-01 | C33: 2021-10-01 | D33: 30 | E33: 915978.6496 | F33: =IF(AND(A32="",A34=""),"",IF(A33="",ROUND(SUM($F$25:F32),2),IF(A33=$D$8,$E$24-ROUND(SUM($F$25:F32),2),($G$9-G33)))) -> 10317.83338 | G33: =IF(A32=$D$8,ROUND(SUM($G$25:G32),2),IF(A33>$D$8,"",IF(T33<>T32,ROUND(SUM(V33*$D$9*E32/T33,W33*$D$9*E32/T32),2),ROUND(E32*$D$9*D33/T32,2)))) -> 19033.49 | H33: =IF(A32=$D$8,SUM($H$25:H32),IF(A32>$D$8,"",F33+G33+O33)) -> 29351.32338 | O33: =IF(A32=$D$8,SUM($O$25:O32),IF(A32>$D$8," ",$N$5*$D$6)) -> 0 | P33: =IF(A32=$D$8,XIRR(H$24:H32,C$24:C32),"") ->  | R33: 29351.32338 | S33: 2021 | T33: 365 | U33: 1 | V33: 0 | W33: 30
A34: 10 | B34: 2021-11-01 | C34: 2021-11-01 | D34: 31 | E34: 906076.1862 | F34: =IF(AND(A33="",A35=""),"",IF(A34="",ROUND(SUM($F$25:F33),2),IF(A34=$D$8,$E$24-ROUND(SUM($F$25:F33),2),($G$9-G34)))) -> 9902.463376 | G34: =IF(A33=$D$8,ROUND(SUM($G$25:G33),2),IF(A34>$D$8,"",IF(T34<>T33,ROUND(SUM(V34*$D$9*E33/T34,W34*$D$9*E33/T33),2),ROUND(E33*$D$9*D34/T33,2)))) -> 19448.86 | H34: =IF(A33=$D$8,SUM($H$25:H33),IF(A33>$D$8,"",F34+G34+O34)) -> 29351.32338 | O34: =IF(A33=$D$8,SUM($O$25:O33),IF(A33>$D$8," ",$N$5*$D$6)) -> 0 | P34: =IF(A33=$D$8,XIRR(H$24:H33,C$24:C33),"") ->  | R34: 29351.32338 | S34: 2021 | T34: 365 | U34: 1 | V34: 0 | W34: 31
A35: 11 | B35: 2021-12-01 | C35: 2021-12-01 | D35: 30 | E35: 895342.8629 | F35: =IF(AND(A34="",A36=""),"",IF(A35="",ROUND(SUM($F$25:F34),2),IF(A35=$D$8,$E$24-ROUND(SUM($F$25:F34),2),($G$9-G35)))) -> 10733.32338 | G35: =IF(A34=$D$8,ROUND(SUM($G$25:G34),2),IF(A35>$D$8,"",IF(T35<>T34,ROUND(SUM(V35*$D$9*E34/T35,W35*$D$9*E34/T34),2),ROUND(E34*$D$9*D35/T34,2)))) -> 18618 | H35: =IF(A34=$D$8,SUM($H$25:H34),IF(A34>$D$8,"",F35+G35+O35)) -> 29351.32338 | O35: =IF(A34=$D$8,SUM($O$25:O34),IF(A34>$D$8," ",$N$5*$D$6)) -> 0 | P35: =IF(A34=$D$8,XIRR(H$24:H34,C$24:C34),"") ->  | R35: 29351.32338 | S35: 2021 | T35: 365 | U35: 1 | V35: 0 | W35: 30
A36: 12 | B36: 2022-01-01 | C36: 2022-01-01 | D36: 31 | E36: 885002.2395 | F36: =IF(AND(A35="",A37=""),"",IF(A36="",ROUND(SUM($F$25:F35),2),IF(A36=$D$8,$E$24-ROUND(SUM($F$25:F35),2),($G$9-G36)))) -> 10340.62338 | G36: =IF(A35=$D$8,ROUND(SUM($G$25:G35),2),IF(A36>$D$8,"",IF(T36<>T35,ROUND(SUM(V36*$D$9*E35/T36,W36*$D$9*E35/T35),2),ROUND(E35*$D$9*D36/T35,2)))) -> 19010.7 | H36: =IF(A35=$D$8,SUM($H$25:H35),IF(A35>$D$8,"",F36+G36+O36)) -> 29351.32338 | O36: =IF(A35=$D$8,SUM($O$25:O35),IF(A35>$D$8," ",$N$5*$D$6)) -> 0 | P36: =IF(A35=$D$8,XIRR(H$24:H35,C$24:C35),"") ->  | R36: 29351.32338 | S36: 2022 | T36: 365 | U36: 1 | V36: 0 | W36: 31
A37: 13 | B37: =IF(A37="","",EDATE($B$24,A37)) -> 2022-02-01 | C37: 2022-02-01 | D37: 31 | E37: 874442.0561 | F37: =IF(AND(A36="",A38=""),"",IF(A37="",ROUND(SUM($F$25:F36),2),IF(A37=$D$8,$E$24-ROUND(SUM($F$25:F36),2),($G$9-G37)))) -> 10560.18338 | G37: =IF(A36=$D$8,ROUND(SUM($G$25:G36),2),IF(A37>$D$8,"",IF(T37<>T36,ROUND(SUM(V37*$D$9*E36/T37,W37*$D$9*E36/T36),2),ROUND(E36*$D$9*D37/T36,2)))) -> 18791.14 | H37: =IF(A36=$D$8,SUM($H$25:H36),IF(A36>$D$8,"",F37+G37+O37)) -> 29351.32338 | J37: =IF($D$8>A36,J24,N9) -> 1500 | K37: =IF(D8>12,(O8+$N$10*E36),IF($A$36=$D$8,K24,"")) -> 53100.13437 | O37: =IF(A36=$D$8,SUM($O$25:O36),IF(A36>$D$8," ",$N$5*$D$6)) -> 0 | P37: =IF(A36=$D$8,XIRR(H$24:H36,C$24:C36),"") ->  | R37: 83951.45775 | S37: 2022 | T37: 365 | U37: 1 | V37: 0 | W37: 31
A38: 14 | B38: =IF(A38="","",EDATE($B$24,A38)) -> 2022-03-01 | C38: 2022-03-01 | D38: =IF(A38>$D$8,"",C38-C37) -> 28 | E38: =IF(A38>$D$8,"",E37-F38) -> 861860.8527 | F38: =IF(AND(A37="",A39=""),"",IF(A38="",ROUND(SUM($F$25:F37),2),IF(A38=$D$8,$E$24-ROUND(SUM($F$25:F37),2),($G$9-G38)))) -> 12581.20338 | G38: =IF(A37=$D$8,ROUND(SUM($G$25:G37),2),IF(A38>$D$8,"",IF(T38<>T37,ROUND(SUM(V38*$D$9*E37/T38,W38*$D$9*E37/T37),2),ROUND(E37*$D$9*D38/T37,2)))) -> 16770.12 | H38: =IF(A37=$D$8,SUM($H$25:H37),IF(A37>$D$8,"",F38+G38+O38)) -> 29351.32338 | J38: =IF(A37=$D$8,$J$24,"") ->  | L38: =IF(A37=$D$8,$L$24,"") ->  | O38: =IF(A37=$D$8,SUM($O$25:O37),IF(A37>$D$8," ",$N$5*$D$6)) -> 0 | P38: =IF(A37=$D$8,XIRR(H$24:H37,C$24:C37),"") ->  | R38: 29351.32338 | S38: 2022 | T38: 365 | U38: 1 | V38: 0 | W38: 28
A39: 15 | B39: 2022-04-01 | C39: 2022-04-01 | D39: 31 | E39: 850809.3194 | F39: =IF(AND(A38="",A40=""),"",IF(A39="",ROUND(SUM($F$25:F38),2),IF(A39=$D$8,$E$24-ROUND(SUM($F$25:F38),2),($G$9-G39)))) -> 11051.53338 | G39: =IF(A38=$D$8,ROUND(SUM($G$25:G38),2),IF(A39>$D$8,"",IF(T39<>T38,ROUND(SUM(V39*$D$9*E38/T39,W39*$D$9*E38/T38),2),ROUND(E38*$D$9*D39/T38,2)))) -> 18299.79 | H39: =IF(A38=$D$8,SUM($H$25:H38),IF(A38>$D$8,"",F39+G39+O39)) -> 29351.32338 | O39: =IF(A38=$D$8,SUM($O$25:O38),IF(A38>$D$8," ",$N$5*$D$6)) -> 0 | P39: =IF(A38=$D$8,XIRR(H$24:H38,C$24:C38),"") ->  | R39: 29351.32338 | S39: 2022 | T39: 365 | U39: 1 | V39: 0 | W39: 31
A40: 16 | B40: 2022-05-01 | C40: 2022-05-01 | D40: 30 | E40: 838940.376 | F40: =IF(AND(A39="",A41=""),"",IF(A40="",ROUND(SUM($F$25:F39),2),IF(A40=$D$8,$E$24-ROUND(SUM($F$25:F39),2),($G$9-G40)))) -> 11868.94338 | G40: =IF(A39=$D$8,ROUND(SUM($G$25:G39),2),IF(A40>$D$8,"",IF(T40<>T39,ROUND(SUM(V40*$D$9*E39/T40,W40*$D$9*E39/T39),2),ROUND(E39*$D$9*D40/T39,2)))) -> 17482.38 | H40: =IF(A39=$D$8,SUM($H$25:H39),IF(A39>$D$8,"",F40+G40+O40)) -> 29351.32338 | O40: =IF(A39=$D$8,SUM($O$25:O39),IF(A39>$D$8," ",$N$5*$D$6)) -> 0 | P40: =IF(A39=$D$8,XIRR(H$24:H39,C$24:C39),"") ->  | R40: 29351.32338 | S40: 2022 | T40: 365 | U40: 1 | V40: 0 | W40: 30
A41: 17 | B41: 2022-06-01 | C41: 2022-06-01 | D41: 31 | E41: 827402.1726 | F41: =IF(AND(A40="",A42=""),"",IF(A41="",ROUND(SUM($F$25:F40),2),IF(A41=$D$8,$E$24-ROUND(SUM($F$25:F40),2),($G$9-G41)))) -> 11538.20338 | G41: =IF(A40=$D$8,ROUND(SUM($G$25:G40),2),IF(A41>$D$8,"",IF(T41<>T40,ROUND(SUM(V41*$D$9*E40/T41,W41*$D$9*E40/T40),2),ROUND(E40*$D$9*D41/T40,2)))) -> 17813.12 | H41: =IF(A40=$D$8,SUM($H$25:H40),IF(A40>$D$8,"",F41+G41+O41)) -> 29351.32338 | O41: =IF(A40=$D$8,SUM($O$25:O40),IF(A40>$D$8," ",$N$5*$D$6)) -> 0 | P41: =IF(A40=$D$8,XIRR(H$24:H40,C$24:C40),"") ->  | R41: 29351.32338 | S41: 2022 | T41: 365 | U41: 1 | V41: 0 | W41: 31
A42: 18 | B42: 2022-07-01 | C42: 2022-07-01 | D42: 30 | E42: 815052.2592 | F42: =IF(AND(A41="",A43=""),"",IF(A42="",ROUND(SUM($F$25:F41),2),IF(A42=$D$8,$E$24-ROUND(SUM($F$25:F41),2),($G$9-G42)))) -> 12349.91338 | G42: =IF(A41=$D$8,ROUND(SUM($G$25:G41),2),IF(A42>$D$8,"",IF(T42<>T41,ROUND(SUM(V42*$D$9*E41/T42,W42*$D$9*E41/T41),2),ROUND(E41*$D$9*D42/T41,2)))) -> 17001.41 | H42: =IF(A41=$D$8,SUM($H$25:H41),IF(A41>$D$8,"",F42+G42+O42)) -> 29351.32338 | I42: =IF(A41=$D$8,$I$24,"") ->  | O42: =IF(A41=$D$8,SUM($O$25:O41),IF(A41>$D$8," ",$N$5*$D$6)) -> 0 | P42: =IF(A41=$D$8,XIRR(H$24:H41,C$24:C41),"") ->  | R42: 29351.32338 | S42: 2022 | T42: 365 | U42: 1 | V42: 0 | W42: 30
A43: 19 | B43: 2022-08-01 | C43: 2022-08-01 | D43: 31 | E43: 803006.8358 | F43: =IF(AND(A42="",A44=""),"",IF(A43="",ROUND(SUM($F$25:F42),2),IF(A43=$D$8,$E$24-ROUND(SUM($F$25:F42),2),($G$9-G43)))) -> 12045.42338 | G43: =IF(A42=$D$8,ROUND(SUM($G$25:G42),2),IF(A43>$D$8,"",IF(T43<>T42,ROUND(SUM(V43*$D$9*E42/T43,W43*$D$9*E42/T42),2),ROUND(E42*$D$9*D43/T42,2)))) -> 17305.9 | H43: =IF(A42=$D$8,SUM($H$25:H42),IF(A42>$D$8,"",F43+G43+O43)) -> 29351.32338 | O43: =IF(A42=$D$8,SUM($O$25:O42),IF(A42>$D$8," ",$N$5*$D$6)) -> 0 | P43: =IF(A42=$D$8,XIRR(H$24:H42,C$24:C42),"") ->  | R43: 29351.32338 | S43: 2022 | T43: 365 | U43: 1 | V43: 0 | W43: 31
A44: 20 | B44: 2022-09-01 | C44: 2022-09-01 | D44: 31 | E44: 790705.6625 | F44: =IF(AND(A43="",A45=""),"",IF(A44="",ROUND(SUM($F$25:F43),2),IF(A44=$D$8,$E$24-ROUND(SUM($F$25:F43),2),($G$9-G44)))) -> 12301.17338 | G44: =IF(A43=$D$8,ROUND(SUM($G$25:G43),2),IF(A44>$D$8,"",IF(T44<>T43,ROUND(SUM(V44*$D$9*E43/T44,W44*$D$9*E43/T43),2),ROUND(E43*$D$9*D44/T43,2)))) -> 17050.15 | H44: =IF(A43=$D$8,SUM($H$25:H43),IF(A43>$D$8,"",F44+G44+O44)) -> 29351.32338 | O44: =IF(A43=$D$8,SUM($O$25:O43),IF(A43>$D$8," ",$N$5*$D$6)) -> 0 | P44: =IF(A43=$D$8,XIRR(H$24:H43,C$24:C43),"") ->  | R44: 29351.32338 | S44: 2022 | T44: 365 | U44: 1 | V44: 0 | W44: 31
A45: 21 | B45: 2022-10-01 | C45: 2022-10-01 | D45: 30 | E45: 777601.7191 | F45: =IF(AND(A44="",A46=""),"",IF(A45="",ROUND(SUM($F$25:F44),2),IF(A45=$D$8,$E$24-ROUND(SUM($F$25:F44),2),($G$9-G45)))) -> 13103.94338 | G45: =IF(A44=$D$8,ROUND(SUM($G$25:G44),2),IF(A45>$D$8,"",IF(T45<>T44,ROUND(SUM(V45*$D$9*E44/T45,W45*$D$9*E44/T44),2),ROUND(E44*$D$9*D45/T44,2)))) -> 16247.38 | H45: =IF(A44=$D$8,SUM($H$25:H44),IF(A44>$D$8,"",F45+G45+O45)) -> 29351.32338 | O45: =IF(A44=$D$8,SUM($O$25:O44),IF(A44>$D$8," ",$N$5*$D$6)) -> 0 | P45: =IF(A44=$D$8,XIRR(H$24:H44,C$24:C44),"") ->  | R45: 29351.32338 | S45: 2022 | T45: 365 | U45: 1 | V45: 0 | W45: 30
A46: 22 | B46: 2022-11-01 | C46: 2022-11-01 | D46: 31 | E46: 764761.1157 | F46: =IF(AND(A45="",A47=""),"",IF(A46="",ROUND(SUM($F$25:F45),2),IF(A46=$D$8,$E$24-ROUND(SUM($F$25:F45),2),($G$9-G46)))) -> 12840.60338 | G46: =IF(A45=$D$8,ROUND(SUM($G$25:G45),2),IF(A46>$D$8,"",IF(T46<>T45,ROUND(SUM(V46*$D$9*E45/T46,W46*$D$9*E45/T45),2),ROUND(E45*$D$9*D46/T45,2)))) -> 16510.72 | H46: =IF(A45=$D$8,SUM($H$25:H45),IF(A45>$D$8,"",F46+G46+O46)) -> 29351.32338 | O46: =IF(A45=$D$8,SUM($O$25:O45),IF(A45>$D$8," ",$N$5*$D$6)) -> 0 | P46: =IF(A45=$D$8,XIRR(H$24:H45,C$24:C45),"") ->  | R46: 29351.32338 | S46: 2022 | T46: 365 | U46: 1 | V46: 0 | W46: 31
A47: 23 | B47: 2022-12-01 | C47: 2022-12-01 | D47: 30 | E47: 751124.0623 | F47: =IF(AND(A46="",A48=""),"",IF(A47="",ROUND(SUM($F$25:F46),2),IF(A47=$D$8,$E$24-ROUND(SUM($F$25:F46),2),($G$9-G47)))) -> 13637.05338 | G47: =IF(A46=$D$8,ROUND(SUM($G$25:G46),2),IF(A47>$D$8,"",IF(T47<>T46,ROUND(SUM(V47*$D$9*E46/T47,W47*$D$9*E46/T46),2),ROUND(E46*$D$9*D47/T46,2)))) -> 15714.27 | H47: =IF(A46=$D$8,SUM($H$25:H46),IF(A46>$D$8,"",F47+G47+O47)) -> 29351.32338 | O47: =IF(A46=$D$8,SUM($O$25:O46),IF(A46>$D$8," ",$N$5*$D$6)) -> 0 | P47: =IF(A46=$D$8,XIRR(H$24:H46,C$24:C46),"") ->  | R47: 29351.32338 | S47: 2022 | T47: 365 | U47: 1 | V47: 0 | W47: 30
A48: 24 | B48: 2023-01-01 | C48: 2023-01-01 | D48: 31 | E48: 737721.259 | F48: =IF(AND(A47="",A49=""),"",IF(A48="",ROUND(SUM($F$25:F47),2),IF(A48=$D$8,$E$24-ROUND(SUM($F$25:F47),2),($G$9-G48)))) -> 13402.80338 | G48: =IF(A47=$D$8,ROUND(SUM($G$25:G47),2),IF(A48>$D$8,"",IF(T48<>T47,ROUND(SUM(V48*$D$9*E47/T48,W48*$D$9*E47/T47),2),ROUND(E47*$D$9*D48/T47,2)))) -> 15948.52 | H48: =IF(A47=$D$8,SUM($H$25:H47),IF(A47>$D$8,"",F48+G48+O48)) -> 29351.32338 | O48: =IF(A47=$D$8,SUM($O$25:O47),IF(A47>$D$8," ",$N$5*$D$6)) -> 0 | P48: =IF(A47=$D$8,XIRR(H$24:H47,C$24:C47),"") ->  | R48: 29351.32338 | S48: 2023 | T48: 365 | U48: 1 | V48: 0 | W48: 31
A49: 25 | B49: 2023-02-01 | C49: 2023-02-01 | D49: 31 | E49: 724033.8756 | F49: =IF(AND(A48="",A50=""),"",IF(A49="",ROUND(SUM($F$25:F48),2),IF(A49=$D$8,$E$24-ROUND(SUM($F$25:F48),2),($G$9-G49)))) -> 13687.38338 | G49: =IF(A48=$D$8,ROUND(SUM($G$25:G48),2),IF(A49>$D$8,"",IF(T49<>T48,ROUND(SUM(V49*$D$9*E48/T49,W49*$D$9*E48/T48),2),ROUND(E48*$D$9*D49/T48,2)))) -> 15663.94 | H49: =IF(A48=$D$8,SUM($H$25:H48),IF(A48>$D$8,"",F49+G49+O49)) -> 29351.32338 | J49: =IF($D$8>A48,$N$9,IF($D$8=A48,$J$24+$J$37," ")) -> 1500 | K49: =IF($D$8>24,($O$8+$N$10*E48),IF($A$48=$D$8,$K$37+$K$24,"")) -> 44263.27554 | O49: =IF(A48=$D$8,SUM($O$25:O48),IF(A48>$D$8," ",$N$5*$D$6)) -> 0 | P49: =IF(A48=$D$8,XIRR(H$24:H48,C$24:C48),"") ->  | R49: 75114.59891 | S49: 2023 | T49: 365 | U49: 1 | V49: 0 | W49: 31
A50: 26 | B50: 2023-03-01 | C50: 2023-03-01 | D50: 28 | E50: 708568.1322 | F50: =IF(AND(A49="",A51=""),"",IF(A50="",ROUND(SUM($F$25:F49),2),IF(A50=$D$8,$E$24-ROUND(SUM($F$25:F49),2),($G$9-G50)))) -> 15465.74338 | G50: =IF(A49=$D$8,ROUND(SUM($G$25:G49),2),IF(A50>$D$8,"",IF(T50<>T49,ROUND(SUM(V50*$D$9*E49/T50,W50*$D$9*E49/T49),2),ROUND(E49*$D$9*D50/T49,2)))) -> 13885.58 | H50: =IF(A49=$D$8,SUM($H$25:H49),IF(A49>$D$8,"",F50+G50+O50)) -> 29351.32338 | J50: =IF(A49=$D$8,$J$24,"") ->  | O50: =IF(A49=$D$8,SUM($O$25:O49),IF(A49>$D$8," ",$N$5*$D$6)) -> 0 | P50: =IF(A49=$D$8,XIRR(H$24:H49,C$24:C49),"") ->  | R50: 29351.32338 | S50: 2023 | T50: 365 | U50: 1 | V50: 0 | W50: 28
A51: 27 | B51: 2023-04-01 | C51: 2023-04-01 | D51: 31 | E51: 694261.7488 | F51: =IF(AND(A50="",A52=""),"",IF(A51="",ROUND(SUM($F$25:F50),2),IF(A51=$D$8,$E$24-ROUND(SUM($F$25:F50),2),($G$9-G51)))) -> 14306.38338 | G51: =IF(A50=$D$8,ROUND(SUM($G$25:G50),2),IF(A51>$D$8,"",IF(T51<>T50,ROUND(SUM(V51*$D$9*E50/T51,W51*$D$9*E50/T50),2),ROUND(E50*$D$9*D51/T50,2)))) -> 15044.94 | H51: =IF(A50=$D$8,SUM($H$25:H50),IF(A50>$D$8,"",F51+G51+O51)) -> 29351.32338 | O51: =IF(A50=$D$8,SUM($O$25:O50),IF(A50>$D$8," ",$N$5*$D$6)) -> 0 | P51: =IF(A50=$D$8,XIRR(H$24:H50,C$24:C50),"") ->  | R51: 29351.32338 | S51: 2023 | T51: 365 | U51: 1 | V51: 0 | W51: 31
A52: 28 | B52: 2023-05-01 | C52: 2023-05-01 | D52: 30 | E52: 679176.0755 | F52: =IF(AND(A51="",A53=""),"",IF(A52="",ROUND(SUM($F$25:F51),2),IF(A52=$D$8,$E$24-ROUND(SUM($F$25:F51),2),($G$9-G52)))) -> 15085.67338 | G52: =IF(A51=$D$8,ROUND(SUM($G$25:G51),2),IF(A52>$D$8,"",IF(T52<>T51,ROUND(SUM(V52*$D$9*E51/T52,W52*$D$9*E51/T51),2),ROUND(E51*$D$9*D52/T51,2)))) -> 14265.65 | H52: =IF(A51=$D$8,SUM($H$25:H51),IF(A51>$D$8,"",F52+G52+O52)) -> 29351.32338 | O52: =IF(A51=$D$8,SUM($O$25:O51),IF(A51>$D$8," ",$N$5*$D$6)) -> 0 | P52: =IF(A51=$D$8,XIRR(H$24:H51,C$24:C51),"") ->  | R52: 29351.32338 | S52: 2023 | T52: 365 | U52: 1 | V52: 0 | W52: 30
A53: 29 | B53: 2023-06-01 | C53: 2023-06-01 | D53: 31 | E53: 664245.6121 | F53: =IF(AND(A52="",A54=""),"",IF(A53="",ROUND(SUM($F$25:F52),2),IF(A53=$D$8,$E$24-ROUND(SUM($F$25:F52),2),($G$9-G53)))) -> 14930.46338 | G53: =IF(A52=$D$8,ROUND(SUM($G$25:G52),2),IF(A53>$D$8,"",IF(T53<>T52,ROUND(SUM(V53*$D$9*E52/T53,W53*$D$9*E52/T52),2),ROUND(E52*$D$9*D53/T52,2)))) -> 14420.86 | H53: =IF(A52=$D$8,SUM($H$25:H52),IF(A52>$D$8,"",F53+G53+O53)) -> 29351.32338 | O53: =IF(A52=$D$8,SUM($O$25:O52),IF(A52>$D$8," ",$N$5*$D$6)) -> 0 | P53: =IF(A52=$D$8,XIRR(H$24:H52,C$24:C52),"") ->  | R53: 29351.32338 | S53: 2023 | T53: 365 | U53: 1 | V53: 0 | W53: 31
A54: 30 | B54: 2023-07-01 | C54: 2023-07-01 | D54: 30 | E54: 648543.1687 | F54: =IF(AND(A53="",A55=""),"",IF(A54="",ROUND(SUM($F$25:F53),2),IF(A54=$D$8,$E$24-ROUND(SUM($F$25:F53),2),($G$9-G54)))) -> 15702.44338 | G54: =IF(A53=$D$8,ROUND(SUM($G$25:G53),2),IF(A54>$D$8,"",IF(T54<>T53,ROUND(SUM(V54*$D$9*E53/T54,W54*$D$9*E53/T53),2),ROUND(E53*$D$9*D54/T53,2)))) -> 13648.88 | H54: =IF(A53=$D$8,SUM($H$25:H53),IF(A53>$D$8,"",F54+G54+O54)) -> 29351.32338 | O54: =IF(A53=$D$8,SUM($O$25:O53),IF(A53>$D$8," ",$N$5*$D$6)) -> 0 | P54: =IF(A53=$D$8,XIRR(H$24:H53,C$24:C53),"") ->  | R54: 29351.32338 | S54: 2023 | T54: 365 | U54: 1 | V54: 0 | W54: 30
A55: 31 | B55: 2023-08-01 | C55: 2023-08-01 | D55: 31 | E55: 632962.2853 | F55: =IF(AND(A54="",A56=""),"",IF(A55="",ROUND(SUM($F$25:F54),2),IF(A55=$D$8,$E$24-ROUND(SUM($F$25:F54),2),($G$9-G55)))) -> 15580.88338 | G55: =IF(A54=$D$8,ROUND(SUM($G$25:G54),2),IF(A55>$D$8,"",IF(T55<>T54,ROUND(SUM(V55*$D$9*E54/T55,W55*$D$9*E54/T54),2),ROUND(E54*$D$9*D55/T54,2)))) -> 13770.44 | H55: =IF(A54=$D$8,SUM($H$25:H54),IF(A54>$D$8,"",F55+G55+O55)) -> 29351.32338 | O55: =IF(A54=$D$8,SUM($O$25:O54),IF(A54>$D$8," ",$N$5*$D$6)) -> 0 | P55: =IF(A54=$D$8,XIRR(H$24:H54,C$24:C54),"") ->  | R55: 29351.32338 | S55: 2023 | T55: 365 | U55: 1 | V55: 0 | W55: 31
A56: 32 | B56: 2023-09-01 | C56: 2023-09-01 | D56: 31 | E56: 617050.572 | F56: =IF(AND(A55="",A57=""),"",IF(A56="",ROUND(SUM($F$25:F55),2),IF(A56=$D$8,$E$24-ROUND(SUM($F$25:F55),2),($G$9-G56)))) -> 15911.71338 | G56: =IF(A55=$D$8,ROUND(SUM($G$25:G55),2),IF(A56>$D$8,"",IF(T56<>T55,ROUND(SUM(V56*$D$9*E55/T56,W56*$D$9*E55/T55),2),ROUND(E55*$D$9*D56/T55,2)))) -> 13439.61 | H56: =IF(A55=$D$8,SUM($H$25:H55),IF(A55>$D$8,"",F56+G56+O56)) -> 29351.32338 | O56: =IF(A55=$D$8,SUM($O$25:O55),IF(A55>$D$8," ",$N$5*$D$6)) -> 0 | P56: =IF(A55=$D$8,XIRR(H$24:H55,C$24:C55),"") ->  | R56: 29351.32338 | S56: 2023 | T56: 365 | U56: 1 | V56: 0 | W56: 31
A57: 33 | B57: 2023-10-01 | C57: 2023-10-01 | D57: 30 | E57: 600378.3686 | F57: =IF(AND(A56="",A58=""),"",IF(A57="",ROUND(SUM($F$25:F56),2),IF(A57=$D$8,$E$24-ROUND(SUM($F$25:F56),2),($G$9-G57)))) -> 16672.20338 | G57: =IF(A56=$D$8,ROUND(SUM($G$25:G56),2),IF(A57>$D$8,"",IF(T57<>T56,ROUND(SUM(V57*$D$9*E56/T57,W57*$D$9*E56/T56),2),ROUND(E56*$D$9*D57/T56,2)))) -> 12679.12 | H57: =IF(A56=$D$8,SUM($H$25:H56),IF(A56>$D$8,"",F57+G57+O57)) -> 29351.32338 | O57: =IF(A56=$D$8,SUM($O$25:O56),IF(A56>$D$8," ",$N$5*$D$6)) -> 0 | P57: =IF(A56=$D$8,XIRR(H$24:H56,C$24:C56),"") ->  | R57: 29351.32338 | S57: 2023 | T57: 365 | U57: 1 | V57: 0 | W57: 30
A58: 34 | B58: 2023-11-01 | C58: 2023-11-01 | D58: 31 | E58: 583774.8052 | F58: =IF(AND(A57="",A59=""),"",IF(A58="",ROUND(SUM($F$25:F57),2),IF(A58=$D$8,$E$24-ROUND(SUM($F$25:F57),2),($G$9-G58)))) -> 16603.56338 | G58: =IF(A57=$D$8,ROUND(SUM($G$25:G57),2),IF(A58>$D$8,"",IF(T58<>T57,ROUND(SUM(V58*$D$9*E57/T58,W58*$D$9*E57/T57),2),ROUND(E57*$D$9*D58/T57,2)))) -> 12747.76 | H58: =IF(A57=$D$8,SUM($H$25:H57),IF(A57>$D$8,"",F58+G58+O58)) -> 29351.32338 | O58: =IF(A57=$D$8,SUM($O$25:O57),IF(A57>$D$8," ",$N$5*$D$6)) -> 0 | P58: =IF(A57=$D$8,XIRR(H$24:H57,C$24:C57),"") ->  | R58: 29351.32338 | S58: 2023 | T58: 365 | U58: 1 | V58: 0 | W58: 31
A59: 35 | B59: 2023-12-01 | C59: 2023-12-01 | D59: 30 | E59: 566418.8518 | F59: =IF(AND(A58="",A60=""),"",IF(A59="",ROUND(SUM($F$25:F58),2),IF(A59=$D$8,$E$24-ROUND(SUM($F$25:F58),2),($G$9-G59)))) -> 17355.95338 | G59: =IF(A58=$D$8,ROUND(SUM($G$25:G58),2),IF(A59>$D$8,"",IF(T59<>T58,ROUND(SUM(V59*$D$9*E58/T59,W59*$D$9*E58/T58),2),ROUND(E58*$D$9*D59/T58,2)))) -> 11995.37 | H59: =IF(A58=$D$8,SUM($H$25:H58),IF(A58>$D$8,"",F59+G59+O59)) -> 29351.32338 | O59: =IF(A58=$D$8,SUM($O$25:O58),IF(A58>$D$8," ",$N$5*$D$6)) -> 0 | P59: =IF(A58=$D$8,XIRR(H$24:H58,C$24:C58),"") ->  | R59: 29351.32338 | S59: 2023 | T59: 365 | U59: 1 | V59: 0 | W59: 30
A60: 36 | B60: 2024-01-01 | C60: 2024-01-01 | D60: 31 | E60: 549094.2284 | F60: =IF(AND(A59="",A61=""),"",IF(A60="",ROUND(SUM($F$25:F59),2),IF(A60=$D$8,$E$24-ROUND(SUM($F$25:F59),2),($G$9-G60)))) -> 17324.62338 | G60: =IF(A59=$D$8,ROUND(SUM($G$25:G59),2),IF(A60>$D$8,"",IF(T60<>T59,ROUND(SUM(V60*$D$9*E59/T60,W60*$D$9*E59/T59),2),ROUND(E59*$D$9*D60/T59,2)))) -> 12026.7 | H60: =IF(A59=$D$8,SUM($H$25:H59),IF(A59>$D$8,"",F60+G60+O60)) -> 29351.32338 | O60: =IF(A59=$D$8,SUM($O$25:O59),IF(A59>$D$8," ",$N$5*$D$6)) -> 0 | P60: =IF(A59=$D$8,XIRR(H$24:H59,C$24:C59),"") ->  | R60: 29351.32338 | S60: 2024 | T60: 366 | U60: 1 | V60: 0 | W60: 31
A61: 37 | B61: 2024-02-01 | C61: 2024-02-01 | D61: 31 | E61: 531369.9051 | F61: =IF(AND(A60="",A62=""),"",IF(A61="",ROUND(SUM($F$25:F60),2),IF(A61=$D$8,$E$24-ROUND(SUM($F$25:F60),2),($G$9-G61)))) -> 17724.32338 | G61: =IF(A60=$D$8,ROUND(SUM($G$25:G60),2),IF(A61>$D$8,"",IF(T61<>T60,ROUND(SUM(V61*$D$9*E60/T61,W61*$D$9*E60/T60),2),ROUND(E60*$D$9*D61/T60,2)))) -> 11627 | H61: =IF(A60=$D$8,SUM($H$25:H60),IF(A60>$D$8,"",F61+G61+O61)) -> 29351.32338 | J61: =IF($D$8>A60,$N$9,IF($D$8=A60,$J$24+$J$37+$J$49," ")) -> 1500 | K61: =IF($D$8>36,($O$8+$N$10*E60),IF($A$60=$D$8,$K$37+$K$24+$K$49,"")) -> 32945.65371 | O61: =IF(A60=$D$8,SUM($O$25:O60),IF(A60>$D$8," ",$N$5*$D$6)) -> 0 | P61: =IF(A60=$D$8,XIRR(H$24:H60,C$24:C60),"") ->  | R61: 63796.97708 | S61: 2024 | T61: 366 | U61: 1 | V61: 0 | W61: 31
A62: 38 | B62: 2024-03-01 | C62: 2024-03-01 | D62: 29 | E62: 512544.3517 | F62: =IF(AND(A61="",A63=""),"",IF(A62="",ROUND(SUM($F$25:F61),2),IF(A62=$D$8,$E$24-ROUND(SUM($F$25:F61),2),($G$9-G62)))) -> 18825.55338 | G62: =IF(A61=$D$8,ROUND(SUM($G$25:G61),2),IF(A62>$D$8,"",IF(T62<>T61,ROUND(SUM(V62*$D$9*E61/T62,W62*$D$9*E61/T61),2),ROUND(E61*$D$9*D62/T61,2)))) -> 10525.77 | H62: =IF(A61=$D$8,SUM($H$25:H61),IF(A61>$D$8,"",F62+G62+O62)) -> 29351.32338 | J62: =IF(A61=$D$8,$J$24,"") ->  | O62: =IF(A61=$D$8,SUM($O$25:O61),IF(A61>$D$8," ",$N$5*$D$6)) -> 0 | P62: =IF(A61=$D$8,XIRR(H$24:H61,C$24:C61),"") ->  | R62: 29351.32338 | S62: 2024 | T62: 366 | U62: 1 | V62: 0 | W62: 29
A63: 39 | B63: 2024-04-01 | C63: 2024-04-01 | D63: 31 | E63: 494046.0883 | F63: =IF(AND(A62="",A64=""),"",IF(A63="",ROUND(SUM($F$25:F62),2),IF(A63=$D$8,$E$24-ROUND(SUM($F$25:F62),2),($G$9-G63)))) -> 18498.26338 | G63: =IF(A62=$D$8,ROUND(SUM($G$25:G62),2),IF(A63>$D$8,"",IF(T63<>T62,ROUND(SUM(V63*$D$9*E62/T63,W63*$D$9*E62/T62),2),ROUND(E62*$D$9*D63/T62,2)))) -> 10853.06 | H63: =IF(A62=$D$8,SUM($H$25:H62),IF(A62>$D$8,"",F63+G63+O63)) -> 29351.32338 | O63: =IF(A62=$D$8,SUM($O$25:O62),IF(A62>$D$8," ",$N$5*$D$6)) -> 0 | P63: =IF(A62=$D$8,XIRR(H$24:H62,C$24:C62),"") ->  | R63: 29351.32338 | S63: 2024 | T63: 366 | U63: 1 | V63: 0 | W63: 31
A64: 40 | B64: 2024-05-01 | C64: 2024-05-01 | D64: 30 | E64: 474818.6649 | F64: =IF(AND(A63="",A65=""),"",IF(A64="",ROUND(SUM($F$25:F63),2),IF(A64=$D$8,$E$24-ROUND(SUM($F$25:F63),2),($G$9-G64)))) -> 19227.42338 | G64: =IF(A63=$D$8,ROUND(SUM($G$25:G63),2),IF(A64>$D$8,"",IF(T64<>T63,ROUND(SUM(V64*$D$9*E63/T64,W64*$D$9*E63/T63),2),ROUND(E63*$D$9*D64/T63,2)))) -> 10123.9 | H64: =IF(A63=$D$8,SUM($H$25:H63),IF(A63>$D$8,"",F64+G64+O64)) -> 29351.32338 | O64: =IF(A63=$D$8,SUM($O$25:O63),IF(A63>$D$8," ",$N$5*$D$6)) -> 0 | P64: =IF(A63=$D$8,XIRR(H$24:H63,C$24:C63),"") ->  | R64: 29351.32338 | S64: 2024 | T64: 366 | U64: 1 | V64: 0 | W64: 30
A65: 41 | B65: 2024-06-01 | C65: 2024-06-01 | D65: 31 | E65: 455521.5616 | F65: =IF(AND(A64="",A66=""),"",IF(A65="",ROUND(SUM($F$25:F64),2),IF(A65=$D$8,$E$24-ROUND(SUM($F$25:F64),2),($G$9-G65)))) -> 19297.10338 | G65: =IF(A64=$D$8,ROUND(SUM($G$25:G64),2),IF(A65>$D$8,"",IF(T65<>T64,ROUND(SUM(V65*$D$9*E64/T65,W65*$D$9*E64/T64),2),ROUND(E64*$D$9*D65/T64,2)))) -> 10054.22 | H65: =IF(A64=$D$8,SUM($H$25:H64),IF(A64>$D$8,"",F65+G65+O65)) -> 29351.32338 | O65: =IF(A64=$D$8,SUM($O$25:O64),IF(A64>$D$8," ",$N$5*$D$6)) -> 0 | P65: =IF(A64=$D$8,XIRR(H$24:H64,C$24:C64),"") ->  | R65: 29351.32338 | S65: 2024 | T65: 366 | U65: 1 | V65: 0 | W65: 31
A66: 42 | B66: 2024-07-01 | C66: 2024-07-01 | D66: 30 | E66: 435504.6982 | F66: =IF(AND(A65="",A67=""),"",IF(A66="",ROUND(SUM($F$25:F65),2),IF(A66=$D$8,$E$24-ROUND(SUM($F$25:F65),2),($G$9-G66)))) -> 20016.86338 | G66: =IF(A65=$D$8,ROUND(SUM($G$25:G65),2),IF(A66>$D$8,"",IF(T66<>T65,ROUND(SUM(V66*$D$9*E65/T66,W66*$D$9*E65/T65),2),ROUND(E65*$D$9*D66/T65,2)))) -> 9334.46 | H66: =IF(A65=$D$8,SUM($H$25:H65),IF(A65>$D$8,"",F66+G66+O66)) -> 29351.32338 | O66: =IF(A65=$D$8,SUM($O$25:O65),IF(A65>$D$8," ",$N$5*$D$6)) -> 0 | P66: =IF(A65=$D$8,XIRR(H$24:H65,C$24:C65),"") ->  | R66: 29351.32338 | S66: 2024 | T66: 366 | U66: 1 | V66: 0 | W66: 30
A67: 43 | B67: 2024-08-01 | C67: 2024-08-01 | D67: 31 | E67: 415375.1248 | F67: =IF(AND(A66="",A68=""),"",IF(A67="",ROUND(SUM($F$25:F66),2),IF(A67=$D$8,$E$24-ROUND(SUM($F$25:F66),2),($G$9-G67)))) -> 20129.57338 | G67: =IF(A66=$D$8,ROUND(SUM($G$25:G66),2),IF(A67>$D$8,"",IF(T67<>T66,ROUND(SUM(V67*$D$9*E66/T67,W67*$D$9*E66/T66),2),ROUND(E66*$D$9*D67/T66,2)))) -> 9221.75 | H67: =IF(A66=$D$8,SUM($H$25:H66),IF(A66>$D$8,"",F67+G67+O67)) -> 29351.32338 | O67: =IF(A66=$D$8,SUM($O$25:O66),IF(A66>$D$8," ",$N$5*$D$6)) -> 0 | P67: =IF(A66=$D$8,XIRR(H$24:H66,C$24:C66),"") ->  | R67: 29351.32338 | S67: 2024 | T67: 366 | U67: 1 | V67: 0 | W67: 31
A68: 44 | B68: 2024-09-01 | C68: 2024-09-01 | D68: 31 | E68: 394819.3114 | F68: =IF(AND(A67="",A69=""),"",IF(A68="",ROUND(SUM($F$25:F67),2),IF(A68=$D$8,$E$24-ROUND(SUM($F$25:F67),2),($G$9-G68)))) -> 20555.81338 | G68: =IF(A67=$D$8,ROUND(SUM($G$25:G67),2),IF(A68>$D$8,"",IF(T68<>T67,ROUND(SUM(V68*$D$9*E67/T68,W68*$D$9*E67/T67),2),ROUND(E67*$D$9*D68/T67,2)))) -> 8795.51 | H68: =IF(A67=$D$8,SUM($H$25:H67),IF(A67>$D$8,"",F68+G68+O68)) -> 29351.32338 | O68: =IF(A67=$D$8,SUM($O$25:O67),IF(A67>$D$8," ",$N$5*$D$6)) -> 0 | P68: =IF(A67=$D$8,XIRR(H$24:H67,C$24:C67),"") ->  | R68: 29351.32338 | S68: 2024 | T68: 366 | U68: 1 | V68: 0 | W68: 31
A69: 45 | B69: 2024-10-01 | C69: 2024-10-01 | D69: 30 | E69: 373558.5481 | F69: =IF(AND(A68="",A70=""),"",IF(A69="",ROUND(SUM($F$25:F68),2),IF(A69=$D$8,$E$24-ROUND(SUM($F$25:F68),2),($G$9-G69)))) -> 21260.76338 | G69: =IF(A68=$D$8,ROUND(SUM($G$25:G68),2),IF(A69>$D$8,"",IF(T69<>T68,ROUND(SUM(V69*$D$9*E68/T69,W69*$D$9*E68/T68),2),ROUND(E68*$D$9*D69/T68,2)))) -> 8090.56 | H69: =IF(A68=$D$8,SUM($H$25:H68),IF(A68>$D$8,"",F69+G69+O69)) -> 29351.32338 | O69: =IF(A68=$D$8,SUM($O$25:O68),IF(A68>$D$8," ",$N$5*$D$6)) -> 0 | P69: =IF(A68=$D$8,XIRR(H$24:H68,C$24:C68),"") ->  | R69: 29351.32338 | S69: 2024 | T69: 366 | U69: 1 | V69: 0 | W69: 30
A70: 46 | B70: 2024-11-01 | C70: 2024-11-01 | D70: 31 | E70: 352117.2747 | F70: =IF(AND(A69="",A71=""),"",IF(A70="",ROUND(SUM($F$25:F69),2),IF(A70=$D$8,$E$24-ROUND(SUM($F$25:F69),2),($G$9-G70)))) -> 21441.27338 | G70: =IF(A69=$D$8,ROUND(SUM($G$25:G69),2),IF(A70>$D$8,"",IF(T70<>T69,ROUND(SUM(V70*$D$9*E69/T70,W70*$D$9*E69/T69),2),ROUND(E69*$D$9*D70/T69,2)))) -> 7910.05 | H70: =IF(A69=$D$8,SUM($H$25:H69),IF(A69>$D$8,"",F70+G70+O70)) -> 29351.32338 | O70: =IF(A69=$D$8,SUM($O$25:O69),IF(A69>$D$8," ",$N$5*$D$6)) -> 0 | P70: =IF(A69=$D$8,XIRR(H$24:H69,C$24:C69),"") ->  | R70: 29351.32338 | S70: 2024 | T70: 366 | U70: 1 | V70: 0 | W70: 31
A71: 47 | B71: 2024-12-01 | C71: 2024-12-01 | D71: 30 | E71: 329981.4713 | F71: =IF(AND(A70="",A72=""),"",IF(A71="",ROUND(SUM($F$25:F70),2),IF(A71=$D$8,$E$24-ROUND(SUM($F$25:F70),2),($G$9-G71)))) -> 22135.80338 | G71: =IF(A70=$D$8,ROUND(SUM($G$25:G70),2),IF(A71>$D$8,"",IF(T71<>T70,ROUND(SUM(V71*$D$9*E70/T71,W71*$D$9*E70/T70),2),ROUND(E70*$D$9*D71/T70,2)))) -> 7215.52 | H71: =IF(A70=$D$8,SUM($H$25:H70),IF(A70>$D$8,"",F71+G71+O71)) -> 29351.32338 | O71: =IF(A70=$D$8,SUM($O$25:O70),IF(A70>$D$8," ",$N$5*$D$6)) -> 0 | P71: =IF(A70=$D$8,XIRR(H$24:H70,C$24:C70),"") ->  | R71: 29351.32338 | S71: 2024 | T71: 366 | U71: 1 | V71: 0 | W71: 30
A72: 48 | B72: 2025-01-01 | C72: 2025-01-01 | D72: 31 | E72: 307617.4579 | F72: =IF(AND(A71="",A73=""),"",IF(A72="",ROUND(SUM($F$25:F71),2),IF(A72=$D$8,$E$24-ROUND(SUM($F$25:F71),2),($G$9-G72)))) -> 22364.01338 | G72: =IF(A71=$D$8,ROUND(SUM($G$25:G71),2),IF(A72>$D$8,"",IF(T72<>T71,ROUND(SUM(V72*$D$9*E71/T72,W72*$D$9*E71/T71),2),ROUND(E71*$D$9*D72/T71,2)))) -> 6987.31 | H72: =IF(A71=$D$8,SUM($H$25:H71),IF(A71>$D$8,"",F72+G72+O72)) -> 29351.32338 | O72: =IF(A71=$D$8,SUM($O$25:O71),IF(A71>$D$8," ",$N$5*$D$6)) -> 0 | P72: =IF(A71=$D$8,XIRR(H$24:H71,C$24:C71),"") ->  | R72: 29351.32338 | S72: 2025 | T72: 365 | U72: 1 | V72: 0 | W72: 31
A73: 49 | B73: 2025-02-01 | C73: 2025-02-01 | D73: 31 | E73: 284797.7346 | F73: =IF(AND(A72="",A74=""),"",IF(A73="",ROUND(SUM($F$25:F72),2),IF(A73=$D$8,$E$24-ROUND(SUM($F$25:F72),2),($G$9-G73)))) -> 22819.72338 | G73: =IF(A72=$D$8,ROUND(SUM($G$25:G72),2),IF(A73>$D$8,"",IF(T73<>T72,ROUND(SUM(V73*$D$9*E72/T73,W73*$D$9*E72/T72),2),ROUND(E72*$D$9*D73/T72,2)))) -> 6531.6 | H73: =IF(A72=$D$8,SUM($H$25:H72),IF(A72>$D$8,"",F73+G73+O73)) -> 29351.32338 | J73: =IF($D$8>A72,$N$9,IF($D$8=A72,$J$24+$J$37+$J$49+$J$61," ")) -> 1500 | K73: =IF($D$8>48,($O$8+$N$10*E72),IF($A$72=$D$8,$K$37+$K$24+$K$49+$K$61,"")) -> 18457.04748 | O73: =IF(A72=$D$8,SUM($O$25:O72),IF(A72>$D$8," ",$N$5*$D$6)) -> 0 | P73: =IF(A72=$D$8,XIRR(H$24:H72,C$24:C72),"") ->  | R73: 49308.37085 | S73: 2025 | T73: 365 | U73: 1 | V73: 0 | W73: 31
A74: 50 | B74: 2025-03-01 | C74: 2025-03-01 | D74: 28 | E74: 260908.2812 | F74: =IF(AND(A73="",A75=""),"",IF(A74="",ROUND(SUM($F$25:F73),2),IF(A74=$D$8,$E$24-ROUND(SUM($F$25:F73),2),($G$9-G74)))) -> 23889.45338 | G74: =IF(A73=$D$8,ROUND(SUM($G$25:G73),2),IF(A74>$D$8,"",IF(T74<>T73,ROUND(SUM(V74*$D$9*E73/T74,W74*$D$9*E73/T73),2),ROUND(E73*$D$9*D74/T73,2)))) -> 5461.87 | H74: =IF(A73=$D$8,SUM($H$25:H73),IF(A73>$D$8,"",F74+G74+O74)) -> 29351.32338 | J74: =IF(A73=$D$8,$J$24,"") ->  | O74: =IF(A73=$D$8,SUM($O$25:O73),IF(A73>$D$8," ",$N$5*$D$6)) -> 0 | P74: =IF(A73=$D$8,XIRR(H$24:H73,C$24:C73),"") ->  | R74: 29351.32338 | S74: 2025 | T74: 365 | U74: 1 | V74: 0 | W74: 28
A75: 51 | B75: 2025-04-01 | C75: 2025-04-01 | D75: 31 | E75: 237096.7878 | F75: =IF(AND(A74="",A76=""),"",IF(A75="",ROUND(SUM($F$25:F74),2),IF(A75=$D$8,$E$24-ROUND(SUM($F$25:F74),2),($G$9-G75)))) -> 23811.49338 | G75: =IF(A74=$D$8,ROUND(SUM($G$25:G74),2),IF(A75>$D$8,"",IF(T75<>T74,ROUND(SUM(V75*$D$9*E74/T75,W75*$D$9*E74/T74),2),ROUND(E74*$D$9*D75/T74,2)))) -> 5539.83 | H75: =IF(A74=$D$8,SUM($H$25:H74),IF(A74>$D$8,"",F75+G75+O75)) -> 29351.32338 | O75: =IF(A74=$D$8,SUM($O$25:O74),IF(A74>$D$8," ",$N$5*$D$6)) -> 0 | P75: =IF(A74=$D$8,XIRR(H$24:H74,C$24:C74),"") ->  | R75: 29351.32338 | S75: 2025 | T75: 365 | U75: 1 | V75: 0 | W75: 31
A76: 52 | B76: 2025-05-01 | C76: 2025-05-01 | D76: 30 | E76: 212617.3144 | F76: =IF(AND(A75="",A77=""),"",IF(A76="",ROUND(SUM($F$25:F75),2),IF(A76=$D$8,$E$24-ROUND(SUM($F$25:F75),2),($G$9-G76)))) -> 24479.47338 | G76: =IF(A75=$D$8,ROUND(SUM($G$25:G75),2),IF(A76>$D$8,"",IF(T76<>T75,ROUND(SUM(V76*$D$9*E75/T76,W76*$D$9*E75/T75),2),ROUND(E75*$D$9*D76/T75,2)))) -> 4871.85 | H76: =IF(A75=$D$8,SUM($H$25:H75),IF(A75>$D$8,"",F76+G76+O76)) -> 29351.32338 | O76: =IF(A75=$D$8,SUM($O$25:O75),IF(A75>$D$8," ",$N$5*$D$6)) -> 0 | P76: =IF(A75=$D$8,XIRR(H$24:H75,C$24:C75),"") ->  | R76: 29351.32338 | S76: 2025 | T76: 365 | U76: 1 | V76: 0 | W76: 30
A77: 53 | B77: 2025-06-01 | C77: 2025-06-01 | D77: 31 | E77: 187780.471 | F77: =IF(AND(A76="",A78=""),"",IF(A77="",ROUND(SUM($F$25:F76),2),IF(A77=$D$8,$E$24-ROUND(SUM($F$25:F76),2),($G$9-G77)))) -> 24836.84338 | G77: =IF(A76=$D$8,ROUND(SUM($G$25:G76),2),IF(A77>$D$8,"",IF(T77<>T76,ROUND(SUM(V77*$D$9*E76/T77,W77*$D$9*E76/T76),2),ROUND(E76*$D$9*D77/T76,2)))) -> 4514.48 | H77: =IF(A76=$D$8,SUM($H$25:H76),IF(A76>$D$8,"",F77+G77+O77)) -> 29351.32338 | O77: =IF(A76=$D$8,SUM($O$25:O76),IF(A76>$D$8," ",$N$5*$D$6)) -> 0 | P77: =IF(A76=$D$8,XIRR(H$24:H76,C$24:C76),"") ->  | R77: 29351.32338 | S77: 2025 | T77: 365 | U77: 1 | V77: 0 | W77: 31
A78: 54 | B78: 2025-07-01 | C78: 2025-07-01 | D78: 30 | E78: 162287.6477 | F78: =IF(AND(A77="",A79=""),"",IF(A78="",ROUND(SUM($F$25:F77),2),IF(A78=$D$8,$E$24-ROUND(SUM($F$25:F77),2),($G$9-G78)))) -> 25492.82338 | G78: =IF(A77=$D$8,ROUND(SUM($G$25:G77),2),IF(A78>$D$8,"",IF(T78<>T77,ROUND(SUM(V78*$D$9*E77/T78,W78*$D$9*E77/T77),2),ROUND(E77*$D$9*D78/T77,2)))) -> 3858.5 | H78: =IF(A77=$D$8,SUM($H$25:H77),IF(A77>$D$8,"",F78+G78+O78)) -> 29351.32338 | O78: =IF(A77=$D$8,SUM($O$25:O77),IF(A77>$D$8," ",$N$5*$D$6)) -> 0 | P78: =IF(A77=$D$8,XIRR(H$24:H77,C$24:C77),"") ->  | R78: 29351.32338 | S78: 2025 | T78: 365 | U78: 1 | V78: 0 | W78: 30
A79: 55 | B79: 2025-08-01 | C79: 2025-08-01 | D79: 31 | E79: 136382.1543 | F79: =IF(AND(A78="",A80=""),"",IF(A79="",ROUND(SUM($F$25:F78),2),IF(A79=$D$8,$E$24-ROUND(SUM($F$25:F78),2),($G$9-G79)))) -> 25905.49338 | G79: =IF(A78=$D$8,ROUND(SUM($G$25:G78),2),IF(A79>$D$8,"",IF(T79<>T78,ROUND(SUM(V79*$D$9*E78/T79,W79*$D$9*E78/T78),2),ROUND(E78*$D$9*D79/T78,2)))) -> 3445.83 | H79: =IF(A78=$D$8,SUM($H$25:H78),IF(A78>$D$8,"",F79+G79+O79)) -> 29351.32338 | O79: =IF(A78=$D$8,SUM($O$25:O78),IF(A78>$D$8," ",$N$5*$D$6)) -> 0 | P79: =IF(A78=$D$8,XIRR(H$24:H78,C$24:C78),"") ->  | R79: 29351.32338 | S79: 2025 | T79: 365 | U79: 1 | V79: 0 | W79: 31
A80: 56 | B80: 2025-09-01 | C80: 2025-09-01 | D80: 31 | E80: 109926.6209 | F80: =IF(AND(A79="",A81=""),"",IF(A80="",ROUND(SUM($F$25:F79),2),IF(A80=$D$8,$E$24-ROUND(SUM($F$25:F79),2),($G$9-G80)))) -> 26455.53338 | G80: =IF(A79=$D$8,ROUND(SUM($G$25:G79),2),IF(A80>$D$8,"",IF(T80<>T79,ROUND(SUM(V80*$D$9*E79/T80,W80*$D$9*E79/T79),2),ROUND(E79*$D$9*D80/T79,2)))) -> 2895.79 | H80: =IF(A79=$D$8,SUM($H$25:H79),IF(A79>$D$8,"",F80+G80+O80)) -> 29351.32338 | O80: =IF(A79=$D$8,SUM($O$25:O79),IF(A79>$D$8," ",$N$5*$D$6)) -> 0 | P80: =IF(A79=$D$8,XIRR(H$24:H79,C$24:C79),"") ->  | R80: 29351.32338 | S80: 2025 | T80: 365 | U80: 1 | V80: 0 | W80: 31
A81: 57 | B81: 2025-10-01 | C81: 2025-10-01 | D81: 30 | E81: 82834.06754 | F81: =IF(AND(A80="",A82=""),"",IF(A81="",ROUND(SUM($F$25:F80),2),IF(A81=$D$8,$E$24-ROUND(SUM($F$25:F80),2),($G$9-G81)))) -> 27092.55338 | G81: =IF(A80=$D$8,ROUND(SUM($G$25:G80),2),IF(A81>$D$8,"",IF(T81<>T80,ROUND(SUM(V81*$D$9*E80/T81,W81*$D$9*E80/T80),2),ROUND(E80*$D$9*D81/T80,2)))) -> 2258.77 | H81: =IF(A80=$D$8,SUM($H$25:H80),IF(A80>$D$8,"",F81+G81+O81)) -> 29351.32338 | O81: =IF(A80=$D$8,SUM($O$25:O80),IF(A80>$D$8," ",$N$5*$D$6)) -> 0 | P81: =IF(A80=$D$8,XIRR(H$24:H80,C$24:C80),"") ->  | R81: 29351.32338 | S81: 2025 | T81: 365 | U81: 1 | V81: 0 | W81: 30
A82: 58 | B82: 2025-11-01 | C82: 2025-11-01 | D82: 31 | E82: 55241.55416 | F82: =IF(AND(A81="",A83=""),"",IF(A82="",ROUND(SUM($F$25:F81),2),IF(A82=$D$8,$E$24-ROUND(SUM($F$25:F81),2),($G$9-G82)))) -> 27592.51338 | G82: =IF(A81=$D$8,ROUND(SUM($G$25:G81),2),IF(A82>$D$8,"",IF(T82<>T81,ROUND(SUM(V82*$D$9*E81/T82,W82*$D$9*E81/T81),2),ROUND(E81*$D$9*D82/T81,2)))) -> 1758.81 | H82: =IF(A81=$D$8,SUM($H$25:H81),IF(A81>$D$8,"",F82+G82+O82)) -> 29351.32338 | O82: =IF(A81=$D$8,SUM($O$25:O81),IF(A81>$D$8," ",$N$5*$D$6)) -> 0 | P82: =IF(A81=$D$8,XIRR(H$24:H81,C$24:C81),"") ->  | R82: 29351.32338 | S82: 2025 | T82: 365 | U82: 1 | V82: 0 | W82: 31
A83: 59 | B83: 2025-12-01 | C83: 2025-12-01 | D83: 30 | E83: 27025.33079 | F83: =IF(AND(A82="",A84=""),"",IF(A83="",ROUND(SUM($F$25:F82),2),IF(A83=$D$8,$E$24-ROUND(SUM($F$25:F82),2),($G$9-G83)))) -> 28216.22338 | G83: =IF(A82=$D$8,ROUND(SUM($G$25:G82),2),IF(A83>$D$8,"",IF(T83<>T82,ROUND(SUM(V83*$D$9*E82/T83,W83*$D$9*E82/T82),2),ROUND(E82*$D$9*D83/T82,2)))) -> 1135.1 | H83: =IF(A82=$D$8,SUM($H$25:H82),IF(A82>$D$8,"",F83+G83+O83)) -> 29351.32338 | O83: =IF(A82=$D$8,SUM($O$25:O82),IF(A82>$D$8," ",$N$5*$D$6)) -> 0 | P83: =IF(A82=$D$8,XIRR(H$24:H82,C$24:C82),"") ->  | R83: 29351.32338 | S83: 2025 | T83: 365 | U83: 1 | V83: 0 | W83: 30
A84: 60 | B84: 2026-01-01 | C84: 2025-12-31 | D84: 30 | E84: 0.0007873094874 | F84: =IF(AND(A83="",A85=""),"",IF(A84="",ROUND(SUM($F$25:F83),2),IF(A84=$D$8,$E$24-ROUND(SUM($F$25:F83),2),($G$9-G84)))) -> 27025.33 | G84: =IF(A83=$D$8,ROUND(SUM($G$25:G83),2),IF(A84>$D$8,"",IF(T84<>T83,ROUND(SUM(V84*$D$9*E83/T84,W84*$D$9*E83/T83),2),ROUND(E83*$D$9*D84/T83,2)))) -> 555.32 | H84: =IF(A83=$D$8,SUM($H$25:H83),IF(A83>$D$8,"",F84+G84+O84)) -> 27580.65 | O84: =IF(A83=$D$8,SUM($O$25:O83),IF(A83>$D$8," ",$N$5*$D$6)) -> 0 | P84: =IF(A83=$D$8,XIRR(H$24:H83,C$24:C83),"") ->  | R84: 27580.65 | S84: 2025 | T84: 365 | U84: 31 | V84: 30 | W84: 0
F85: =IF(AND(A84="",A86=""),"",IF(A85="",ROUND(SUM($F$25:F84),2),IF(A85=$D$8,$E$24-ROUND(SUM($F$25:F84),2),($G$9-G85)))) -> 1000000 | G85: =IF(A84=$D$8,ROUND(SUM($G$25:G84),2),IF(A85>$D$8,"",IF(T85<>T84,ROUND(SUM(V85*$D$9*E84/T85,W85*$D$9*E84/T84),2),ROUND(E84*$D$9*D85/T84,2)))) -> 759308.73 | H85: =IF(A84=$D$8,SUM($H$25:H84),IF(A84>$D$8,"",F85+G85+O85)) -> 1759308.729 | I85: 4000 | J85: =IF($D$8>A84,$N$9,IF($D$8=A84,SUM($J$24:J84)," ")) -> 7500 | K85: =IF($D$8>60,($O$8+$N$10*E84),IF($A$84=$D$8,$K$37+$K$24+$K$49+$K$61+$K$73,"")) -> 208766.1111 | L85: 0 | M85: 0 | N85: 0 | O85: =IF(A84=$D$8,SUM($O$25:O84),IF(A84>$D$8," ",$N$5*$D$6)) -> 0 | P85: =IF(A84=$D$8,XIRR(R$24:R84,C$24:C84),"") -> 0.3869808495 | Q85: 1979574.841 | R85: 3959150.068
F86: =IF(AND(A85="",A87=""),"",IF(A86="",ROUND(SUM($F$25:F85),2),IF(A86=$D$8,$E$24-ROUND(SUM($F$25:F85),2),ROUND($E$24/$D$8,2)))) ->  | G86: =IF(A85=$D$8,ROUND(SUM($G$25:G85),2),IF(A86>$D$8,"",IF(T86<>T85,ROUND(SUM(V86*$D$9*E85/T86,W86*$D$9*E85/T85),2),ROUND(E85*$D$9*D86/T85,2)))) ->  | H86: =IF(A85=$D$8,SUM($H$25:H85),IF(A85>$D$8,"",F86+G86)) ->  | J86: =IF(A85=$D$8,$J$24,"") ->  | O86: =IF(A85=$D$8,SUM($O$25:O85),IF(A85>D9," ",$N$5*$D$6)) ->  | P86: =IF(A85=$D$8,XIRR(H$24:H85,C$24:C85),"") ->  | R86: 0
F87: =IF(AND(A86="",A88=""),"",IF(A87="",ROUND(SUM($F$25:F86),2),IF(A87=$D$8,$E$24-ROUND(SUM($F$25:F86),2),ROUND($E$24/$D$8,2)))) ->  | G87: =IF(A86=$D$8,ROUND(SUM($G$25:G86),2),IF(A87>$D$8,"",IF(T87<>T86,ROUND(SUM(V87*$D$9*E86/T87,W87*$D$9*E86/T86),2),ROUND(E86*$D$9*D87/T86,2)))) ->  | H87: =IF(A86=$D$8,SUM($H$25:H86),IF(A86>$D$8,"",F87+G87)) ->  | P87: =IF(A86=$D$8,XIRR(H$24:H86,C$24:C86),"") ->  | R87: 0
F88: =IF(AND(A87="",A89=""),"",IF(A88="",ROUND(SUM($F$25:F87),2),IF(A88=$D$8,$E$24-ROUND(SUM($F$25:F87),2),ROUND($E$24/$D$8,2)))) ->  | G88: =IF(A87=$D$8,ROUND(SUM($G$25:G87),2),IF(A88>$D$8,"",IF(T88<>T87,ROUND(SUM(V88*$D$9*E87/T88,W88*$D$9*E87/T87),2),ROUND(E87*$D$9*D88/T87,2)))) ->  | H88: =IF(A87=$D$8,SUM($H$25:H87),IF(A87>$D$8,"",F88+G88)) ->  | P88: =IF(A87=$D$8,XIRR(H$24:H87,C$24:C87),"") ->  | R88: 0
F89: =IF(AND(A88="",A90=""),"",IF(A89="",ROUND(SUM($F$25:F88),2),IF(A89=$D$8,$E$24-ROUND(SUM($F$25:F88),2),ROUND($E$24/$D$8,2)))) ->  | G89: =IF(A88=$D$8,ROUND(SUM($G$25:G88),2),IF(A89>$D$8,"",IF(T89<>T88,ROUND(SUM(V89*$D$9*E88/T89,W89*$D$9*E88/T88),2),ROUND(E88*$D$9*D89/T88,2)))) ->  | H89: =IF(A88=$D$8,SUM($H$25:H88),IF(A88>$D$8,"",F89+G89)) ->  | P89: =IF(A88=$D$8,XIRR(H$24:H88,C$24:C88),"") ->  | R89: 0
A90: =IF(A89<$D$8,A89+1,"") ->  | C90: =IF(B90=$D$10,B90-1,(IF(B90>$D$10," ",B90))) ->  | F90: =IF(AND(A89="",A91=""),"",IF(A90="",ROUND(SUM($F$25:F89),2),IF(A90=$D$8,$E$24-ROUND(SUM($F$25:F89),2),ROUND($E$24/$D$8,2)))) ->  | G90: =IF(A89=$D$8,ROUND(SUM($G$25:G89),2),IF(A90>$D$8,"",IF(T90<>T89,ROUND(SUM(V90*$D$9*E89/T90,W90*$D$9*E89/T89),2),ROUND(E89*$D$9*D90/T89,2)))) ->  | H90: =IF(A89=$D$8,SUM($H$25:H89),IF(A89>$D$8,"",F90+G90)) ->  | P90: =IF(A89=$D$8,XIRR(H$24:H89,C$24:C89),"") ->  | R90: =SUM(H90:Q90) -> 0 | S90: =IF(C90="","",YEAR(C90)) ->  | T90: =IF(OR(S90=2024,S90=2028,S90=2016,S90=2020,S90=2024,S90=2028,S90=2032,S90=2036,S90=2040),366,365) ->  | U90: =IF(C90="","",DAY(C90)) ->  | V90: =U90-1 ->  | W90: =D90-V90 -> 
F91: =IF(AND(A90="",A92=""),"",IF(A91="",ROUND(SUM($F$25:F90),2),IF(A91=$D$8,$E$24-ROUND(SUM($F$25:F90),2),ROUND($E$24/$D$8,2)))) ->  | G91: =IF(A90=$D$8,ROUND(SUM($G$25:G90),2),IF(A91>$D$8,"",IF(T91<>T90,ROUND(SUM(V91*$D$9*E90/T91,W91*$D$9*E90/T90),2),ROUND(E90*$D$9*D91/T90,2)))) ->  | H91: =IF(A90=$D$8,SUM($H$25:H90),IF(A90>$D$8,"",F91+G91)) ->  | P91: =IF(A90=$D$8,XIRR(H$24:H90,C$24:C90),"") ->  | Q91: =IF(A90=$D$8,G91+M91+F91+I91+J91+K91+L91+N91+O91,"") ->  | R91: 0
F92: =IF(AND(A91="",A93=""),"",IF(A92="",ROUND(SUM($F$25:F91),2),IF(A92=$D$8,$E$24-ROUND(SUM($F$25:F91),2),ROUND($E$24/$D$8,2)))) ->  | G92: =IF(A91=$D$8,ROUND(SUM($G$25:G91),2),IF(A92>$D$8,"",IF(T92<>T91,ROUND(SUM(V92*$D$9*E91/T92,W92*$D$9*E91/T91),2),ROUND(E91*$D$9*D92/T91,2)))) ->  | H92: =IF(A91=$D$8,SUM($H$25:H91),IF(A91>$D$8,"",F92+G92)) ->  | P92: =IF(A91=$D$8,XIRR(H$24:H91,C$24:C91),"") ->  | R92: 0
F93: =IF(AND(A92="",A94=""),"",IF(A93="",ROUND(SUM($F$25:F92),2),IF(A93=$D$8,$E$24-ROUND(SUM($F$25:F92),2),ROUND($E$24/$D$8,2)))) ->  | G93: =IF(A92=$D$8,ROUND(SUM($G$25:G92),2),IF(A93>$D$8,"",IF(T93<>T92,ROUND(SUM(V93*$D$9*E92/T93,W93*$D$9*E92/T92),2),ROUND(E92*$D$9*D93/T92,2)))) ->  | H93: =IF(A92=$D$8,SUM($H$25:H92),IF(A92>$D$8,"",F93+G93)) ->  | N93: =IF(A92=$D$8,$N$24,"") ->  | P93: =IF(A92=$D$8,XIRR(H$24:H92,C$24:C92),"") ->  | R93: 0
F94: =IF(AND(A93="",A95=""),"",IF(A94="",ROUND(SUM($F$25:F93),2),IF(A94=$D$8,$E$24-ROUND(SUM($F$25:F93),2),ROUND($E$24/$D$8,2)))) ->  | G94: =IF(A93=$D$8,ROUND(SUM($G$25:G93),2),IF(A94>$D$8,"",IF(T94<>T93,ROUND(SUM(V94*$D$9*E93/T94,W94*$D$9*E93/T93),2),ROUND(E93*$D$9*D94/T93,2)))) ->  | H94: =IF(A93=$D$8,SUM($H$25:H93),IF(A93>$D$8,"",F94+G94)) ->  | M94: =IF(A93=$D$8,$M$24,"") ->  | P94: =IF(A93=$D$8,XIRR(H$24:H93,C$24:C93),"") ->  | R94: 0
F95: =IF(AND(A94="",A96=""),"",IF(A95="",ROUND(SUM($F$25:F94),2),IF(A95=$D$8,$E$24-ROUND(SUM($F$25:F94),2),ROUND($E$24/$D$8,2)))) ->  | G95: =IF(A94=$D$8,ROUND(SUM($G$25:G94),2),IF(A95>$D$8,"",IF(T95<>T94,ROUND(SUM(V95*$D$9*E94/T95,W95*$D$9*E94/T94),2),ROUND(E94*$D$9*D95/T94,2)))) ->  | H95: =IF(A94=$D$8,SUM($H$25:H94),IF(A94>$D$8,"",F95+G95)) ->  | P95: =IF(A94=$D$8,XIRR(H$24:H94,C$24:C94),"") ->  | R95: 0
F96: =IF(AND(A95="",A97=""),"",IF(A96="",ROUND(SUM($F$25:F95),2),IF(A96=$D$8,$E$24-ROUND(SUM($F$25:F95),2),ROUND($E$24/$D$8,2)))) ->  | G96: =IF(A95=$D$8,ROUND(SUM($G$25:G95),2),IF(A96>$D$8,"",IF(T96<>T95,ROUND(SUM(V96*$D$9*E95/T96,W96*$D$9*E95/T95),2),ROUND(E95*$D$9*D96/T95,2)))) ->  | H96: =IF(A95=$D$8,SUM($H$25:H95),IF(A95>$D$8,"",F96+G96)) ->  | P96: =IF(A95=$D$8,XIRR(H$24:H95,C$24:C95),"") ->  | R96: 0
F97: =IF(AND(A96="",A98=""),"",IF(A97="",ROUND(SUM($F$25:F96),2),IF(A97=$D$8,$E$24-ROUND(SUM($F$25:F96),2),ROUND($E$24/$D$8,2)))) ->  | G97: =IF(A96=$D$8,ROUND(SUM($G$25:G96),2),IF(A97>$D$8,"",IF(T97<>T96,ROUND(SUM(V97*$D$9*E96/T97,W97*$D$9*E96/T96),2),ROUND(E96*$D$9*D97/T96,2)))) ->  | H97: =IF(A96=$D$8,SUM($H$25:H96),IF(A96>$D$8,"",F97+G97)) ->  | J97: =IF($D$8>A96,$N$9,IF($D$8=A96,SUM($J$24:J96)," ")) ->  | K97: =IF($D$8>72,($O$8+$N$10*E96),IF($A$96=$D$8,$K$37+$K$24+$K$49+$K$61+$K$73+$K$85,"")) ->  | P97: =IF(A96=$D$8,XIRR(H$24:H96,C$24:C96),"") ->  | R97: 0
F98: =IF(AND(A97="",A99=""),"",IF(A98="",ROUND(SUM($F$25:F97),2),IF(A98=$D$8,$E$24-ROUND(SUM($F$25:F97),2),ROUND($E$24/$D$8,2)))) ->  | G98: =IF(A97=$D$8,ROUND(SUM($G$25:G97),2),IF(A98>$D$8,"",IF(T98<>T97,ROUND(SUM(V98*$D$9*E97/T98,W98*$D$9*E97/T97),2),ROUND(E97*$D$9*D98/T97,2)))) ->  | H98: =IF(A97=$D$8,SUM($H$25:H97),IF(A97>$D$8,"",F98+G98)) ->  | J98: =IF(A97=$D$8,$J$24,"") ->  | P98: =IF(A97=$D$8,XIRR(H$24:H97,C$24:C97),"") ->  | R98: 0
F99: =IF(AND(A98="",A100=""),"",IF(A99="",ROUND(SUM($F$25:F98),2),IF(A99=$D$8,$E$24-ROUND(SUM($F$25:F98),2),ROUND($E$24/$D$8,2)))) ->  | G99: =IF(A98=$D$8,ROUND(SUM($G$25:G98),2),IF(A99>$D$8,"",IF(T99<>T98,ROUND(SUM(V99*$D$9*E98/T99,W99*$D$9*E98/T98),2),ROUND(E98*$D$9*D99/T98,2)))) ->  | H99: =IF(A98=$D$8,SUM($H$25:H98),IF(A98>$D$8,"",F99+G99)) ->  | P99: =IF(A98=$D$8,XIRR(H$24:H98,C$24:C98),"") ->  | R99: 0
F100: =IF(AND(A99="",A101=""),"",IF(A100="",ROUND(SUM($F$25:F99),2),IF(A100=$D$8,$E$24-ROUND(SUM($F$25:F99),2),ROUND($E$24/$D$8,2)))) ->  | G100: =IF(A99=$D$8,ROUND(SUM($G$25:G99),2),IF(A100>$D$8,"",IF(T100<>T99,ROUND(SUM(V100*$D$9*E99/T100,W100*$D$9*E99/T99),2),ROUND(E99*$D$9*D100/T99,2)))) ->  | H100: =IF(A99=$D$8,SUM($H$25:H99),IF(A99>$D$8,"",F100+G100)) ->  | P100: =IF(A99=$D$8,XIRR(H$24:H99,C$24:C99),"") ->  | R100: 0
D101: =IF(A101>$D$8,"",C101-C100) ->  | E101: =IF(A101>$D$8,"",E100-F101) ->  | F101: =IF(AND(A100="",A102=""),"",IF(A101="",ROUND(SUM($F$25:F100),2),IF(A101=$D$8,$E$24-ROUND(SUM($F$25:F100),2),ROUND($E$24/$D$8,2)))) ->  | G101: =IF(A100=$D$8,ROUND(SUM($G$25:G100),2),IF(A101>$D$8,"",IF(T101<>T100,ROUND(SUM(V101*$D$9*E100/T101,W101*$D$9*E100/T100),2),ROUND(E100*$D$9*D101/T100,2)))) ->  | H101: =IF(A100=$D$8,SUM($H$25:H100),IF(A100>$D$8,"",F101+G101)) ->  | P101: =IF(A100=$D$8,XIRR(H$24:H100,C$24:C100),"") ->  | R101: 0
B102: =IF(A102="","",EDATE($B$24,A102)) ->  | F102: =IF(AND(A101="",A103=""),"",IF(A102="",ROUND(SUM($F$25:F101),2),IF(A102=$D$8,$E$24-ROUND(SUM($F$25:F101),2),ROUND($E$24/$D$8,2)))) ->  | G102: =IF(A101=$D$8,ROUND(SUM($G$25:G101),2),IF(A102>$D$8,"",IF(T102<>T101,ROUND(SUM(V102*$D$9*E101/T102,W102*$D$9*E101/T101),2),ROUND(E101*$D$9*D102/T101,2)))) ->  | H102: =IF(A101=$D$8,SUM($H$25:H101),IF(A101>$D$8,"",F102+G102)) ->  | I102: =IF(A101=$D$8,$I$24,"") ->  | L102: =IF(A101=$D$8,$L$24,"") ->  | P102: =IF(A101=$D$8,XIRR(H$24:H101,C$24:C101),"") ->  | R102: 0
F103: =IF(AND(A102="",A104=""),"",IF(A103="",ROUND(SUM($F$25:F102),2),IF(A103=$D$8,$E$24-ROUND(SUM($F$25:F102),2),ROUND($E$24/$D$8,2)))) ->  | G103: =IF(A102=$D$8,ROUND(SUM($G$25:G102),2),IF(A103>$D$8,"",IF(T103<>T102,ROUND(SUM(V103*$D$9*E102/T103,W103*$D$9*E102/T102),2),ROUND(E102*$D$9*D103/T102,2)))) ->  | H103: =IF(A102=$D$8,SUM($H$25:H102),IF(A102>$D$8,"",F103+G103)) ->  | P103: =IF(A102=$D$8,XIRR(H$24:H102,C$24:C102),"") ->  | R103: 0
F104: =IF(AND(A103="",A105=""),"",IF(A104="",ROUND(SUM($F$25:F103),2),IF(A104=$D$8,$E$24-ROUND(SUM($F$25:F103),2),ROUND($E$24/$D$8,2)))) ->  | G104: =IF(A103=$D$8,ROUND(SUM($G$25:G103),2),IF(A104>$D$8,"",IF(T104<>T103,ROUND(SUM(V104*$D$9*E103/T104,W104*$D$9*E103/T103),2),ROUND(E103*$D$9*D104/T103,2)))) ->  | H104: =IF(A103=$D$8,SUM($H$25:H103),IF(A103>$D$8,"",F104+G104)) ->  | P104: =IF(A103=$D$8,XIRR(H$24:H103,C$24:C103),"") ->  | R104: 0
F105: =IF(AND(A104="",A106=""),"",IF(A105="",ROUND(SUM($F$25:F104),2),IF(A105=$D$8,$E$24-ROUND(SUM($F$25:F104),2),ROUND($E$24/$D$8,2)))) ->  | G105: =IF(A104=$D$8,ROUND(SUM($G$25:G104),2),IF(A105>$D$8,"",IF(T105<>T104,ROUND(SUM(V105*$D$9*E104/T105,W105*$D$9*E104/T104),2),ROUND(E104*$D$9*D105/T104,2)))) ->  | H105: =IF(A104=$D$8,SUM($H$25:H104),IF(A104>$D$8,"",F105+G105)) ->  | P105: =IF(A104=$D$8,XIRR(H$24:H104,C$24:C104),"") ->  | R105: 0
F106: =IF(AND(A105="",A107=""),"",IF(A106="",ROUND(SUM($F$25:F105),2),IF(A106=$D$8,$E$24-ROUND(SUM($F$25:F105),2),ROUND($E$24/$D$8,2)))) ->  | G106: =IF(A105=$D$8,ROUND(SUM($G$25:G105),2),IF(A106>$D$8,"",IF(T106<>T105,ROUND(SUM(V106*$D$9*E105/T106,W106*$D$9*E105/T105),2),ROUND(E105*$D$9*D106/T105,2)))) ->  | H106: =IF(A105=$D$8,SUM($H$25:H105),IF(A105>$D$8,"",F106+G106)) ->  | P106: =IF(A105=$D$8,XIRR(H$24:H105,C$24:C105),"") ->  | R106: 0
F107: =IF(AND(A106="",A108=""),"",IF(A107="",ROUND(SUM($F$25:F106),2),IF(A107=$D$8,$E$24-ROUND(SUM($F$25:F106),2),ROUND($E$24/$D$8,2)))) ->  | G107: =IF(A106=$D$8,ROUND(SUM($G$25:G106),2),IF(A107>$D$8,"",IF(T107<>T106,ROUND(SUM(V107*$D$9*E106/T107,W107*$D$9*E106/T106),2),ROUND(E106*$D$9*D107/T106,2)))) ->  | H107: =IF(A106=$D$8,SUM($H$25:H106),IF(A106>$D$8,"",F107+G107)) ->  | P107: =IF(A106=$D$8,XIRR(H$24:H106,C$24:C106),"") ->  | R107: 0
F108: =IF(AND(A107="",A109=""),"",IF(A108="",ROUND(SUM($F$25:F107),2),IF(A108=$D$8,$E$24-ROUND(SUM($F$25:F107),2),ROUND($E$24/$D$8,2)))) ->  | G108: =IF(A107=$D$8,ROUND(SUM($G$25:G107),2),IF(A108>$D$8,"",IF(T108<>T107,ROUND(SUM(V108*$D$9*E107/T108,W108*$D$9*E107/T107),2),ROUND(E107*$D$9*D108/T107,2)))) ->  | H108: =IF(A107=$D$8,SUM($H$25:H107),IF(A107>$D$8,"",F108+G108)) ->  | P108: =IF(A107=$D$8,XIRR(H$24:H107,C$24:C107),"") ->  | R108: 0
F109: =IF(AND(A108="",A110=""),"",IF(A109="",ROUND(SUM($F$25:F108),2),IF(A109=$D$8,$E$24-ROUND(SUM($F$25:F108),2),ROUND($E$24/$D$8,2)))) ->  | G109: =IF(A108=$D$8,ROUND(SUM($G$25:G108),2),IF(A109>$D$8,"",IF(T109<>T108,ROUND(SUM(V109*$D$9*E108/T109,W109*$D$9*E108/T108),2),ROUND(E108*$D$9*D109/T108,2)))) ->  | H109: =IF(A108=$D$8,SUM($H$25:H108),IF(A108>$D$8,"",F109+G109)) ->  | J109: =IF($D$8>A108,$N$9,IF($D$8=A108,SUM($J$24:J108)," ")) ->  | K109: =IF($D$8>84,($O$8+$N$10*E108),IF($A$108=$D$8,$K$37+$K$24+$K$49+$K$61+$K$73+$K$85+$K$97,"")) ->  | P109: =IF(A108=$D$8,XIRR(H$24:H108,C$24:C108),"") ->  | R109: 0
F110: =IF(AND(A109="",A111=""),"",IF(A110="",ROUND(SUM($F$25:F109),2),IF(A110=$D$8,$E$24-ROUND(SUM($F$25:F109),2),ROUND($E$24/$D$8,2)))) ->  | G110: =IF(A109=$D$8,ROUND(SUM($G$25:G109),2),IF(A110>$D$8,"",IF(T110<>T109,ROUND(SUM(V110*$D$9*E109/T110,W110*$D$9*E109/T109),2),ROUND(E109*$D$9*D110/T109,2)))) ->  | H110: =IF(A109=$D$8,SUM($H$25:H109),IF(A109>$D$8,"",F110+G110)) ->  | J110: =IF(A109=$D$8,$J$24,"") ->  | P110: =IF(A109=$D$8,XIRR(H$24:H109,C$24:C109),"") ->  | R110: 0
F111: =IF(AND(A110="",A112=""),"",IF(A111="",ROUND(SUM($F$25:F110),2),IF(A111=$D$8,$E$24-ROUND(SUM($F$25:F110),2),ROUND($E$24/$D$8,2)))) ->  | G111: =IF(A110=$D$8,ROUND(SUM($G$25:G110),2),IF(A111>$D$8,"",IF(T111<>T110,ROUND(SUM(V111*$D$9*E110/T111,W111*$D$9*E110/T110),2),ROUND(E110*$D$9*D111/T110,2)))) ->  | H111: =IF(A110=$D$8,SUM($H$25:H110),IF(A110>$D$8,"",F111+G111)) ->  | P111: =IF(A110=$D$8,XIRR(H$24:H110,C$24:C110),"") ->  | R111: 0
F112: =IF(AND(A111="",A113=""),"",IF(A112="",ROUND(SUM($F$25:F111),2),IF(A112=$D$8,$E$24-ROUND(SUM($F$25:F111),2),ROUND($E$24/$D$8,2)))) ->  | G112: =IF(A111=$D$8,ROUND(SUM($G$25:G111),2),IF(A112>$D$8,"",IF(T112<>T111,ROUND(SUM(V112*$D$9*E111/T112,W112*$D$9*E111/T111),2),ROUND(E111*$D$9*D112/T111,2)))) ->  | H112: =IF(A111=$D$8,SUM($H$25:H111),IF(A111>$D$8,"",F112+G112)) ->  | P112: =IF(A111=$D$8,XIRR(H$24:H111,C$24:C111),"") ->  | R112: 0
F113: =IF(AND(A112="",A114=""),"",IF(A113="",ROUND(SUM($F$25:F112),2),IF(A113=$D$8,$E$24-ROUND(SUM($F$25:F112),2),ROUND($E$24/$D$8,2)))) ->  | G113: =IF(A112=$D$8,ROUND(SUM($G$25:G112),2),IF(A113>$D$8,"",IF(T113<>T112,ROUND(SUM(V113*$D$9*E112/T113,W113*$D$9*E112/T112),2),ROUND(E112*$D$9*D113/T112,2)))) ->  | H113: =IF(A112=$D$8,SUM($H$25:H112),IF(A112>$D$8,"",F113+G113)) ->  | P113: =IF(A112=$D$8,XIRR(H$24:H112,C$24:C112),"") ->  | R113: 0
F114: =IF(AND(A113="",A115=""),"",IF(A114="",ROUND(SUM($F$25:F113),2),IF(A114=$D$8,$E$24-ROUND(SUM($F$25:F113),2),ROUND($E$24/$D$8,2)))) ->  | G114: =IF(A113=$D$8,ROUND(SUM($G$25:G113),2),IF(A114>$D$8,"",IF(T114<>T113,ROUND(SUM(V114*$D$9*E113/T114,W114*$D$9*E113/T113),2),ROUND(E113*$D$9*D114/T113,2)))) ->  | H114: =IF(A113=$D$8,SUM($H$25:H113),IF(A113>$D$8,"",F114+G114)) ->  | P114: =IF(A113=$D$8,XIRR(H$24:H113,C$24:C113),"") ->  | R114: 0
F115: =IF(AND(A114="",A116=""),"",IF(A115="",ROUND(SUM($F$25:F114),2),IF(A115=$D$8,$E$24-ROUND(SUM($F$25:F114),2),ROUND($E$24/$D$8,2)))) ->  | G115: =IF(A114=$D$8,ROUND(SUM($G$25:G114),2),IF(A115>$D$8,"",IF(T115<>T114,ROUND(SUM(V115*$D$9*E114/T115,W115*$D$9*E114/T114),2),ROUND(E114*$D$9*D115/T114,2)))) ->  | H115: =IF(A114=$D$8,SUM($H$25:H114),IF(A114>$D$8,"",F115+G115)) ->  | P115: =IF(A114=$D$8,XIRR(H$24:H114,C$24:C114),"") ->  | R115: 0
F116: =IF(AND(A115="",A117=""),"",IF(A116="",ROUND(SUM($F$25:F115),2),IF(A116=$D$8,$E$24-ROUND(SUM($F$25:F115),2),ROUND($E$24/$D$8,2)))) ->  | G116: =IF(A115=$D$8,ROUND(SUM($G$25:G115),2),IF(A116>$D$8,"",IF(T116<>T115,ROUND(SUM(V116*$D$9*E115/T116,W116*$D$9*E115/T115),2),ROUND(E115*$D$9*D116/T115,2)))) ->  | H116: =IF(A115=$D$8,SUM($H$25:H115),IF(A115>$D$8,"",F116+G116)) ->  | P116: =IF(A115=$D$8,XIRR(H$24:H115,C$24:C115),"") ->  | R116: 0
F117: =IF(AND(A116="",A118=""),"",IF(A117="",ROUND(SUM($F$25:F116),2),IF(A117=$D$8,$E$24-ROUND(SUM($F$25:F116),2),ROUND($E$24/$D$8,2)))) ->  | G117: =IF(A116=$D$8,ROUND(SUM($G$25:G116),2),IF(A117>$D$8,"",IF(T117<>T116,ROUND(SUM(V117*$D$9*E116/T117,W117*$D$9*E116/T116),2),ROUND(E116*$D$9*D117/T116,2)))) ->  | H117: =IF(A116=$D$8,SUM($H$25:H116),IF(A116>$D$8,"",F117+G117)) ->  | P117: =IF(A116=$D$8,XIRR(H$24:H116,C$24:C116),"") ->  | R117: 0
F118: =IF(AND(A117="",A119=""),"",IF(A118="",ROUND(SUM($F$25:F117),2),IF(A118=$D$8,$E$24-ROUND(SUM($F$25:F117),2),ROUND($E$24/$D$8,2)))) ->  | G118: =IF(A117=$D$8,ROUND(SUM($G$25:G117),2),IF(A118>$D$8,"",IF(T118<>T117,ROUND(SUM(V118*$D$9*E117/T118,W118*$D$9*E117/T117),2),ROUND(E117*$D$9*D118/T117,2)))) ->  | H118: =IF(A117=$D$8,SUM($H$25:H117),IF(A117>$D$8,"",F118+G118)) ->  | P118: =IF(A117=$D$8,XIRR(H$24:H117,C$24:C117),"") ->  | R118: 0
F119: =IF(AND(A118="",A120=""),"",IF(A119="",ROUND(SUM($F$25:F118),2),IF(A119=$D$8,$E$24-ROUND(SUM($F$25:F118),2),ROUND($E$24/$D$8,2)))) ->  | G119: =IF(A118=$D$8,ROUND(SUM($G$25:G118),2),IF(A119>$D$8,"",IF(T119<>T118,ROUND(SUM(V119*$D$9*E118/T119,W119*$D$9*E118/T118),2),ROUND(E118*$D$9*D119/T118,2)))) ->  | H119: =IF(A118=$D$8,SUM($H$25:H118),IF(A118>$D$8,"",F119+G119)) ->  | P119: =IF(A118=$D$8,XIRR(H$24:H118,C$24:C118),"") ->  | R119: 0
F120: =IF(AND(A119="",A121=""),"",IF(A120="",ROUND(SUM($F$25:F119),2),IF(A120=$D$8,$E$24-ROUND(SUM($F$25:F119),2),ROUND($E$24/$D$8,2)))) ->  | G120: =IF(A119=$D$8,ROUND(SUM($G$25:G119),2),IF(A120>$D$8,"",IF(T120<>T119,ROUND(SUM(V120*$D$9*E119/T120,W120*$D$9*E119/T119),2),ROUND(E119*$D$9*D120/T119,2)))) ->  | H120: =IF(A119=$D$8,SUM($H$25:H119),IF(A119>$D$8,"",F120+G120)) ->  | P120: =IF(A119=$D$8,XIRR(H$24:H119,C$24:C119),"") ->  | R120: 0
F121: =IF(AND(A120="",A122=""),"",IF(A121="",ROUND(SUM($F$25:F120),2),IF(A121=$D$8,$E$24-ROUND(SUM($F$25:F120),2),ROUND($E$24/$D$8,2)))) ->  | G121: =IF(A120=$D$8,ROUND(SUM($G$25:G120),2),IF(A121>$D$8,"",IF(T121<>T120,ROUND(SUM(V121*$D$9*E120/T121,W121*$D$9*E120/T120),2),ROUND(E120*$D$9*D121/T120,2)))) ->  | H121: =IF(A120=$D$8,SUM($H$25:H120),IF(A120>$D$8,"",F121+G121)) ->  | J121: =IF($D$8>A120,$N$9,IF($D$8=A120,SUM($J$24:J120)," ")) ->  | K121: =IF($D$8>96,($O$8+$N$10*E120),IF($A$120=$D$8,$K$37+$K$24+$K$49+$K$61+$K$73+$K$85+$K$97+$K$109,"")) ->  | P121: =IF(A120=$D$8,XIRR(H$24:H120,C$24:C120),"") ->  | R121: 0
F122: =IF(AND(A121="",A123=""),"",IF(A122="",ROUND(SUM($F$25:F121),2),IF(A122=$D$8,$E$24-ROUND(SUM($F$25:F121),2),ROUND($E$24/$D$8,2)))) ->  | G122: =IF(A121=$D$8,ROUND(SUM($G$25:G121),2),IF(A122>$D$8,"",IF(T122<>T121,ROUND(SUM(V122*$D$9*E121/T122,W122*$D$9*E121/T121),2),ROUND(E121*$D$9*D122/T121,2)))) ->  | H122: =IF(A121=$D$8,SUM($H$25:H121),IF(A121>$D$8,"",F122+G122)) ->  | J122: =IF(A121=$D$8,$J$24,"") ->  | P122: =IF(A121=$D$8,XIRR(H$24:H121,C$24:C121),"") ->  | R122: 0
F123: =IF(AND(A122="",A124=""),"",IF(A123="",ROUND(SUM($F$25:F122),2),IF(A123=$D$8,$E$24-ROUND(SUM($F$25:F122),2),ROUND($E$24/$D$8,2)))) ->  | G123: =IF(A122=$D$8,ROUND(SUM($G$25:G122),2),IF(A123>$D$8,"",IF(T123<>T122,ROUND(SUM(V123*$D$9*E122/T123,W123*$D$9*E122/T122),2),ROUND(E122*$D$9*D123/T122,2)))) ->  | H123: =IF(A122=$D$8,SUM($H$25:H122),IF(A122>$D$8,"",F123+G123)) ->  | P123: =IF(A122=$D$8,XIRR(H$24:H122,C$24:C122),"") ->  | R123: 0
F124: =IF(AND(A123="",A125=""),"",IF(A124="",ROUND(SUM($F$25:F123),2),IF(A124=$D$8,$E$24-ROUND(SUM($F$25:F123),2),ROUND($E$24/$D$8,2)))) ->  | G124: =IF(A123=$D$8,ROUND(SUM($G$25:G123),2),IF(A124>$D$8,"",IF(T124<>T123,ROUND(SUM(V124*$D$9*E123/T124,W124*$D$9*E123/T123),2),ROUND(E123*$D$9*D124/T123,2)))) ->  | H124: =IF(A123=$D$8,SUM($H$25:H123),IF(A123>$D$8,"",F124+G124)) ->  | P124: =IF(A123=$D$8,XIRR(H$24:H123,C$24:C123),"") ->  | R124: 0
F125: =IF(AND(A124="",A126=""),"",IF(A125="",ROUND(SUM($F$25:F124),2),IF(A125=$D$8,$E$24-ROUND(SUM($F$25:F124),2),ROUND($E$24/$D$8,2)))) ->  | G125: =IF(A124=$D$8,ROUND(SUM($G$25:G124),2),IF(A125>$D$8,"",IF(T125<>T124,ROUND(SUM(V125*$D$9*E124/T125,W125*$D$9*E124/T124),2),ROUND(E124*$D$9*D125/T124,2)))) ->  | H125: =IF(A124=$D$8,SUM($H$25:H124),IF(A124>$D$8,"",F125+G125)) ->  | P125: =IF(A124=$D$8,XIRR(H$24:H124,C$24:C124),"") ->  | R125: 0
F126: =IF(AND(A125="",A127=""),"",IF(A126="",ROUND(SUM($F$25:F125),2),IF(A126=$D$8,$E$24-ROUND(SUM($F$25:F125),2),ROUND($E$24/$D$8,2)))) ->  | G126: =IF(A125=$D$8,ROUND(SUM($G$25:G125),2),IF(A126>$D$8,"",IF(T126<>T125,ROUND(SUM(V126*$D$9*E125/T126,W126*$D$9*E125/T125),2),ROUND(E125*$D$9*D126/T125,2)))) ->  | H126: =IF(A125=$D$8,SUM($H$25:H125),IF(A125>$D$8,"",F126+G126)) ->  | P126: =IF(A125=$D$8,XIRR(H$24:H125,C$24:C125),"") ->  | R126: 0
F127: =IF(AND(A126="",A128=""),"",IF(A127="",ROUND(SUM($F$25:F126),2),IF(A127=$D$8,$E$24-ROUND(SUM($F$25:F126),2),ROUND($E$24/$D$8,2)))) ->  | G127: =IF(A126=$D$8,ROUND(SUM($G$25:G126),2),IF(A127>$D$8,"",IF(T127<>T126,ROUND(SUM(V127*$D$9*E126/T127,W127*$D$9*E126/T126),2),ROUND(E126*$D$9*D127/T126,2)))) ->  | H127: =IF(A126=$D$8,SUM($H$25:H126),IF(A126>$D$8,"",F127+G127)) ->  | P127: =IF(A126=$D$8,XIRR(H$24:H126,C$24:C126),"") ->  | R127: 0
F128: =IF(AND(A127="",A129=""),"",IF(A128="",ROUND(SUM($F$25:F127),2),IF(A128=$D$8,$E$24-ROUND(SUM($F$25:F127),2),ROUND($E$24/$D$8,2)))) ->  | G128: =IF(A127=$D$8,ROUND(SUM($G$25:G127),2),IF(A128>$D$8,"",IF(T128<>T127,ROUND(SUM(V128*$D$9*E127/T128,W128*$D$9*E127/T127),2),ROUND(E127*$D$9*D128/T127,2)))) ->  | H128: =IF(A127=$D$8,SUM($H$25:H127),IF(A127>$D$8,"",F128+G128)) ->  | P128: =IF(A127=$D$8,XIRR(H$24:H127,C$24:C127),"") ->  | R128: 0
F129: =IF(AND(A128="",A130=""),"",IF(A129="",ROUND(SUM($F$25:F128),2),IF(A129=$D$8,$E$24-ROUND(SUM($F$25:F128),2),ROUND($E$24/$D$8,2)))) ->  | G129: =IF(A128=$D$8,ROUND(SUM($G$25:G128),2),IF(A129>$D$8,"",IF(T129<>T128,ROUND(SUM(V129*$D$9*E128/T129,W129*$D$9*E128/T128),2),ROUND(E128*$D$9*D129/T128,2)))) ->  | H129: =IF(A128=$D$8,SUM($H$25:H128),IF(A128>$D$8,"",F129+G129)) ->  | P129: =IF(A128=$D$8,XIRR(H$24:H128,C$24:C128),"") ->  | R129: 0
F130: =IF(AND(A129="",A131=""),"",IF(A130="",ROUND(SUM($F$25:F129),2),IF(A130=$D$8,$E$24-ROUND(SUM($F$25:F129),2),ROUND($E$24/$D$8,2)))) ->  | G130: =IF(A129=$D$8,ROUND(SUM($G$25:G129),2),IF(A130>$D$8,"",IF(T130<>T129,ROUND(SUM(V130*$D$9*E129/T130,W130*$D$9*E129/T129),2),ROUND(E129*$D$9*D130/T129,2)))) ->  | H130: =IF(A129=$D$8,SUM($H$25:H129),IF(A129>$D$8,"",F130+G130)) ->  | P130: =IF(A129=$D$8,XIRR(H$24:H129,C$24:C129),"") ->  | R130: 0
F131: =IF(AND(A130="",A132=""),"",IF(A131="",ROUND(SUM($F$25:F130),2),IF(A131=$D$8,$E$24-ROUND(SUM($F$25:F130),2),ROUND($E$24/$D$8,2)))) ->  | G131: =IF(A130=$D$8,ROUND(SUM($G$25:G130),2),IF(A131>$D$8,"",IF(T131<>T130,ROUND(SUM(V131*$D$9*E130/T131,W131*$D$9*E130/T130),2),ROUND(E130*$D$9*D131/T130,2)))) ->  | H131: =IF(A130=$D$8,SUM($H$25:H130),IF(A130>$D$8,"",F131+G131)) ->  | P131: =IF(A130=$D$8,XIRR(H$24:H130,C$24:C130),"") ->  | R131: 0
F132: =IF(AND(A131="",A133=""),"",IF(A132="",ROUND(SUM($F$25:F131),2),IF(A132=$D$8,$E$24-ROUND(SUM($F$25:F131),2),ROUND($E$24/$D$8,2)))) ->  | G132: =IF(A131=$D$8,ROUND(SUM($G$25:G131),2),IF(A132>$D$8,"",IF(T132<>T131,ROUND(SUM(V132*$D$9*E131/T132,W132*$D$9*E131/T131),2),ROUND(E131*$D$9*D132/T131,2)))) ->  | H132: =IF(A131=$D$8,SUM($H$25:H131),IF(A131>$D$8,"",F132+G132)) ->  | P132: =IF(A131=$D$8,XIRR(H$24:H131,C$24:C131),"") ->  | R132: 0
F133: =IF(AND(A132="",A134=""),"",IF(A133="",ROUND(SUM($F$25:F132),2),IF(A133=$D$8,$E$24-ROUND(SUM($F$25:F132),2),ROUND($E$24/$D$8,2)))) ->  | G133: =IF(A132=$D$8,ROUND(SUM($G$25:G132),2),IF(A133>$D$8,"",IF(T133<>T132,ROUND(SUM(V133*$D$9*E132/T133,W133*$D$9*E132/T132),2),ROUND(E132*$D$9*D133/T132,2)))) ->  | H133: =IF(A132=$D$8,SUM($H$25:H132),IF(A132>$D$8,"",F133+G133)) ->  | J133: =IF($D$8>A132,$N$9,IF($D$8=A132,SUM($J$24:J132)," ")) ->  | K133: =IF($D$8>A132,($O$8+$N$10*E132),IF(A132=$D$8,$K$37+$K$24+$K$49+$K$61+$K$73+$K$85+$K$97+$K$109+$K$121,"")) ->  | P133: =IF(A132=$D$8,XIRR(H$24:H132,C$24:C132),"") ->  | R133: 0
F134: =IF(AND(A133="",A135=""),"",IF(A134="",ROUND(SUM($F$25:F133),2),IF(A134=$D$8,$E$24-ROUND(SUM($F$25:F133),2),ROUND($E$24/$D$8,2)))) ->  | G134: =IF(A133=$D$8,ROUND(SUM($G$25:G133),2),IF(A134>$D$8,"",IF(T134<>T133,ROUND(SUM(V134*$D$9*E133/T134,W134*$D$9*E133/T133),2),ROUND(E133*$D$9*D134/T133,2)))) ->  | H134: =IF(A133=$D$8,SUM($H$25:H133),IF(A133>$D$8,"",F134+G134)) ->  | J134: =IF(A133=$D$8,$J$24,"") ->  | P134: =IF(A133=$D$8,XIRR(H$24:H133,C$24:C133),"") ->  | R134: 0
F135: =IF(AND(A134="",A136=""),"",IF(A135="",ROUND(SUM($F$25:F134),2),IF(A135=$D$8,$E$24-ROUND(SUM($F$25:F134),2),ROUND($E$24/$D$8,2)))) ->  | G135: =IF(A134=$D$8,ROUND(SUM($G$25:G134),2),IF(A135>$D$8,"",IF(T135<>T134,ROUND(SUM(V135*$D$9*E134/T135,W135*$D$9*E134/T134),2),ROUND(E134*$D$9*D135/T134,2)))) ->  | H135: =IF(A134=$D$8,SUM($H$25:H134),IF(A134>$D$8,"",F135+G135)) ->  | P135: =IF(A134=$D$8,XIRR(H$24:H134,C$24:C134),"") ->  | R135: 0
F136: =IF(AND(A135="",A137=""),"",IF(A136="",ROUND(SUM($F$25:F135),2),IF(A136=$D$8,$E$24-ROUND(SUM($F$25:F135),2),ROUND($E$24/$D$8,2)))) ->  | G136: =IF(A135=$D$8,ROUND(SUM($G$25:G135),2),IF(A136>$D$8,"",IF(T136<>T135,ROUND(SUM(V136*$D$9*E135/T136,W136*$D$9*E135/T135),2),ROUND(E135*$D$9*D136/T135,2)))) ->  | H136: =IF(A135=$D$8,SUM($H$25:H135),IF(A135>$D$8,"",F136+G136)) ->  | P136: =IF(A135=$D$8,XIRR(H$24:H135,C$24:C135),"") ->  | R136: 0
F137: =IF(AND(A136="",A138=""),"",IF(A137="",ROUND(SUM($F$25:F136),2),IF(A137=$D$8,$E$24-ROUND(SUM($F$25:F136),2),ROUND($E$24/$D$8,2)))) ->  | G137: =IF(A136=$D$8,ROUND(SUM($G$25:G136),2),IF(A137>$D$8,"",IF(T137<>T136,ROUND(SUM(V137*$D$9*E136/T137,W137*$D$9*E136/T136),2),ROUND(E136*$D$9*D137/T136,2)))) ->  | H137: =IF(A136=$D$8,SUM($H$25:H136),IF(A136>$D$8,"",F137+G137)) ->  | P137: =IF(A136=$D$8,XIRR(H$24:H136,C$24:C136),"") ->  | R137: 0
F138: =IF(AND(A137="",A139=""),"",IF(A138="",ROUND(SUM($F$25:F137),2),IF(A138=$D$8,$E$24-ROUND(SUM($F$25:F137),2),ROUND($E$24/$D$8,2)))) ->  | G138: =IF(A137=$D$8,ROUND(SUM($G$25:G137),2),IF(A138>$D$8,"",IF(T138<>T137,ROUND(SUM(V138*$D$9*E137/T138,W138*$D$9*E137/T137),2),ROUND(E137*$D$9*D138/T137,2)))) ->  | H138: =IF(A137=$D$8,SUM($H$25:H137),IF(A137>$D$8,"",F138+G138)) ->  | P138: =IF(A137=$D$8,XIRR(H$24:H137,C$24:C137),"") ->  | R138: 0
F139: =IF(AND(A138="",A140=""),"",IF(A139="",ROUND(SUM($F$25:F138),2),IF(A139=$D$8,$E$24-ROUND(SUM($F$25:F138),2),ROUND($E$24/$D$8,2)))) ->  | G139: =IF(A138=$D$8,ROUND(SUM($G$25:G138),2),IF(A139>$D$8,"",IF(T139<>T138,ROUND(SUM(V139*$D$9*E138/T139,W139*$D$9*E138/T138),2),ROUND(E138*$D$9*D139/T138,2)))) ->  | H139: =IF(A138=$D$8,SUM($H$25:H138),IF(A138>$D$8,"",F139+G139)) ->  | P139: =IF(A138=$D$8,XIRR(H$24:H138,C$24:C138),"") ->  | R139: 0
F140: =IF(AND(A139="",A141=""),"",IF(A140="",ROUND(SUM($F$25:F139),2),IF(A140=$D$8,$E$24-ROUND(SUM($F$25:F139),2),ROUND($E$24/$D$8,2)))) ->  | G140: =IF(A139=$D$8,ROUND(SUM($G$25:G139),2),IF(A140>$D$8,"",IF(T140<>T139,ROUND(SUM(V140*$D$9*E139/T140,W140*$D$9*E139/T139),2),ROUND(E139*$D$9*D140/T139,2)))) ->  | H140: =IF(A139=$D$8,SUM($H$25:H139),IF(A139>$D$8,"",F140+G140)) ->  | P140: =IF(A139=$D$8,XIRR(H$24:H139,C$24:C139),"") ->  | R140: 0
F141: =IF(AND(A140="",A142=""),"",IF(A141="",ROUND(SUM($F$25:F140),2),IF(A141=$D$8,$E$24-ROUND(SUM($F$25:F140),2),ROUND($E$24/$D$8,2)))) ->  | G141: =IF(A140=$D$8,ROUND(SUM($G$25:G140),2),IF(A141>$D$8,"",IF(T141<>T140,ROUND(SUM(V141*$D$9*E140/T141,W141*$D$9*E140/T140),2),ROUND(E140*$D$9*D141/T140,2)))) ->  | H141: =IF(A140=$D$8,SUM($H$25:H140),IF(A140>$D$8,"",F141+G141)) ->  | P141: =IF(A140=$D$8,XIRR(H$24:H140,C$24:C140),"") ->  | R141: 0
F142: =IF(AND(A141="",A143=""),"",IF(A142="",ROUND(SUM($F$25:F141),2),IF(A142=$D$8,$E$24-ROUND(SUM($F$25:F141),2),ROUND($E$24/$D$8,2)))) ->  | G142: =IF(A141=$D$8,ROUND(SUM($G$25:G141),2),IF(A142>$D$8,"",IF(T142<>T141,ROUND(SUM(V142*$D$9*E141/T142,W142*$D$9*E141/T141),2),ROUND(E141*$D$9*D142/T141,2)))) ->  | H142: =IF(A141=$D$8,SUM($H$25:H141),IF(A141>$D$8,"",F142+G142)) ->  | P142: =IF(A141=$D$8,XIRR(H$24:H141,C$24:C141),"") ->  | R142: 0
F143: =IF(AND(A142="",A144=""),"",IF(A143="",ROUND(SUM($F$25:F142),2),IF(A143=$D$8,$E$24-ROUND(SUM($F$25:F142),2),ROUND($E$24/$D$8,2)))) ->  | G143: =IF(A142=$D$8,ROUND(SUM($G$25:G142),2),IF(A143>$D$8,"",IF(T143<>T142,ROUND(SUM(V143*$D$9*E142/T143,W143*$D$9*E142/T142),2),ROUND(E142*$D$9*D143/T142,2)))) ->  | H143: =IF(A142=$D$8,SUM($H$25:H142),IF(A142>$D$8,"",F143+G143)) ->  | P143: =IF(A142=$D$8,XIRR(H$24:H142,C$24:C142),"") ->  | R143: 0
F144: =IF(AND(A143="",A145=""),"",IF(A144="",ROUND(SUM($F$25:F143),2),IF(A144=$D$8,$E$24-ROUND(SUM($F$25:F143),2),ROUND($E$24/$D$8,2)))) ->  | G144: =IF(A143=$D$8,ROUND(SUM($G$25:G143),2),IF(A144>$D$8,"",IF(T144<>T143,ROUND(SUM(V144*$D$9*E143/T144,W144*$D$9*E143/T143),2),ROUND(E143*$D$9*D144/T143,2)))) ->  | H144: =IF(A143=$D$8,SUM($H$25:H143),IF(A143>$D$8,"",F144+G144)) ->  | P144: =IF(A143=$D$8,XIRR(H$24:H143,C$24:C143),"") ->  | R144: 0
F145: =IF(AND(A144="",A146=""),"",IF(A145="",ROUND(SUM($F$25:F144),2),IF(A145=$D$8,$E$24-ROUND(SUM($F$25:F144),2),ROUND($E$24/$D$8,2)))) ->  | G145: =IF(A144=$D$8,ROUND(SUM($G$25:G144),2),IF(A145>$D$8,"",IF(T145<>T144,ROUND(SUM(V145*$D$9*E144/T145,W145*$D$9*E144/T144),2),ROUND(E144*$D$9*D145/T144,2)))) ->  | H145: =IF(A144=$D$8,SUM($H$25:H144),IF(A144>$D$8,"",F145+G145)) ->  | J145: =IF($D$8>A144,$N$9,IF($D$8=A144,SUM($J$24:J144)," ")) ->  | K145: =IF($D$8>A144,($O$8+$N$10*E144),IF(A144=$D$8,$K$37+$K$24+$K$49+$K$61+$K$73+$K$85+$K$97+$K$109+$K$121+$K$133,"")) ->  | P145: =IF(A144=$D$8,XIRR(H$24:H144,C$24:C144),"") ->  | R145: 0
F146: =IF(AND(A145="",A147=""),"",IF(A146="",ROUND(SUM($F$25:F145),2),IF(A146=$D$8,$E$24-ROUND(SUM($F$25:F145),2),ROUND($E$24/$D$8,2)))) ->  | G146: =IF(A145=$D$8,ROUND(SUM($G$25:G145),2),IF(A146>$D$8,"",IF(T146<>T145,ROUND(SUM(V146*$D$9*E145/T146,W146*$D$9*E145/T145),2),ROUND(E145*$D$9*D146/T145,2)))) ->  | H146: =IF(A145=$D$8,SUM($H$25:H145),IF(A145>$D$8,"",F146+G146)) ->  | J146: =IF(A145=$D$8,$J$24,"") ->  | P146: =IF(A145=$D$8,XIRR(H$24:H145,C$24:C145),"") ->  | R146: 0
F147: =IF(AND(A146="",A148=""),"",IF(A147="",ROUND(SUM($F$25:F146),2),IF(A147=$D$8,$E$24-ROUND(SUM($F$25:F146),2),ROUND($E$24/$D$8,2)))) ->  | G147: =IF(A146=$D$8,ROUND(SUM($G$25:G146),2),IF(A147>$D$8,"",IF(T147<>T146,ROUND(SUM(V147*$D$9*E146/T147,W147*$D$9*E146/T146),2),ROUND(E146*$D$9*D147/T146,2)))) ->  | H147: =IF(A146=$D$8,SUM($H$25:H146),IF(A146>$D$8,"",F147+G147)) ->  | P147: =IF(A146=$D$8,XIRR(H$24:H146,C$24:C146),"") ->  | R147: 0
F148: =IF(AND(A147="",A149=""),"",IF(A148="",ROUND(SUM($F$25:F147),2),IF(A148=$D$8,$E$24-ROUND(SUM($F$25:F147),2),ROUND($E$24/$D$8,2)))) ->  | G148: =IF(A147=$D$8,ROUND(SUM($G$25:G147),2),IF(A148>$D$8,"",IF(T148<>T147,ROUND(SUM(V148*$D$9*E147/T148,W148*$D$9*E147/T147),2),ROUND(E147*$D$9*D148/T147,2)))) ->  | H148: =IF(A147=$D$8,SUM($H$25:H147),IF(A147>$D$8,"",F148+G148)) ->  | P148: =IF(A147=$D$8,XIRR(H$24:H147,C$24:C147),"") ->  | R148: 0
F149: =IF(AND(A148="",A150=""),"",IF(A149="",ROUND(SUM($F$25:F148),2),IF(A149=$D$8,$E$24-ROUND(SUM($F$25:F148),2),ROUND($E$24/$D$8,2)))) ->  | G149: =IF(A148=$D$8,ROUND(SUM($G$25:G148),2),IF(A149>$D$8,"",IF(T149<>T148,ROUND(SUM(V149*$D$9*E148/T149,W149*$D$9*E148/T148),2),ROUND(E148*$D$9*D149/T148,2)))) ->  | H149: =IF(A148=$D$8,SUM($H$25:H148),IF(A148>$D$8,"",F149+G149)) ->  | P149: =IF(A148=$D$8,XIRR(H$24:H148,C$24:C148),"") ->  | R149: 0
F150: =IF(AND(A149="",A151=""),"",IF(A150="",ROUND(SUM($F$25:F149),2),IF(A150=$D$8,$E$24-ROUND(SUM($F$25:F149),2),ROUND($E$24/$D$8,2)))) ->  | G150: =IF(A149=$D$8,ROUND(SUM($G$25:G149),2),IF(A150>$D$8,"",IF(T150<>T149,ROUND(SUM(V150*$D$9*E149/T150,W150*$D$9*E149/T149),2),ROUND(E149*$D$9*D150/T149,2)))) ->  | H150: =IF(A149=$D$8,SUM($H$25:H149),IF(A149>$D$8,"",F150+G150)) ->  | P150: =IF(A149=$D$8,XIRR(H$24:H149,C$24:C149),"") ->  | R150: 0
F151: =IF(AND(A150="",A152=""),"",IF(A151="",ROUND(SUM($F$25:F150),2),IF(A151=$D$8,$E$24-ROUND(SUM($F$25:F150),2),ROUND($E$24/$D$8,2)))) ->  | G151: =IF(A150=$D$8,ROUND(SUM($G$25:G150),2),IF(A151>$D$8,"",IF(T151<>T150,ROUND(SUM(V151*$D$9*E150/T151,W151*$D$9*E150/T150),2),ROUND(E150*$D$9*D151/T150,2)))) ->  | H151: =IF(A150=$D$8,SUM($H$25:H150),IF(A150>$D$8,"",F151+G151)) ->  | P151: =IF(A150=$D$8,XIRR(H$24:H150,C$24:C150),"") ->  | R151: 0
F152: =IF(AND(A151="",A153=""),"",IF(A152="",ROUND(SUM($F$25:F151),2),IF(A152=$D$8,$E$24-ROUND(SUM($F$25:F151),2),ROUND($E$24/$D$8,2)))) ->  | G152: =IF(A151=$D$8,ROUND(SUM($G$25:G151),2),IF(A152>$D$8,"",IF(T152<>T151,ROUND(SUM(V152*$D$9*E151/T152,W152*$D$9*E151/T151),2),ROUND(E151*$D$9*D152/T151,2)))) ->  | H152: =IF(A151=$D$8,SUM($H$25:H151),IF(A151>$D$8,"",F152+G152)) ->  | P152: =IF(A151=$D$8,XIRR(H$24:H151,C$24:C151),"") ->  | R152: 0
F153: =IF(AND(A152="",A154=""),"",IF(A153="",ROUND(SUM($F$25:F152),2),IF(A153=$D$8,$E$24-ROUND(SUM($F$25:F152),2),ROUND($E$24/$D$8,2)))) ->  | G153: =IF(A152=$D$8,ROUND(SUM($G$25:G152),2),IF(A153>$D$8,"",IF(T153<>T152,ROUND(SUM(V153*$D$9*E152/T153,W153*$D$9*E152/T152),2),ROUND(E152*$D$9*D153/T152,2)))) ->  | H153: =IF(A152=$D$8,SUM($H$25:H152),IF(A152>$D$8,"",F153+G153)) ->  | P153: =IF(A152=$D$8,XIRR(H$24:H152,C$24:C152),"") ->  | R153: 0
A154: =IF(A153<$D$8,A153+1,"") ->  | C154: =IF(B154=$D$10,B154-1,(IF(B154>$D$10," ",B154))) ->  | F154: =IF(AND(A153="",A155=""),"",IF(A154="",ROUND(SUM($F$25:F153),2),IF(A154=$D$8,$E$24-ROUND(SUM($F$25:F153),2),ROUND($E$24/$D$8,2)))) ->  | G154: =IF(A153=$D$8,ROUND(SUM($G$25:G153),2),IF(A154>$D$8,"",IF(T154<>T153,ROUND(SUM(V154*$D$9*E153/T154,W154*$D$9*E153/T153),2),ROUND(E153*$D$9*D154/T153,2)))) ->  | H154: =IF(A153=$D$8,SUM($H$25:H153),IF(A153>$D$8,"",F154+G154)) ->  | P154: =IF(A153=$D$8,XIRR(H$24:H153,C$24:C153),"") ->  | R154: =SUM(H154:Q154) -> 0 | S154: =IF(C154="","",YEAR(C154)) ->  | T154: =IF(OR(S154=2024,S154=2028,S154=2016,S154=2020,S154=2024,S154=2028,S154=2032,S154=2036,S154=2040),366,365) ->  | U154: =IF(C154="","",DAY(C154)) ->  | V154: =U154-1 ->  | W154: =D154-V154 -> 
F155: =IF(AND(A154="",A156=""),"",IF(A155="",ROUND(SUM($F$25:F154),2),IF(A155=$D$8,$E$24-ROUND(SUM($F$25:F154),2),ROUND($E$24/$D$8,2)))) ->  | G155: =IF(A154=$D$8,ROUND(SUM($G$25:G154),2),IF(A155>$D$8,"",IF(T155<>T154,ROUND(SUM(V155*$D$9*E154/T155,W155*$D$9*E154/T154),2),ROUND(E154*$D$9*D155/T154,2)))) ->  | H155: =IF(A154=$D$8,SUM($H$25:H154),IF(A154>$D$8,"",F155+G155)) ->  | P155: =IF(A154=$D$8,XIRR(H$24:H154,C$24:C154),"") ->  | Q155: =IF(A154=$D$8,G155+M155+F155+I155+J155+K155+L155+N155+O155,"") ->  | R155: 0
F156: =IF(AND(A155="",A157=""),"",IF(A156="",ROUND(SUM($F$25:F155),2),IF(A156=$D$8,$E$24-ROUND(SUM($F$25:F155),2),ROUND($E$24/$D$8,2)))) ->  | G156: =IF(A155=$D$8,ROUND(SUM($G$25:G155),2),IF(A156>$D$8,"",IF(T156<>T155,ROUND(SUM(V156*$D$9*E155/T156,W156*$D$9*E155/T155),2),ROUND(E155*$D$9*D156/T155,2)))) ->  | H156: =IF(A155=$D$8,SUM($H$25:H155),IF(A155>$D$8,"",F156+G156)) ->  | P156: =IF(A155=$D$8,XIRR(H$24:H155,C$24:C155),"") ->  | R156: 0
F157: =IF(AND(A156="",A158=""),"",IF(A157="",ROUND(SUM($F$25:F156),2),IF(A157=$D$8,$E$24-ROUND(SUM($F$25:F156),2),ROUND($E$24/$D$8,2)))) ->  | G157: =IF(A156=$D$8,ROUND(SUM($G$25:G156),2),IF(A157>$D$8,"",IF(T157<>T156,ROUND(SUM(V157*$D$9*E156/T157,W157*$D$9*E156/T156),2),ROUND(E156*$D$9*D157/T156,2)))) ->  | H157: =IF(A156=$D$8,SUM($H$25:H156),IF(A156>$D$8,"",F157+G157)) ->  | J157: =IF($D$8>A156,$N$9,IF($D$8=A156,SUM($J$24:J156)," ")) ->  | K157: =IF($D$8>A156,($O$8+$N$10*E156),IF(A156=$D$8,$K$37+$K$24+$K$49+$K$61+$K$73+$K$85+$K$97+$K$109+$K$121+$K$133+$K$145,"")) ->  | N157: =IF(A156=$D$8,$N$24,"") ->  | P157: =IF(A156=$D$8,XIRR(H$24:H156,C$24:C156),"") ->  | R157: 0
F158: =IF(AND(A157="",A159=""),"",IF(A158="",ROUND(SUM($F$25:F157),2),IF(A158=$D$8,$E$24-ROUND(SUM($F$25:F157),2),ROUND($E$24/$D$8,2)))) ->  | G158: =IF(A157=$D$8,ROUND(SUM($G$25:G157),2),IF(A158>$D$8,"",IF(T158<>T157,ROUND(SUM(V158*$D$9*E157/T158,W158*$D$9*E157/T157),2),ROUND(E157*$D$9*D158/T157,2)))) ->  | H158: =IF(A157=$D$8,SUM($H$25:H157),IF(A157>$D$8,"",F158+G158)) ->  | J158: =IF(A157=$D$8,$J$24,"") ->  | M158: =IF(A157=$D$8,$M$24,"") ->  | P158: =IF(A157=$D$8,XIRR(H$24:H157,C$24:C157),"") ->  | R158: 0
F159: =IF(AND(A158="",A160=""),"",IF(A159="",ROUND(SUM($F$25:F158),2),IF(A159=$D$8,$E$24-ROUND(SUM($F$25:F158),2),ROUND($E$24/$D$8,2)))) ->  | G159: =IF(A158=$D$8,ROUND(SUM($G$25:G158),2),IF(A159>$D$8,"",IF(T159<>T158,ROUND(SUM(V159*$D$9*E158/T159,W159*$D$9*E158/T158),2),ROUND(E158*$D$9*D159/T158,2)))) ->  | H159: =IF(A158=$D$8,SUM($H$25:H158),IF(A158>$D$8,"",F159+G159)) ->  | P159: =IF(A158=$D$8,XIRR(H$24:H158,C$24:C158),"") ->  | R159: 0
F160: =IF(AND(A159="",A161=""),"",IF(A160="",ROUND(SUM($F$25:F159),2),IF(A160=$D$8,$E$24-ROUND(SUM($F$25:F159),2),ROUND($E$24/$D$8,2)))) ->  | G160: =IF(A159=$D$8,ROUND(SUM($G$25:G159),2),IF(A160>$D$8,"",IF(T160<>T159,ROUND(SUM(V160*$D$9*E159/T160,W160*$D$9*E159/T159),2),ROUND(E159*$D$9*D160/T159,2)))) ->  | H160: =IF(A159=$D$8,SUM($H$25:H159),IF(A159>$D$8,"",F160+G160)) ->  | P160: =IF(A159=$D$8,XIRR(H$24:H159,C$24:C159),"") ->  | R160: 0
F161: =IF(AND(A160="",A162=""),"",IF(A161="",ROUND(SUM($F$25:F160),2),IF(A161=$D$8,$E$24-ROUND(SUM($F$25:F160),2),ROUND($E$24/$D$8,2)))) ->  | G161: =IF(A160=$D$8,ROUND(SUM($G$25:G160),2),IF(A161>$D$8,"",IF(T161<>T160,ROUND(SUM(V161*$D$9*E160/T161,W161*$D$9*E160/T160),2),ROUND(E160*$D$9*D161/T160,2)))) ->  | H161: =IF(A160=$D$8,SUM($H$25:H160),IF(A160>$D$8,"",F161+G161)) ->  | P161: =IF(A160=$D$8,XIRR(H$24:H160,C$24:C160),"") ->  | R161: 0
F162: =IF(AND(A161="",A163=""),"",IF(A162="",ROUND(SUM($F$25:F161),2),IF(A162=$D$8,$E$24-ROUND(SUM($F$25:F161),2),ROUND($E$24/$D$8,2)))) ->  | G162: =IF(A161=$D$8,ROUND(SUM($G$25:G161),2),IF(A162>$D$8,"",IF(T162<>T161,ROUND(SUM(V162*$D$9*E161/T162,W162*$D$9*E161/T161),2),ROUND(E161*$D$9*D162/T161,2)))) ->  | H162: =IF(A161=$D$8,SUM($H$25:H161),IF(A161>$D$8,"",F162+G162)) ->  | P162: =IF(A161=$D$8,XIRR(H$24:H161,C$24:C161),"") ->  | R162: 0
F163: =IF(AND(A162="",A164=""),"",IF(A163="",ROUND(SUM($F$25:F162),2),IF(A163=$D$8,$E$24-ROUND(SUM($F$25:F162),2),ROUND($E$24/$D$8,2)))) ->  | G163: =IF(A162=$D$8,ROUND(SUM($G$25:G162),2),IF(A163>$D$8,"",IF(T163<>T162,ROUND(SUM(V163*$D$9*E162/T163,W163*$D$9*E162/T162),2),ROUND(E162*$D$9*D163/T162,2)))) ->  | H163: =IF(A162=$D$8,SUM($H$25:H162),IF(A162>$D$8,"",F163+G163)) ->  | P163: =IF(A162=$D$8,XIRR(H$24:H162,C$24:C162),"") ->  | R163: 0
F164: =IF(AND(A163="",A165=""),"",IF(A164="",ROUND(SUM($F$25:F163),2),IF(A164=$D$8,$E$24-ROUND(SUM($F$25:F163),2),ROUND($E$24/$D$8,2)))) ->  | G164: =IF(A163=$D$8,ROUND(SUM($G$25:G163),2),IF(A164>$D$8,"",IF(T164<>T163,ROUND(SUM(V164*$D$9*E163/T164,W164*$D$9*E163/T163),2),ROUND(E163*$D$9*D164/T163,2)))) ->  | H164: =IF(A163=$D$8,SUM($H$25:H163),IF(A163>$D8,"",F164+G164)) ->  | P164: =IF(A163=$D$8,XIRR(H$24:H163,C$24:C163),"") ->  | R164: 0
D165: =IF(A165>$D$8,"",C165-C164) ->  | E165: =IF(A165>$D$8,"",E164-F165) ->  | F165: =IF(AND(A164="",A166=""),"",IF(A165="",ROUND(SUM($F$25:F164),2),IF(A165=$D$8,$E$24-ROUND(SUM($F$25:F164),2),ROUND($E$24/$D$8,2)))) ->  | G165: =IF(A164=$D$8,ROUND(SUM($G$25:G164),2),IF(A165>$D$8,"",IF(T165<>T164,ROUND(SUM(V165*$D$9*E164/T165,W165*$D$9*E164/T164),2),ROUND(E164*$D$9*D165/T164,2)))) ->  | H165: =IF(A164=$D$8,SUM($H$25:H164),IF(A164>$D$8,"",F165+G165)) ->  | P165: =IF(A164=$D$8,XIRR(H$24:H164,C$24:C164),"") ->  | R165: 0
B166: =IF(A166="","",EDATE($B$24,A166)) ->  | F166: =IF(AND(A165="",A167=""),"",IF(A166="",ROUND(SUM($F$25:F165),2),IF(A166=$D$8,$E$24-ROUND(SUM($F$25:F165),2),ROUND($E$24/$D$8,2)))) ->  | G166: =IF(A165=$D$8,ROUND(SUM($G$25:G165),2),IF(A166>$D$8,"",IF(T166<>T165,ROUND(SUM(V166*$D$9*E165/T166,W166*$D$9*E165/T165),2),ROUND(E165*$D$9*D166/T165,2)))) ->  | H166: =IF(A165=$D$8,SUM($H$25:H165),IF(A165>$D$8,"",F166+G166)) ->  | I166: =IF(A165=$D$8,$I$24,"") ->  | L166: =IF(A165=$D$8,$L$24,"") ->  | P166: =IF(A165=$D$8,XIRR(H$24:H165,C$24:C165),"") ->  | R166: 0
F167: =IF(AND(A166="",A168=""),"",IF(A167="",ROUND(SUM($F$25:F166),2),IF(A167=$D$8,$E$24-ROUND(SUM($F$25:F166),2),ROUND($E$24/$D$8,2)))) ->  | G167: =IF(A166=$D$8,ROUND(SUM($G$25:G166),2),IF(A167>$D$8,"",IF(T167<>T166,ROUND(SUM(V167*$D$9*E166/T167,W167*$D$9*E166/T166),2),ROUND(E166*$D$9*D167/T166,2)))) ->  | H167: =IF(A166=$D$8,SUM($H$25:H166),IF(A166>$D$8,"",F167+G167)) ->  | P167: =IF(A166=$D$8,XIRR(H$24:H166,C$24:C166),"") ->  | R167: 0
F168: =IF(AND(A167="",A169=""),"",IF(A168="",ROUND(SUM($F$25:F167),2),IF(A168=$D$8,$E$24-ROUND(SUM($F$25:F167),2),ROUND($E$24/$D$8,2)))) ->  | G168: =IF(A167=$D$8,ROUND(SUM($G$25:G167),2),IF(A168>$D$8,"",IF(T168<>T167,ROUND(SUM(V168*$D$9*E167/T168,W168*$D$9*E167/T167),2),ROUND(E167*$D$9*D168/T167,2)))) ->  | H168: =IF(A167=$D$8,SUM($H$25:H167),IF(A167>$D$8,"",F168+G168)) ->  | P168: =IF(A167=$D$8,XIRR(H$24:H167,C$24:C167),"") ->  | R168: 0
F169: =IF(AND(A168="",A170=""),"",IF(A169="",ROUND(SUM($F$25:F168),2),IF(A169=$D$8,$E$24-ROUND(SUM($F$25:F168),2),ROUND($E$24/$D$8,2)))) ->  | G169: =IF(A168=$D$8,ROUND(SUM($G$25:G168),2),IF(A169>$D$8,"",IF(T169<>T168,ROUND(SUM(V169*$D$9*E168/T169,W169*$D$9*E168/T168),2),ROUND(E168*$D$9*D169/T168,2)))) ->  | H169: =IF(A168=$D$8,SUM($H$25:H168),IF(A168>$D$8,"",F169+G169)) ->  | J169: =IF($D$8>A168,$N$9,IF($D$8=A168,SUM($J$24:J168)," ")) ->  | K169: =IF($D$8>A168,($O$8+$N$10*E168),IF(A168=$D$8,$K$37+$K$24+$K$49+$K$61+$K$73+$K$85+$K$97+$K$109+$K$121+$K$133+$K$145+$K$157,"")) ->  | P169: =IF(A168=$D$8,XIRR(H$24:H168,C$24:C168),"") ->  | R169: 0
F170: =IF(AND(A169="",A171=""),"",IF(A170="",ROUND(SUM($F$25:F169),2),IF(A170=$D$8,$E$24-ROUND(SUM($F$25:F169),2),ROUND($E$24/$D$8,2)))) ->  | G170: =IF(A169=$D$8,ROUND(SUM($G$25:G169),2),IF(A170>$D$8,"",IF(T170<>T169,ROUND(SUM(V170*$D$9*E169/T170,W170*$D$9*E169/T169),2),ROUND(E169*$D$9*D170/T169,2)))) ->  | H170: =IF(A169=$D$8,SUM($H$25:H169),IF(A169>$D$8,"",F170+G170)) ->  | J170: =IF(A169=$D$8,$J$24,"") ->  | P170: =IF(A169=$D$8,XIRR(H$24:H169,C$24:C169),"") ->  | R170: 0
F171: =IF(AND(A170="",A172=""),"",IF(A171="",ROUND(SUM($F$25:F170),2),IF(A171=$D$8,$E$24-ROUND(SUM($F$25:F170),2),ROUND($E$24/$D$8,2)))) ->  | G171: =IF(A170=$D$8,ROUND(SUM($G$25:G170),2),IF(A171>$D$8,"",IF(T171<>T170,ROUND(SUM(V171*$D$9*E170/T171,W171*$D$9*E170/T170),2),ROUND(E170*$D$9*D171/T170,2)))) ->  | H171: =IF(A170=$D$8,SUM($H$25:H170),IF(A170>$D$8,"",F171+G171)) ->  | P171: =IF(A170=$D$8,XIRR(H$24:H170,C$24:C170),"") ->  | R171: 0
F172: =IF(AND(A171="",A173=""),"",IF(A172="",ROUND(SUM($F$25:F171),2),IF(A172=$D$8,$E$24-ROUND(SUM($F$25:F171),2),ROUND($E$24/$D$8,2)))) ->  | G172: =IF(A171=$D$8,ROUND(SUM($G$25:G171),2),IF(A172>$D$8,"",IF(T172<>T171,ROUND(SUM(V172*$D$9*E171/T172,W172*$D$9*E171/T171),2),ROUND(E171*$D$9*D172/T171,2)))) ->  | H172: =IF(A171=$D$8,SUM($H$25:H171),IF(A171>$D$8,"",F172+G172)) ->  | P172: =IF(A171=$D$8,XIRR(H$24:H171,C$24:C171),"") ->  | R172: 0
F173: =IF(AND(A172="",A174=""),"",IF(A173="",ROUND(SUM($F$25:F172),2),IF(A173=$D$8,$E$24-ROUND(SUM($F$25:F172),2),ROUND($E$24/$D$8,2)))) ->  | G173: =IF(A172=$D$8,ROUND(SUM($G$25:G172),2),IF(A173>$D$8,"",IF(T173<>T172,ROUND(SUM(V173*$D$9*E172/T173,W173*$D$9*E172/T172),2),ROUND(E172*$D$9*D173/T172,2)))) ->  | H173: =IF(A172=$D$8,SUM($H$25:H172),IF(A172>$D$8,"",F173+G173)) ->  | P173: =IF(A172=$D$8,XIRR(H$24:H172,C$24:C172),"") ->  | R173: 0
F174: =IF(AND(A173="",A175=""),"",IF(A174="",ROUND(SUM($F$25:F173),2),IF(A174=$D$8,$E$24-ROUND(SUM($F$25:F173),2),ROUND($E$24/$D$8,2)))) ->  | G174: =IF(A173=$D$8,ROUND(SUM($G$25:G173),2),IF(A174>$D$8,"",IF(T174<>T173,ROUND(SUM(V174*$D$9*E173/T174,W174*$D$9*E173/T173),2),ROUND(E173*$D$9*D174/T173,2)))) ->  | H174: =IF(A173=$D$8,SUM($H$25:H173),IF(A173>$D$8,"",F174+G174)) ->  | P174: =IF(A173=$D$8,XIRR(H$24:H173,C$24:C173),"") ->  | R174: 0
F175: =IF(AND(A174="",A176=""),"",IF(A175="",ROUND(SUM($F$25:F174),2),IF(A175=$D$8,$E$24-ROUND(SUM($F$25:F174),2),ROUND($E$24/$D$8,2)))) ->  | G175: =IF(A174=$D$8,ROUND(SUM($G$25:G174),2),IF(A175>$D$8,"",IF(T175<>T174,ROUND(SUM(V175*$D$9*E174/T175,W175*$D$9*E174/T174),2),ROUND(E174*$D$9*D175/T174,2)))) ->  | H175: =IF(A174=$D$8,SUM($H$25:H174),IF(A174>$D$8,"",F175+G175)) ->  | P175: =IF(A174=$D$8,XIRR(H$24:H174,C$24:C174),"") ->  | R175: 0
F176: =IF(AND(A175="",A177=""),"",IF(A176="",ROUND(SUM($F$25:F175),2),IF(A176=$D$8,$E$24-ROUND(SUM($F$25:F175),2),ROUND($E$24/$D$8,2)))) ->  | G176: =IF(A175=$D$8,ROUND(SUM($G$25:G175),2),IF(A176>$D$8,"",IF(T176<>T175,ROUND(SUM(V176*$D$9*E175/T176,W176*$D$9*E175/T175),2),ROUND(E175*$D$9*D176/T175,2)))) ->  | H176: =IF(A175=$D$8,SUM($H$25:H175),IF(A175>$D$8,"",F176+G176)) ->  | P176: =IF(A175=$D$8,XIRR(H$24:H175,C$24:C175),"") ->  | R176: 0
F177: =IF(AND(A176="",A178=""),"",IF(A177="",ROUND(SUM($F$25:F176),2),IF(A177=$D$8,$E$24-ROUND(SUM($F$25:F176),2),ROUND($E$24/$D$8,2)))) ->  | G177: =IF(A176=$D$8,ROUND(SUM($G$25:G176),2),IF(A177>$D$8,"",IF(T177<>T176,ROUND(SUM(V177*$D$9*E176/T177,W177*$D$9*E176/T176),2),ROUND(E176*$D$9*D177/T176,2)))) ->  | H177: =IF(A176=$D$8,SUM($H$25:H176),IF(A176>$D$8,"",F177+G177)) ->  | P177: =IF(A176=$D$8,XIRR(H$24:H176,C$24:C176),"") ->  | R177: 0
F178: =IF(AND(A177="",A179=""),"",IF(A178="",ROUND(SUM($F$25:F177),2),IF(A178=$D$8,$E$24-ROUND(SUM($F$25:F177),2),ROUND($E$24/$D$8,2)))) ->  | G178: =IF(A177=$D$8,ROUND(SUM($G$25:G177),2),IF(A178>$D$8,"",IF(T178<>T177,ROUND(SUM(V178*$D$9*E177/T178,W178*$D$9*E177/T177),2),ROUND(E177*$D$9*D178/T177,2)))) ->  | H178: =IF(A177=$D$8,SUM($H$25:H177),IF(A177>$D$8,"",F178+G178)) ->  | P178: =IF(A177=$D$8,XIRR(H$24:H177,C$24:C177),"") ->  | R178: 0
F179: =IF(AND(A178="",A180=""),"",IF(A179="",ROUND(SUM($F$25:F178),2),IF(A179=$D$8,$E$24-ROUND(SUM($F$25:F178),2),ROUND($E$24/$D$8,2)))) ->  | G179: =IF(A178=$D$8,ROUND(SUM($G$25:G178),2),IF(A179>$D$8,"",IF(T179<>T178,ROUND(SUM(V179*$D$9*E178/T179,W179*$D$9*E178/T178),2),ROUND(E178*$D$9*D179/T178,2)))) ->  | H179: =IF(A178=$D$8,SUM($H$25:H178),IF(A178>$D$8,"",F179+G179)) ->  | P179: =IF(A178=$D$8,XIRR(H$24:H178,C$24:C178),"") ->  | R179: 0
F180: =IF(AND(A179="",A181=""),"",IF(A180="",ROUND(SUM($F$25:F179),2),IF(A180=$D$8,$E$24-ROUND(SUM($F$25:F179),2),ROUND($E$24/$D$8,2)))) ->  | G180: =IF(A179=$D$8,ROUND(SUM($G$25:G179),2),IF(A180>$D$8,"",IF(T180<>T179,ROUND(SUM(V180*$D$9*E179/T180,W180*$D$9*E179/T179),2),ROUND(E179*$D$9*D180/T179,2)))) ->  | H180: =IF(A179=$D$8,SUM($H$25:H179),IF(A179>$D$8,"",F180+G180)) ->  | P180: =IF(A179=$D$8,XIRR(H$24:H179,C$24:C179),"") ->  | R180: 0
F181: =IF(AND(A180="",A182=""),"",IF(A181="",ROUND(SUM($F$25:F180),2),IF(A181=$D$8,$E$24-ROUND(SUM($F$25:F180),2),ROUND($E$24/$D$8,2)))) ->  | G181: =IF(A180=$D$8,ROUND(SUM($G$25:G180),2),IF(A181>$D$8,"",IF(T181<>T180,ROUND(SUM(V181*$D$9*E180/T181,W181*$D$9*E180/T180),2),ROUND(E180*$D$9*D181/T180,2)))) ->  | H181: =IF(A180=$D$8,SUM($H$25:H180),IF(A180>$D$8,"",F181+G181)) ->  | J181: =IF($D$8>A180,$N$9,IF($D$8=A180,SUM($J$24:J180)," ")) ->  | K181: =IF($D$8>A180,($O$8+$N$10*E180),IF(A180=$D$8,$K$37+$K$24+$K$49+$K$61+$K$73+$K$85+$K$97+$K$109+$K$121+$K$133+$K$145+$K$157+$K$169,"")) ->  | P181: =IF(A180=$D$8,XIRR(H$24:H180,C$24:C180),"") ->  | R181: 0
F182: =IF(AND(A181="",A183=""),"",IF(A182="",ROUND(SUM($F$25:F181),2),IF(A182=$D$8,$E$24-ROUND(SUM($F$25:F181),2),ROUND($E$24/$D$8,2)))) ->  | G182: =IF(A181=$D$8,ROUND(SUM($G$25:G181),2),IF(A182>$D$8,"",IF(T182<>T181,ROUND(SUM(V182*$D$9*E181/T182,W182*$D$9*E181/T181),2),ROUND(E181*$D$9*D182/T181,2)))) ->  | H182: =IF(A181=$D$8,SUM($H$25:H181),IF(A181>$D$8,"",F182+G182)) ->  | J182: =IF(A181=$D$8,$J$24,"") ->  | P182: =IF(A181=$D$8,XIRR(H$24:H181,C$24:C181),"") ->  | R182: 0
F183: =IF(AND(A182="",A184=""),"",IF(A183="",ROUND(SUM($F$25:F182),2),IF(A183=$D$8,$E$24-ROUND(SUM($F$25:F182),2),ROUND($E$24/$D$8,2)))) ->  | G183: =IF(A182=$D$8,ROUND(SUM($G$25:G182),2),IF(A183>$D$8,"",IF(T183<>T182,ROUND(SUM(V183*$D$9*E182/T183,W183*$D$9*E182/T182),2),ROUND(E182*$D$9*D183/T182,2)))) ->  | H183: =IF(A182=$D$8,SUM($H$25:H182),IF(A182>$D$8,"",F183+G183)) ->  | P183: =IF(A182=$D$8,XIRR(H$24:H182,C$24:C182),"") ->  | R183: 0
F184: =IF(AND(A183="",A185=""),"",IF(A184="",ROUND(SUM($F$25:F183),2),IF(A184=$D$8,$E$24-ROUND(SUM($F$25:F183),2),ROUND($E$24/$D$8,2)))) ->  | G184: =IF(A183=$D$8,ROUND(SUM($G$25:G183),2),IF(A184>$D$8,"",IF(T184<>T183,ROUND(SUM(V184*$D$9*E183/T184,W184*$D$9*E183/T183),2),ROUND(E183*$D$9*D184/T183,2)))) ->  | H184: =IF(A183=$D$8,SUM($H$25:H183),IF(A183>$D$8,"",F184+G184)) ->  | P184: =IF(A183=$D$8,XIRR(H$24:H183,C$24:C183),"") ->  | R184: 0
F185: =IF(AND(A184="",A186=""),"",IF(A185="",ROUND(SUM($F$25:F184),2),IF(A185=$D$8,$E$24-ROUND(SUM($F$25:F184),2),ROUND($E$24/$D$8,2)))) ->  | G185: =IF(A184=$D$8,ROUND(SUM($G$25:G184),2),IF(A185>$D$8,"",IF(T185<>T184,ROUND(SUM(V185*$D$9*E184/T185,W185*$D$9*E184/T184),2),ROUND(E184*$D$9*D185/T184,2)))) ->  | H185: =IF(A184=$D$8,SUM($H$25:H184),IF(A184>$D$8,"",F185+G185)) ->  | P185: =IF(A184=$D$8,XIRR(H$24:H184,C$24:C184),"") ->  | R185: 0
F186: =IF(AND(A185="",A187=""),"",IF(A186="",ROUND(SUM($F$25:F185),2),IF(A186=$D$8,$E$24-ROUND(SUM($F$25:F185),2),ROUND($E$24/$D$8,2)))) ->  | G186: =IF(A185=$D$8,ROUND(SUM($G$25:G185),2),IF(A186>$D$8,"",IF(T186<>T185,ROUND(SUM(V186*$D$9*E185/T186,W186*$D$9*E185/T185),2),ROUND(E185*$D$9*D186/T185,2)))) ->  | H186: =IF(A185=$D$8,SUM($H$25:H185),IF(A185>$D$8,"",F186+G186)) ->  | P186: =IF(A185=$D$8,XIRR(H$24:H185,C$24:C185),"") ->  | R186: 0
F187: =IF(AND(A186="",A188=""),"",IF(A187="",ROUND(SUM($F$25:F186),2),IF(A187=$D$8,$E$24-ROUND(SUM($F$25:F186),2),ROUND($E$24/$D$8,2)))) ->  | G187: =IF(A186=$D$8,ROUND(SUM($G$25:G186),2),IF(A187>$D$8,"",IF(T187<>T186,ROUND(SUM(V187*$D$9*E186/T187,W187*$D$9*E186/T186),2),ROUND(E186*$D$9*D187/T186,2)))) ->  | H187: =IF(A186=$D$8,SUM($H$25:H186),IF(A186>$D$8,"",F187+G187)) ->  | P187: =IF(A186=$D$8,XIRR(H$24:H186,C$24:C186),"") ->  | R187: 0
F188: =IF(AND(A187="",A189=""),"",IF(A188="",ROUND(SUM($F$25:F187),2),IF(A188=$D$8,$E$24-ROUND(SUM($F$25:F187),2),ROUND($E$24/$D$8,2)))) ->  | G188: =IF(A187=$D$8,ROUND(SUM($G$25:G187),2),IF(A188>$D$8,"",IF(T188<>T187,ROUND(SUM(V188*$D$9*E187/T188,W188*$D$9*E187/T187),2),ROUND(E187*$D$9*D188/T187,2)))) ->  | H188: =IF(A187=$D$8,SUM($H$25:H187),IF(A187>$D$8,"",F188+G188)) ->  | P188: =IF(A187=$D$8,XIRR(H$24:H187,C$24:C187),"") ->  | R188: 0
F189: =IF(AND(A188="",A190=""),"",IF(A189="",ROUND(SUM($F$25:F188),2),IF(A189=$D$8,$E$24-ROUND(SUM($F$25:F188),2),ROUND($E$24/$D$8,2)))) ->  | G189: =IF(A188=$D$8,ROUND(SUM($G$25:G188),2),IF(A189>$D$8,"",IF(T189<>T188,ROUND(SUM(V189*$D$9*E188/T189,W189*$D$9*E188/T188),2),ROUND(E188*$D$9*D189/T188,2)))) ->  | H189: =IF(A188=$D$8,SUM($H$25:H188),IF(A188>$D$8,"",F189+G189)) ->  | P189: =IF(A188=$D$8,XIRR(H$24:H188,C$24:C188),"") ->  | R189: 0
F190: =IF(AND(A189="",A191=""),"",IF(A190="",ROUND(SUM($F$25:F189),2),IF(A190=$D$8,$E$24-ROUND(SUM($F$25:F189),2),ROUND($E$24/$D$8,2)))) ->  | G190: =IF(A189=$D$8,ROUND(SUM($G$25:G189),2),IF(A190>$D$8,"",IF(T190<>T189,ROUND(SUM(V190*$D$9*E189/T190,W190*$D$9*E189/T189),2),ROUND(E189*$D$9*D190/T189,2)))) ->  | H190: =IF(A189=$D$8,SUM($H$25:H189),IF(A189>$D$8,"",F190+G190)) ->  | P190: =IF(A189=$D$8,XIRR(H$24:H189,C$24:C189),"") ->  | R190: 0
F191: =IF(AND(A190="",A192=""),"",IF(A191="",ROUND(SUM($F$25:F190),2),IF(A191=$D$8,$E$24-ROUND(SUM($F$25:F190),2),ROUND($E$24/$D$8,2)))) ->  | G191: =IF(A190=$D$8,ROUND(SUM($G$25:G190),2),IF(A191>$D$8,"",IF(T191<>T190,ROUND(SUM(V191*$D$9*E190/T191,W191*$D$9*E190/T190),2),ROUND(E190*$D$9*D191/T190,2)))) ->  | H191: =IF(A190=$D$8,SUM($H$25:H190),IF(A190>$D$8,"",F191+G191)) ->  | P191: =IF(A190=$D$8,XIRR(H$24:H190,C$24:C190),"") ->  | R191: 0
F192: =IF(AND(A191="",A193=""),"",IF(A192="",ROUND(SUM($F$25:F191),2),IF(A192=$D$8,$E$24-ROUND(SUM($F$25:F191),2),ROUND($E$24/$D$8,2)))) ->  | G192: =IF(A191=$D$8,ROUND(SUM($G$25:G191),2),IF(A192>$D$8,"",IF(T192<>T191,ROUND(SUM(V192*$D$9*E191/T192,W192*$D$9*E191/T191),2),ROUND(E191*$D$9*D192/T191,2)))) ->  | H192: =IF(A191=$D$8,SUM($H$25:H191),IF(A191>$D$8,"",F192+G192)) ->  | P192: =IF(A191=$D$8,XIRR(H$24:H191,C$24:C191),"") ->  | R192: 0
F193: =IF(AND(A192="",A194=""),"",IF(A193="",ROUND(SUM($F$25:F192),2),IF(A193=$D$8,$E$24-ROUND(SUM($F$25:F192),2),ROUND($E$24/$D$8,2)))) ->  | G193: =IF(A192=$D$8,ROUND(SUM($G$25:G192),2),IF(A193>$D$8,"",IF(T193<>T192,ROUND(SUM(V193*$D$9*E192/T193,W193*$D$9*E192/T192),2),ROUND(E192*$D$9*D193/T192,2)))) ->  | H193: =IF(A192=$D$8,SUM($H$25:H192),IF(A192>$D$8,"",F193+G193)) ->  | J193: =IF($D$8>A192,$N$9,IF($D$8=A192,SUM($J$24:J192)," ")) ->  | K193: =IF($D$8>A192,($O$8+$N$10*E192),IF(A192=$D$8,$K$37+$K$24+$K$49+$K$61+$K$73+$K$85+$K$97+$K$109+$K$121+$K$133+$K$145+$K$157+$K$169+$K$181,"")) ->  | P193: =IF(A192=$D$8,XIRR(H$24:H192,C$24:C192),"") ->  | R193: 0
F194: =IF(AND(A193="",A195=""),"",IF(A194="",ROUND(SUM($F$25:F193),2),IF(A194=$D$8,$E$24-ROUND(SUM($F$25:F193),2),ROUND($E$24/$D$8,2)))) ->  | G194: =IF(A193=$D$8,ROUND(SUM($G$25:G193),2),IF(A194>$D$8,"",IF(T194<>T193,ROUND(SUM(V194*$D$9*E193/T194,W194*$D$9*E193/T193),2),ROUND(E193*$D$9*D194/T193,2)))) ->  | H194: =IF(A193=$D$8,SUM($H$25:H193),IF(A193>$D$8,"",F194+G194)) ->  | J194: =IF(A193=$D$8,$J$24,"") ->  | P194: =IF(A193=$D$8,XIRR(H$24:H193,C$24:C193),"") ->  | R194: 0
F195: =IF(AND(A194="",A196=""),"",IF(A195="",ROUND(SUM($F$25:F194),2),IF(A195=$D$8,$E$24-ROUND(SUM($F$25:F194),2),ROUND($E$24/$D$8,2)))) ->  | G195: =IF(A194=$D$8,ROUND(SUM($G$25:G194),2),IF(A195>$D$8,"",IF(T195<>T194,ROUND(SUM(V195*$D$9*E194/T195,W195*$D$9*E194/T194),2),ROUND(E194*$D$9*D195/T194,2)))) ->  | H195: =IF(A194=$D$8,SUM($H$25:H194),IF(A194>$D$8,"",F195+G195)) ->  | P195: =IF(A194=$D$8,XIRR(H$24:H194,C$24:C194),"") ->  | R195: 0
F196: =IF(AND(A195="",A197=""),"",IF(A196="",ROUND(SUM($F$25:F195),2),IF(A196=$D$8,$E$24-ROUND(SUM($F$25:F195),2),ROUND($E$24/$D$8,2)))) ->  | G196: =IF(A195=$D$8,ROUND(SUM($G$25:G195),2),IF(A196>$D$8,"",IF(T196<>T195,ROUND(SUM(V196*$D$9*E195/T196,W196*$D$9*E195/T195),2),ROUND(E195*$D$9*D196/T195,2)))) ->  | H196: =IF(A195=$D$8,SUM($H$25:H195),IF(A195>$D$8,"",F196+G196)) ->  | P196: =IF(A195=$D$8,XIRR(H$24:H195,C$24:C195),"") ->  | R196: 0
F197: =IF(AND(A196="",A198=""),"",IF(A197="",ROUND(SUM($F$25:F196),2),IF(A197=$D$8,$E$24-ROUND(SUM($F$25:F196),2),ROUND($E$24/$D$8,2)))) ->  | G197: =IF(A196=$D$8,ROUND(SUM($G$25:G196),2),IF(A197>$D$8,"",IF(T197<>T196,ROUND(SUM(V197*$D$9*E196/T197,W197*$D$9*E196/T196),2),ROUND(E196*$D$9*D197/T196,2)))) ->  | H197: =IF(A196=$D$8,SUM($H$25:H196),IF(A196>$D$8,"",F197+G197)) ->  | P197: =IF(A196=$D$8,XIRR(H$24:H196,C$24:C196),"") ->  | R197: 0
F198: =IF(AND(A197="",A199=""),"",IF(A198="",ROUND(SUM($F$25:F197),2),IF(A198=$D$8,$E$24-ROUND(SUM($F$25:F197),2),ROUND($E$24/$D$8,2)))) ->  | G198: =IF(A197=$D$8,ROUND(SUM($G$25:G197),2),IF(A198>$D$8,"",IF(T198<>T197,ROUND(SUM(V198*$D$9*E197/T198,W198*$D$9*E197/T197),2),ROUND(E197*$D$9*D198/T197,2)))) ->  | H198: =IF(A197=$D$8,SUM($H$25:H197),IF(A197>$D$8,"",F198+G198)) ->  | P198: =IF(A197=$D$8,XIRR(H$24:H197,C$24:C197),"") ->  | R198: 0
F199: =IF(AND(A198="",A200=""),"",IF(A199="",ROUND(SUM($F$25:F198),2),IF(A199=$D$8,$E$24-ROUND(SUM($F$25:F198),2),ROUND($E$24/$D$8,2)))) ->  | G199: =IF(A198=$D$8,ROUND(SUM($G$25:G198),2),IF(A199>$D$8,"",IF(T199<>T198,ROUND(SUM(V199*$D$9*E198/T199,W199*$D$9*E198/T198),2),ROUND(E198*$D$9*D199/T198,2)))) ->  | H199: =IF(A198=$D$8,SUM($H$25:H198),IF(A198>$D$8,"",F199+G199)) ->  | P199: =IF(A198=$D$8,XIRR(H$24:H198,C$24:C198),"") ->  | R199: 0
F200: =IF(AND(A199="",A201=""),"",IF(A200="",ROUND(SUM($F$25:F199),2),IF(A200=$D$8,$E$24-ROUND(SUM($F$25:F199),2),ROUND($E$24/$D$8,2)))) ->  | G200: =IF(A199=$D$8,ROUND(SUM($G$25:G199),2),IF(A200>$D$8,"",IF(T200<>T199,ROUND(SUM(V200*$D$9*E199/T200,W200*$D$9*E199/T199),2),ROUND(E199*$D$9*D200/T199,2)))) ->  | H200: =IF(A199=$D$8,SUM($H$25:H199),IF(A199>$D$8,"",F200+G200)) ->  | P200: =IF(A199=$D$8,XIRR(H$24:H199,C$24:C199),"") ->  | R200: 0
... 66 more rows

Sheet графік платежів
A1: Таблиця обчислення орієнтовної вартості споживчого кредиту під заставу нерухомості
A4: Дата кредиту | C4: =TODAY() -> 2023-11-02 | E4: Разова комісія | G4: 0
A5: Вартість Авто, грн | C5: 1333334 | D5: =IF(C6/C5>75%,"Співвідношення кредиту до застави має бути не менше 75%"," ") ->  | E5: Страхування Позичальника | G5: 0.06
A6: Сумма кредиту, грн | C6: 1000000 | D6: =IF(C6<50000,"Мін. сума кредиту - 50 тис грн",IF(C6>1000000,"Макс. сума кредиту 1 млн. грн"," ")) ->  | E6: Послуги нотаріуса | G6: 4000
A7: Строк кредиту, міс | C7: 60 | D7: =IF(C7>60,"Макс. Строк -60 міс.",IF(C7<6,"Мін. строк 6 міс."," ")) ->  | E7: Послуги оцінювача | G7: 1500
A8: Відсоткова ставка | C8: 0.25 | E8: Страхування застави | G8: 0
A11: № з/п | B11: Дата видачі кредиту/дата платежу | C11: Кількість днів у розрахунковому періоді | D11: Чиста сума кредиту/сума платежу за розрахунковий період, грн. | E11: Види платежів за кредитом | Q11: Реальна річна процентна ставка, % | R11: Загальна вартість кредиту, грн
E12: сума кредиту за договором | F12: проценти за користування кредитом | G12: платежі за додаткові та супутні послуги
G13: банку | K13: кредитного посередника | M13: третіх осіб
G14: за обслуговування кредитної заборгованості | H14: розрахунково-касове обслуговування | I14: комісія за надання кредиту | J14: інші послуги банку | K14: комісійний збір | L14: інша плата за послуги кредитного посередника | M14: послуги нотаріуса | N14: послуги оцінювача | O14: послуги страховика | P14: інші послуги третіх осіб
A15: 1 | B15: 2 | C15: 3 | D15: 4 | E15: 5 | F15: 6 | G15: 7 | H15: 8 | I15: 9 | J15: 10 | K15: 11 | L15: 12 | M15: 13 | N15: 14 | O15: 15 | P15: 16 | Q15: 17 | R15: 18
B16: =' '!C24 -> 2021-01-01 | D16: =' '!D6*(-1) -> -1000000 | M16: =' '!I24 -> 4000 | N16: =' '!J24 -> 1500 | O16: =' '!K24 -> 60000
A17: =' '!A25 -> 1 | B17: =' '!C25 -> 2021-02-01 | C17: =' '!D25 -> 31 | D17: =' '!H25 -> 29351.32338 | E17: =' '!F25 -> 8118.443376 | F17: =' '!G25 -> 21232.88 | M17: =' '!I25 ->  | Q17: =' '!P25 -> 
A18: =' '!A26 -> 2 | B18: =' '!C26 -> 2021-03-01 | C18: =' '!D26 -> 28 | D18: =' '!H26 -> 29351.32338 | E18: =' '!F26 -> 10328.93338 | F18: =' '!G26 -> 19022.39 | M18: =' '!I26 ->  | Q18: =' '!P26 -> 
A19: =' '!A27 -> 3 | B19: =' '!C27 -> 2021-04-01 | C19: =' '!D27 -> 31 | D19: =' '!H27 -> 29351.32338 | E19: =' '!F27 -> 8510.133376 | F19: =' '!G27 -> 20841.19 | M19: =' '!I27 ->  | Q19: =' '!P27 ->  | R19: =' '!Q27 -> 
A20: =' '!A28 -> 4 | B20: =' '!C28 -> 2021-05-01 | C20: =' '!D28 -> 30 | D20: =' '!H28 -> 29351.32338 | E20: =' '!F28 -> 9357.303376 | F20: =' '!G28 -> 19994.02 | M20: =' '!I28 ->  | Q20: =' '!P28 ->  | R20: =' '!Q28 -> 
A21: =' '!A29 -> 5 | B21: =' '!C29 -> 2021-06-01 | C21: =' '!D29 -> 31 | D21: =' '!H29 -> 29351.32338 | E21: =' '!F29 -> 8889.513376 | F21: =' '!G29 -> 20461.81 | M21: =' '!I29 ->  | N21: =' '!J29 ->  | Q21: =' '!P29 ->  | R21: =' '!Q29 -> 
A22: =' '!A30 -> 6 | B22: =' '!C30 -> 2021-07-01 | C22: =' '!D30 -> 30 | D22: =' '!H30 -> 29351.32338 | E22: =' '!F30 -> 9732.233376 | F22: =' '!G30 -> 19619.09 | M22: =' '!I30 ->  | N22: =' '!J30 ->  | Q22: =' '!P30 ->  | R22: =' '!Q30 -> 
A23: =' '!A31 -> 7 | B23: =' '!C31 -> 2021-08-01 | C23: =' '!D31 -> 31 | D23: =' '!H31 -> 29351.32338 | E23: =' '!F31 -> 9284.903376 | F23: =' '!G31 -> 20066.42 | M23: =' '!I31 ->  | N23: =' '!J31 ->  | Q23: =' '!P31 ->  | R23: =' '!Q31 -> 
A24: =' '!A32 -> 8 | B24: =' '!C32 -> 2021-09-01 | C24: =' '!D32 -> 31 | D24: =' '!H32 -> 29351.32338 | E24: =' '!F32 -> 9482.053376 | F24: =' '!G32 -> 19869.27 | M24: =' '!I32 ->  | N24: =' '!J32 ->  | Q24: =' '!P32 ->  | R24: =' '!Q32 -> 
A25: =' '!A33 -> 9 | B25: =' '!C33 -> 2021-10-01 | C25: =' '!D33 -> 30 | D25: =' '!H33 -> 29351.32338 | E25: =' '!F33 -> 10317.83338 | F25: =' '!G33 -> 19033.49 | M25: =' '!I33 ->  | N25: =' '!J33 ->  | Q25: =' '!P33 ->  | R25: =' '!Q33 -> 
A26: =' '!A34 -> 10 | B26: =' '!C34 -> 2021-11-01 | C26: =' '!D34 -> 31 | D26: =' '!H34 -> 29351.32338 | E26: =' '!F34 -> 9902.463376 | F26: =' '!G34 -> 19448.86 | M26: =' '!I34 ->  | N26: =' '!J34 ->  | Q26: =' '!P34 ->  | R26: =' '!Q34 -> 
A27: =' '!A35 -> 11 | B27: =' '!C35 -> 2021-12-01 | C27: =' '!D35 -> 30 | D27: =' '!H35 -> 29351.32338 | E27: =' '!F35 -> 10733.32338 | F27: =' '!G35 -> 18618 | M27: =' '!I35 ->  | N27: =' '!J35 ->  | Q27: =' '!P35 ->  | R27: =' '!Q35 -> 
A28: =' '!A36 -> 12 | B28: =' '!C36 -> 2022-01-01 | C28: =' '!D36 -> 31 | D28: =' '!H36 -> 29351.32338 | E28: =' '!F36 -> 10340.62338 | F28: =' '!G36 -> 19010.7 | M28: =' '!I36 ->  | N28: =' '!J36 ->  | Q28: =' '!P36 ->  | R28: =' '!Q36 -> 
A29: =' '!A37 -> 13 | B29: =' '!C37 -> 2022-02-01 | C29: =' '!D37 -> 31 | D29: =' '!H37 -> 29351.32338 | E29: =' '!F37 -> 10560.18338 | F29: =' '!G37 -> 18791.14 | M29: =' '!I37 ->  | N29: =' '!J37 -> 1500 | O29: =' '!K37 -> 53100.13437 | Q29: =' '!P37 ->  | R29: =' '!Q37 -> 
A30: =' '!A38 -> 14 | B30: =' '!C38 -> 2022-03-01 | C30: =' '!D38 -> 28 | D30: =' '!H38 -> 29351.32338 | E30: =' '!F38 -> 12581.20338 | F30: =' '!G38 -> 16770.12 | M30: =' '!I38 ->  | N30: =' '!J38 ->  | Q30: =' '!P38 ->  | R30: =' '!Q38 -> 
A31: =' '!A39 -> 15 | B31: =' '!C39 -> 2022-04-01 | C31: =' '!D39 -> 31 | D31: =' '!H39 -> 29351.32338 | E31: =' '!F39 -> 11051.53338 | F31: =' '!G39 -> 18299.79 | M31: =' '!I39 ->  | N31: =' '!J39 ->  | Q31: =' '!P39 ->  | R31: =' '!Q39 -> 
A32: =' '!A40 -> 16 | B32: =' '!C40 -> 2022-05-01 | C32: =' '!D40 -> 30 | D32: =' '!H40 -> 29351.32338 | E32: =' '!F40 -> 11868.94338 | F32: =' '!G40 -> 17482.38 | M32: =' '!I40 ->  | N32: =' '!J40 ->  | Q32: =' '!P40 ->  | R32: =' '!Q40 -> 
A33: =' '!A41 -> 17 | B33: =' '!C41 -> 2022-06-01 | C33: =' '!D41 -> 31 | D33: =' '!H41 -> 29351.32338 | E33: =' '!F41 -> 11538.20338 | F33: =' '!G41 -> 17813.12 | M33: =' '!I41 ->  | N33: =' '!J41 ->  | Q33: =' '!P41 ->  | R33: =' '!Q41 -> 
A34: =' '!A42 -> 18 | B34: =' '!C42 -> 2022-07-01 | C34: =' '!D42 -> 30 | D34: =' '!H42 -> 29351.32338 | E34: =' '!F42 -> 12349.91338 | F34: =' '!G42 -> 17001.41 | M34: =' '!I42 ->  | N34: =' '!J42 ->  | Q34: =' '!P42 ->  | R34: =' '!Q42 -> 
A35: =' '!A43 -> 19 | B35: =' '!C43 -> 2022-08-01 | C35: =' '!D43 -> 31 | D35: =' '!H43 -> 29351.32338 | E35: =' '!F43 -> 12045.42338 | F35: =' '!G43 -> 17305.9 | M35: =' '!I43 ->  | N35: =' '!J43 ->  | Q35: =' '!P43 ->  | R35: =' '!Q43 -> 
A36: =' '!A44 -> 20 | B36: =' '!C44 -> 2022-09-01 | C36: =' '!D44 -> 31 | D36: =' '!H44 -> 29351.32338 | E36: =' '!F44 -> 12301.17338 | F36: =' '!G44 -> 17050.15 | M36: =' '!I44 ->  | N36: =' '!J44 ->  | Q36: =' '!P44 ->  | R36: =' '!Q44 -> 
A37: =' '!A45 -> 21 | B37: =' '!C45 -> 2022-10-01 | C37: =' '!D45 -> 30 | D37: =' '!H45 -> 29351.32338 | E37: =' '!F45 -> 13103.94338 | F37: =' '!G45 -> 16247.38 | M37: =' '!I45 ->  | N37: =' '!J45 ->  | Q37: =' '!P45 ->  | R37: =' '!Q45 -> 
A38: =' '!A46 -> 22 | B38: =' '!C46 -> 2022-11-01 | C38: =' '!D46 -> 31 | D38: =' '!H46 -> 29351.32338 | E38: =' '!F46 -> 12840.60338 | F38: =' '!G46 -> 16510.72 | M38: =' '!I46 ->  | N38: =' '!J46 ->  | Q38: =' '!P46 ->  | R38: =' '!Q46 -> 
A39: =' '!A47 -> 23 | B39: =' '!C47 -> 2022-12-01 | C39: =' '!D47 -> 30 | D39: =' '!H47 -> 29351.32338 | E39: =' '!F47 -> 13637.05338 | F39: =' '!G47 -> 15714.27 | M39: =' '!I47 ->  | N39: =' '!J47 ->  | Q39: =' '!P47 ->  | R39: =' '!Q47 -> 
A40: =' '!A48 -> 24 | B40: =' '!C48 -> 2023-01-01 | C40: =' '!D48 -> 31 | D40: =' '!H48 -> 29351.32338 | E40: =' '!F48 -> 13402.80338 | F40: =' '!G48 -> 15948.52 | M40: =' '!I48 ->  | N40: =' '!J48 ->  | Q40: =' '!P48 ->  | R40: =' '!Q48 -> 
A41: =' '!A49 -> 25 | B41: =' '!C49 -> 2023-02-01 | C41: =' '!D49 -> 31 | D41: =' '!H49 -> 29351.32338 | E41: =' '!F49 -> 13687.38338 | F41: =' '!G49 -> 15663.94 | M41: =' '!I49 ->  | N41: =' '!J49 -> 1500 | O41: =' '!K49 -> 44263.27554 | Q41: =' '!P49 ->  | R41: =' '!Q49 -> 
A42: =' '!A50 -> 26 | B42: =' '!C50 -> 2023-03-01 | C42: =' '!D50 -> 28 | D42: =' '!H50 -> 29351.32338 | E42: =' '!F50 -> 15465.74338 | F42: =' '!G50 -> 13885.58 | M42: =' '!I50 ->  | N42: =' '!J50 ->  | Q42: =' '!P50 ->  | R42: =' '!Q50 -> 
A43: =' '!A51 -> 27 | B43: =' '!C51 -> 2023-04-01 | C43: =' '!D51 -> 31 | D43: =' '!H51 -> 29351.32338 | E43: =' '!F51 -> 14306.38338 | F43: =' '!G51 -> 15044.94 | M43: =' '!I51 ->  | N43: =' '!J51 ->  | Q43: =' '!P51 ->  | R43: =' '!Q51 -> 
A44: =' '!A52 -> 28 | B44: =' '!C52 -> 2023-05-01 | C44: =' '!D52 -> 30 | D44: =' '!H52 -> 29351.32338 | E44: =' '!F52 -> 15085.67338 | F44: =' '!G52 -> 14265.65 | M44: =' '!I52 ->  | N44: =' '!J52 ->  | Q44: =' '!P52 ->  | R44: =' '!Q52 -> 
A45: =' '!A53 -> 29 | B45: =' '!C53 -> 2023-06-01 | C45: =' '!D53 -> 31 | D45: =' '!H53 -> 29351.32338 | E45: =' '!F53 -> 14930.46338 | F45: =' '!G53 -> 14420.86 | M45: =' '!I53 ->  | N45: =' '!J53 ->  | Q45: =' '!P53 ->  | R45: =' '!Q53 -> 
A46: =' '!A54 -> 30 | B46: =' '!C54 -> 2023-07-01 | C46: =' '!D54 -> 30 | D46: =' '!H54 -> 29351.32338 | E46: =' '!F54 -> 15702.44338 | F46: =' '!G54 -> 13648.88 | M46: =' '!I54 ->  | N46: =' '!J54 ->  | Q46: =' '!P54 ->  | R46: =' '!Q54 -> 
A47: =' '!A55 -> 31 | B47: =' '!C55 -> 2023-08-01 | C47: =' '!D55 -> 31 | D47: =' '!H55 -> 29351.32338 | E47: =' '!F55 -> 15580.88338 | F47: =' '!G55 -> 13770.44 | M47: =' '!I55 ->  | N47: =' '!J55 ->  | Q47: =' '!P55 ->  | R47: =' '!Q55 -> 
A48: =' '!A56 -> 32 | B48: =' '!C56 -> 2023-09-01 | C48: =' '!D56 -> 31 | D48: =' '!H56 -> 29351.32338 | E48: =' '!F56 -> 15911.71338 | F48: =' '!G56 -> 13439.61 | M48: =' '!I56 ->  | N48: =' '!J56 ->  | Q48: =' '!P56 ->  | R48: =' '!Q56 -> 
A49: =' '!A57 -> 33 | B49: =' '!C57 -> 2023-10-01 | C49: =' '!D57 -> 30 | D49: =' '!H57 -> 29351.32338 | E49: =' '!F57 -> 16672.20338 | F49: =' '!G57 -> 12679.12 | M49: =' '!I57 ->  | N49: =' '!J57 ->  | Q49: =' '!P57 ->  | R49: =' '!Q57 -> 
A50: =' '!A58 -> 34 | B50: =' '!C58 -> 2023-11-01 | C50: =' '!D58 -> 31 | D50: =' '!H58 -> 29351.32338 | E50: =' '!F58 -> 16603.56338 | F50: =' '!G58 -> 12747.76 | M50: =' '!I58 ->  | N50: =' '!J58 ->  | Q50: =' '!P58 ->  | R50: =' '!Q58 -> 
A51: =' '!A59 -> 35 | B51: =' '!C59 -> 2023-12-01 | C51: =' '!D59 -> 30 | D51: =' '!H59 -> 29351.32338 | E51: =' '!F59 -> 17355.95338 | F51: =' '!G59 -> 11995.37 | M51: =' '!I59 ->  | N51: =' '!J59 ->  | Q51: =' '!P59 ->  | R51: =' '!Q59 -> 
A52: =' '!A60 -> 36 | B52: =' '!C60 -> 2024-01-01 | C52: =' '!D60 -> 31 | D52: =' '!H60 -> 29351.32338 | E52: =' '!F60 -> 17324.62338 | F52: =' '!G60 -> 12026.7 | M52: =' '!I60 ->  | N52: =' '!J60 ->  | Q52: =' '!P60 ->  | R52: =' '!Q60 -> 
A53: =' '!A61 -> 37 | B53: =' '!C61 -> 2024-02-01 | C53: =' '!D61 -> 31 | D53: =' '!H61 -> 29351.32338 | E53: =' '!F61 -> 17724.32338 | F53: =' '!G61 -> 11627 | M53: =' '!I61 ->  | N53: =' '!J61 -> 1500 | O53: =' '!K61 -> 32945.65371 | Q53: =' '!P61 ->  | R53: =' '!Q61 -> 
A54: =' '!A62 -> 38 | B54: =' '!C62 -> 2024-03-01 | C54: =' '!D62 -> 29 | D54: =' '!H62 -> 29351.32338 | E54: =' '!F62 -> 18825.55338 | F54: =' '!G62 -> 10525.77 | M54: =' '!I62 ->  | N54: =' '!J62 ->  | Q54: =' '!P62 ->  | R54: =' '!Q62 -> 
A55: =' '!A63 -> 39 | B55: =' '!C63 -> 2024-04-01 | C55: =' '!D63 -> 31 | D55: =' '!H63 -> 29351.32338 | E55: =' '!F63 -> 18498.26338 | F55: =' '!G63 -> 10853.06 | M55: =' '!I63 ->  | N55: =' '!J63 ->  | Q55: =' '!P63 ->  | R55: =' '!Q63 -> 
A56: =' '!A64 -> 40 | B56: =' '!C64 -> 2024-05-01 | C56: =' '!D64 -> 30 | D56: =' '!H64 -> 29351.32338 | E56: =' '!F64 -> 19227.42338 | F56: =' '!G64 -> 10123.9 | M56: =' '!I64 ->  | N56: =' '!J64 ->  | Q56: =' '!P64 ->  | R56: =' '!Q64 -> 
A57: =' '!A65 -> 41 | B57: =' '!C65 -> 2024-06-01 | C57: =' '!D65 -> 31 | D57: =' '!H65 -> 29351.32338 | E57: =' '!F65 -> 19297.10338 | F57: =' '!G65 -> 10054.22 | M57: =' '!I65 ->  | N57: =' '!J65 ->  | Q57: =' '!P65 ->  | R57: =' '!Q65 -> 
A58: =' '!A66 -> 42 | B58: =' '!C66 -> 2024-07-01 | C58: =' '!D66 -> 30 | D58: =' '!H66 -> 29351.32338 | E58: =' '!F66 -> 20016.86338 | F58: =' '!G66 -> 9334.46 | M58: =' '!I66 ->  | N58: =' '!J66 ->  | Q58: =' '!P66 ->  | R58: =' '!Q66 -> 
A59: =' '!A67 -> 43 | B59: =' '!C67 -> 2024-08-01 | C59: =' '!D67 -> 31 | D59: =' '!H67 -> 29351.32338 | E59: =' '!F67 -> 20129.57338 | F59: =' '!G67 -> 9221.75 | M59: =' '!I67 ->  | N59: =' '!J67 ->  | Q59: =' '!P67 ->  | R59: =' '!Q67 -> 
A60: =' '!A68 -> 44 | B60: =' '!C68 -> 2024-09-01 | C60: =' '!D68 -> 31 | D60: =' '!H68 -> 29351.32338 | E60: =' '!F68 -> 20555.81338 | F60: =' '!G68 -> 8795.51 | M60: =' '!I68 ->  | N60: =' '!J68 ->  | Q60: =' '!P68 ->  | R60: =' '!Q68 -> 
A61: =' '!A69 -> 45 | B61: =' '!C69 -> 2024-10-01 | C61: =' '!D69 -> 30 | D61: =' '!H69 -> 29351.32338 | E61: =' '!F69 -> 21260.76338 | F61: =' '!G69 -> 8090.56 | M61: =' '!I69 ->  | N61: =' '!J69 ->  | Q61: =' '!P69 ->  | R61: =' '!Q69 -> 
A62: =' '!A70 -> 46 | B62: =' '!C70 -> 2024-11-01 | C62: =' '!D70 -> 31 | D62: =' '!H70 -> 29351.32338 | E62: =' '!F70 -> 21441.27338 | F62: =' '!G70 -> 7910.05 | M62: =' '!I70 ->  | N62: =' '!J70 ->  | Q62: =' '!P70 ->  | R62: =' '!Q70 -> 
A63: =' '!A71 -> 47 | B63: =' '!C71 -> 2024-12-01 | C63: =' '!D71 -> 30 | D63: =' '!H71 -> 29351.32338 | E63: =' '!F71 -> 22135.80338 | F63: =' '!G71 -> 7215.52 | M63: =' '!I71 ->  | N63: =' '!J71 ->  | Q63: =' '!P71 ->  | R63: =' '!Q71 -> 
A64: =' '!A72 -> 48 | B64: =' '!C72 -> 2025-01-01 | C64: =' '!D72 -> 31 | D64: =' '!H72 -> 29351.32338 | E64: =' '!F72 -> 22364.01338 | F64: =' '!G72 -> 6987.31 | M64: =' '!I72 ->  | N64: =' '!J72 ->  | Q64: =' '!P72 ->  | R64: =' '!Q72 -> 
A65: =' '!A73 -> 49 | B65: =' '!C73 -> 2025-02-01 | C65: =' '!D73 -> 31 | D65: =' '!H73 -> 29351.32338 | E65: =' '!F73 -> 22819.72338 | F65: =' '!G73 -> 6531.6 | M65: =' '!I73 ->  | N65: =' '!J73 -> 1500 | O65: =' '!K73 -> 18457.04748 | Q65: =' '!P73 ->  | R65: =' '!Q73 -> 
A66: =' '!A74 -> 50 | B66: =' '!C74 -> 2025-03-01 | C66: =' '!D74 -> 28 | D66: =' '!H74 -> 29351.32338 | E66: =' '!F74 -> 23889.45338 | F66: =' '!G74 -> 5461.87 | M66: =' '!I74 ->  | N66: =' '!J74 ->  | Q66: =' '!P74 ->  | R66: =' '!Q74 -> 
A67: =' '!A75 -> 51 | B67: =' '!C75 -> 2025-04-01 | C67: =' '!D75 -> 31 | D67: =' '!H75 -> 29351.32338 | E67: =' '!F75 -> 23811.49338 | F67: =' '!G75 -> 5539.83 | M67: =' '!I75 ->  | N67: =' '!J75 ->  | Q67: =' '!P75 ->  | R67: =' '!Q75 -> 
A68: =' '!A76 -> 52 | B68: =' '!C76 -> 2025-05-01 | C68: =' '!D76 -> 30 | D68: =' '!H76 -> 29351.32338 | E68: =' '!F76 -> 24479.47338 | F68: =' '!G76 -> 4871.85 | M68: =' '!I76 ->  | N68: =' '!J76 ->  | Q68: =' '!P76 ->  | R68: =' '!Q76 -> 
A69: =' '!A77 -> 53 | B69: =' '!C77 -> 2025-06-01 | C69: =' '!D77 -> 31 | D69: =' '!H77 -> 29351.32338 | E69: =' '!F77 -> 24836.84338 | F69: =' '!G77 -> 4514.48 | M69: =' '!I77 ->  | N69: =' '!J77 ->  | Q69: =' '!P77 ->  | R69: =' '!Q77 -> 
A70: =' '!A78 -> 54 | B70: =' '!C78 -> 2025-07-01 | C70: =' '!D78 -> 30 | D70: =' '!H78 -> 29351.32338 | E70: =' '!F78 -> 25492.82338 | F70: =' '!G78 -> 3858.5 | M70: =' '!I78 ->  | N70: =' '!J78 ->  | Q70: =' '!P78 ->  | R70: =' '!Q78 -> 
A71: =' '!A79 -> 55 | B71: =' '!C79 -> 2025-08-01 | C71: =' '!D79 -> 31 | D71: =' '!H79 -> 29351.32338 | E71: =' '!F79 -> 25905.49338 | F71: =' '!G79 -> 3445.83 | M71: =' '!I79 ->  | N71: =' '!J79 ->  | Q71: =' '!P79 ->  | R71: =' '!Q79 -> 
A72: =' '!A80 -> 56 | B72: =' '!C80 -> 2025-09-01 | C72: =' '!D80 -> 31 | D72: =' '!H80 -> 29351.32338 | E72: =' '!F80 -> 26455.53338 | F72: =' '!G80 -> 2895.79 | M72: =' '!I80 ->  | N72: =' '!J80 ->  | Q72: =' '!P80 ->  | R72: =' '!Q80 -> 
A73: =' '!A81 -> 57 | B73: =' '!C81 -> 2025-10-01 | C73: =' '!D81 -> 30 | D73: =' '!H81 -> 29351.32338 | E73: =' '!F81 -> 27092.55338 | F73: =' '!G81 -> 2258.77 | M73: =' '!I81 ->  | N73: =' '!J81 ->  | Q73: =' '!P81 ->  | R73: =' '!Q81 -> 
A74: =' '!A82 -> 58 | B74: =' '!C82 -> 2025-11-01 | C74: =' '!D82 -> 31 | D74: =' '!H82 -> 29351.32338 | E74: =' '!F82 -> 27592.51338 | F74: =' '!G82 -> 1758.81 | M74: =' '!I82 ->  | N74: =' '!J82 ->  | Q74: =' '!P82 ->  | R74: =' '!Q82 -> 
A75: =' '!A83 -> 59 | B75: =' '!C83 -> 2025-12-01 | C75: =' '!D83 -> 30 | D75: =' '!H83 -> 29351.32338 | E75: =' '!F83 -> 28216.22338 | F75: =' '!G83 -> 1135.1 | M75: =' '!I83 ->  | N75: =' '!J83 ->  | Q75: =' '!P83 ->  | R75: =' '!Q83 -> 
A76: =' '!A84 -> 60 | B76: =' '!C84 -> 2025-12-31 | C76: =' '!D84 -> 30 | D76: =' '!H84 -> 27580.65 | E76: =' '!F84 -> 27025.33 | F76: =' '!G84 -> 555.32 | M76: =' '!I84 ->  | N76: =' '!J84 ->  | Q76: =' '!P84 ->  | R76: =' '!Q84 -> 
A77: =' '!A85 ->  | B77: =' '!C85 ->  | C77: =' '!D85 ->  | D77: =' '!H85 -> 1759308.729 | E77: =' '!F85 -> 1000000 | F77: =' '!G85 -> 759308.73 | M77: =' '!I85 -> 4000 | N77: =' '!J85 -> 7500 | O77: =' '!K85 -> 208766.1111 | Q77: =' '!P85 -> 0.3869808495 | R77: =' '!Q85 -> 1979574.841
A78: =' '!A86 ->  | B78: =' '!C86 ->  | C78: =' '!D86 ->  | D78: =' '!H86 ->  | E78: =' '!F86 ->  | F78: =' '!G86 ->  | M78: =' '!I86 ->  | N78: =' '!J86 ->  | Q78: =' '!P86 ->  | R78: =' '!Q86 -> 
A79: =' '!A87 ->  | B79: =' '!C87 ->  | C79: =' '!D87 ->  | D79: =' '!H87 ->  | E79: =' '!F87 ->  | F79: =' '!G87 ->  | M79: =' '!I87 ->  | N79: =' '!J87 ->  | Q79: =' '!P87 ->  | R79: =' '!Q87 -> 
A80: =' '!A88 ->  | B80: =' '!C88 ->  | C80: =' '!D88 ->  | D80: =' '!H88 ->  | E80: =' '!F88 ->  | F80: =' '!G88 ->  | M80: =' '!I88 ->  | N80: =' '!J88 ->  | Q80: =' '!P88 ->  | R80: =' '!Q88 -> 
A81: =' '!A89 ->  | B81: =' '!C89 ->  | C81: =' '!D89 ->  | D81: =' '!H89 ->  | E81: =' '!F89 ->  | F81: =' '!G89 ->  | M81: =' '!I89 ->  | N81: =' '!J89 ->  | Q81: =' '!P89 ->  | R81: =' '!Q89 -> 
A82: =' '!A90 ->  | B82: =' '!C90 ->  | C82: =' '!D90 ->  | D82: =' '!H90 ->  | E82: =' '!F90 ->  | F82: =' '!G90 ->  | M82: =' '!I90 ->  | N82: =' '!J90 ->  | Q82: =' '!P90 ->  | R82: =' '!Q90 -> 
A83: =' '!A91 ->  | B83: =' '!C91 ->  | C83: =' '!D91 ->  | D83: =' '!H91 ->  | E83: =' '!F91 ->  | F83: =' '!G91 ->  | M83: =' '!I91 ->  | N83: =' '!J91 ->  | Q83: =' '!P91 ->  | R83: =' '!Q91 -> 
A84: =' '!A92 ->  | B84: =' '!C92 ->  | C84: =' '!D92 ->  | D84: =' '!H92 ->  | E84: =' '!F92 ->  | F84: =' '!G92 ->  | M84: =' '!I92 ->  | N84: =' '!J92 ->  | Q84: =' '!P92 ->  | R84: =' '!Q92 -> 
A85: =' '!A93 ->  | B85: =' '!C93 ->  | C85: =' '!D93 ->  | D85: =' '!H93 ->  | E85: =' '!F93 ->  | F85: =' '!G93 ->  | M85: =' '!I93 ->  | N85: =' '!J93 ->  | Q85: =' '!P93 ->  | R85: =' '!Q93 -> 
A86: =' '!A94 ->  | B86: =' '!C94 ->  | C86: =' '!D94 ->  | D86: =' '!H94 ->  | E86: =' '!F94 ->  | F86: =' '!G94 ->  | M86: =' '!I94 ->  | N86: =' '!J94 ->  | Q86: =' '!P94 ->  | R86: =' '!Q94 -> 
A87: =' '!A95 ->  | B87: =' '!C95 ->  | C87: =' '!D95 ->  | D87: =' '!H95 ->  | E87: =' '!F95 ->  | F87: =' '!G95 ->  | M87: =' '!I95 ->  | N87: =' '!J95 ->  | Q87: =' '!P95 ->  | R87: =' '!Q95 -> 
A88: =' '!A96 ->  | B88: =' '!C96 ->  | C88: =' '!D96 ->  | D88: =' '!H96 ->  | E88: =' '!F96 ->  | F88: =' '!G96 ->  | M88: =' '!I96 ->  | N88: =' '!J96 ->  | Q88: =' '!P96 ->  | R88: =' '!Q96 -> 
A89: =' '!A97 ->  | B89: =' '!C97 ->  | C89: =' '!D97 ->  | D89: =' '!H97 ->  | E89: =' '!F97 ->  | F89: =' '!G97 ->  | M89: =' '!I97 ->  | N89: =' '!J97 ->  | O89: =' '!K97 ->  | Q89: =' '!P97 ->  | R89: =' '!Q97 -> 
A90: =' '!A98 ->  | B90: =' '!C98 ->  | C90: =' '!D98 ->  | D90: =' '!H98 ->  | E90: =' '!F98 ->  | F90: =' '!G98 ->  | M90: =' '!I98 ->  | N90: =' '!J98 ->  | Q90: =' '!P98 ->  | R90: =' '!Q98 -> 
A91: =' '!A99 ->  | B91: =' '!C99 ->  | C91: =' '!D99 ->  | D91: =' '!H99 ->  | E91: =' '!F99 ->  | F91: =' '!G99 ->  | M91: =' '!I99 ->  | N91: =' '!J99 ->  | Q91: =' '!P99 ->  | R91: =' '!Q99 -> 
A92: =' '!A100 ->  | B92: =' '!C100 ->  | C92: =' '!D100 ->  | D92: =' '!H100 ->  | E92: =' '!F100 ->  | F92: =' '!G100 ->  | M92: =' '!I100 ->  | N92: =' '!J100 ->  | Q92: =' '!P100 ->  | R92: =' '!Q100 -> 
A93: =' '!A101 ->  | B93: =' '!C101 ->  | C93: =' '!D101 ->  | D93: =' '!H101 ->  | E93: =' '!F101 ->  | F93: =' '!G101 ->  | M93: =' '!I101 ->  | N93: =' '!J101 ->  | Q93: =' '!P101 ->  | R93: =' '!Q101 -> 
A94: =' '!A102 ->  | B94: =' '!C102 ->  | C94: =' '!D102 ->  | D94: =' '!H102 ->  | E94: =' '!F102 ->  | F94: =' '!G102 ->  | M94: =' '!I102 ->  | N94: =' '!J102 ->  | Q94: =' '!P102 ->  | R94: =' '!Q102 -> 
A95: =' '!A103 ->  | B95: =' '!C103 ->  | C95: =' '!D103 ->  | D95: =' '!H103 ->  | E95: =' '!F103 ->  | F95: =' '!G103 ->  | M95: =' '!I103 ->  | N95: =' '!J103 ->  | Q95: =' '!P103 ->  | R95: =' '!Q103 -> 
A96: =' '!A104 ->  | B96: =' '!C104 ->  | C96: =' '!D104 ->  | D96: =' '!H104 ->  | E96: =' '!F104 ->  | F96: =' '!G104 ->  | M96: =' '!I104 ->  | N96: =' '!J104 ->  | Q96: =' '!P104 ->  | R96: =' '!Q104 -> 
A97: =' '!A105 ->  | B97: =' '!C105 ->  | C97: =' '!D105 ->  | D97: =' '!H105 ->  | E97: =' '!F105 ->  | F97: =' '!G105 ->  | M97: =' '!I105 ->  | N97: =' '!J105 ->  | Q97: =' '!P105 ->  | R97: =' '!Q105 -> 
A98: =' '!A106 ->  | B98: =' '!C106 ->  | C98: =' '!D106 ->  | D98: =' '!H106 ->  | E98: =' '!F106 ->  | F98: =' '!G106 ->  | M98: =' '!I106 ->  | N98: =' '!J106 ->  | Q98: =' '!P106 ->  | R98: =' '!Q106 -> 
A99: =' '!A107 ->  | B99: =' '!C107 ->  | C99: =' '!D107 ->  | D99: =' '!H107 ->  | E99: =' '!F107 ->  | F99: =' '!G107 ->  | M99: =' '!I107 ->  | N99: =' '!J107 ->  | Q99: =' '!P107 ->  | R99: =' '!Q107 -> 
A100: =' '!A108 ->  | B100: =' '!C108 ->  | C100: =' '!D108 ->  | D100: =' '!H108 ->  | E100: =' '!F108 ->  | F100: =' '!G108 ->  | M100: =' '!I108 ->  | N100: =' '!J108 ->  | Q100: =' '!P108 ->  | R100: =' '!Q108 -> 
A101: =' '!A109 ->  | B101: =' '!C109 ->  | C101: =' '!D109 ->  | D101: =' '!H109 ->  | E101: =' '!F109 ->  | F101: =' '!G109 ->  | M101: =' '!I109 ->  | N101: =' '!J109 ->  | O101: =' '!K109 ->  | Q101: =' '!P109 ->  | R101: =' '!Q109 -> 
A102: =' '!A110 ->  | B102: =' '!C110 ->  | C102: =' '!D110 ->  | D102: =' '!H110 ->  | E102: =' '!F110 ->  | F102: =' '!G110 ->  | M102: =' '!I110 ->  | N102: =' '!J110 ->  | Q102: =' '!P110 ->  | R102: =' '!Q110 -> 
A103: =' '!A111 ->  | B103: =' '!C111 ->  | C103: =' '!D111 ->  | D103: =' '!H111 ->  | E103: =' '!F111 ->  | F103: =' '!G111 ->  | M103: =' '!I111 ->  | N103: =' '!J111 ->  | Q103: =' '!P111 ->  | R103: =' '!Q111 -> 
A104: =' '!A112 ->  | B104: =' '!C112 ->  | C104: =' '!D112 ->  | D104: =' '!H112 ->  | E104: =' '!F112 ->  | F104: =' '!G112 ->  | M104: =' '!I112 ->  | N104: =' '!J112 ->  | Q104: =' '!P112 ->  | R104: =' '!Q112 -> 
A105: =' '!A113 ->  | B105: =' '!C113 ->  | C105: =' '!D113 ->  | D105: =' '!H113 ->  | E105: =' '!F113 ->  | F105: =' '!G113 ->  | M105: =' '!I113 ->  | N105: =' '!J113 ->  | Q105: =' '!P113 ->  | R105: =' '!Q113 -> 
A106: =' '!A114 ->  | B106: =' '!C114 ->  | C106: =' '!D114 ->  | D106: =' '!H114 ->  | E106: =' '!F114 ->  | F106: =' '!G114 ->  | M106: =' '!I114 ->  | N106: =' '!J114 ->  | Q106: =' '!P114 ->  | R106: =' '!Q114 -> 
A107: =' '!A115 ->  | B107: =' '!C115 ->  | C107: =' '!D115 ->  | D107: =' '!H115 ->  | E107: =' '!F115 ->  | F107: =' '!G115 ->  | M107: =' '!I115 ->  | N107: =' '!J115 ->  | Q107: =' '!P115 ->  | R107: =' '!Q115 -> 
A108: =' '!A116 ->  | B108: =' '!C116 ->  | C108: =' '!D116 ->  | D108: =' '!H116 ->  | E108: =' '!F116 ->  | F108: =' '!G116 ->  | M108: =' '!I116 ->  | N108: =' '!J116 ->  | Q108: =' '!P116 ->  | R108: =' '!Q116 -> 
A109: =' '!A117 ->  | B109: =' '!C117 ->  | C109: =' '!D117 ->  | D109: =' '!H117 ->  | E109: =' '!F117 ->  | F109: =' '!G117 ->  | M109: =' '!I117 ->  | N109: =' '!J117 ->  | Q109: =' '!P117 ->  | R109: =' '!Q117 -> 
A110: =' '!A118 ->  | B110: =' '!C118 ->  | C110: =' '!D118 ->  | D110: =' '!H118 ->  | E110: =' '!F118 ->  | F110: =' '!G118 ->  | M110: =' '!I118 ->  | N110: =' '!J118 ->  | Q110: =' '!P118 ->  | R110: =' '!Q118 -> 
A111: =' '!A119 ->  | B111: =' '!C119 ->  | C111: =' '!D119 ->  | D111: =' '!H119 ->  | E111: =' '!F119 ->  | F111: =' '!G119 ->  | M111: =' '!I119 ->  | N111: =' '!J119 ->  | Q111: =' '!P119 ->  | R111: =' '!Q119 -> 
A112: =' '!A120 ->  | B112: =' '!C120 ->  | C112: =' '!D120 ->  | D112: =' '!H120 ->  | E112: =' '!F120 ->  | F112: =' '!G120 ->  | M112: =' '!I120 ->  | N112: =' '!J120 ->  | Q112: =' '!P120 ->  | R112: =' '!Q120 -> 
A113: =' '!A121 ->  | B113: =' '!C121 ->  | C113: =' '!D121 ->  | D113: =' '!H121 ->  | E113: =' '!F121 ->  | F113: =' '!G121 ->  | M113: =' '!I121 ->  | N113: =' '!J121 ->  | O113: =' '!K121 ->  | Q113: =' '!P121 ->  | R113: =' '!Q121 -> 
A114: =' '!A122 ->  | B114: =' '!C122 ->  | C114: =' '!D122 ->  | D114: =' '!H122 ->  | E114: =' '!F122 ->  | F114: =' '!G122 ->  | M114: =' '!I122 ->  | N114: =' '!J122 ->  | Q114: =' '!P122 ->  | R114: =' '!Q122 -> 
A115: =' '!A123 ->  | B115: =' '!C123 ->  | C115: =' '!D123 ->  | D115: =' '!H123 ->  | E115: =' '!F123 ->  | F115: =' '!G123 ->  | M115: =' '!I123 ->  | N115: =' '!J123 ->  | Q115: =' '!P123 ->  | R115: =' '!Q123 -> 
A116: =' '!A124 ->  | B116: =' '!C124 ->  | C116: =' '!D124 ->  | D116: =' '!H124 ->  | E116: =' '!F124 ->  | F116: =' '!G124 ->  | M116: =' '!I124 ->  | N116: =' '!J124 ->  | Q116: =' '!P124 ->  | R116: =' '!Q124 -> 
A117: =' '!A125 ->  | B117: =' '!C125 ->  | C117: =' '!D125 ->  | D117: =' '!H125 ->  | E117: =' '!F125 ->  | F117: =' '!G125 ->  | M117: =' '!I125 ->  | N117: =' '!J125 ->  | Q117: =' '!P125 ->  | R117: =' '!Q125 -> 
A118: =' '!A126 ->  | B118: =' '!C126 ->  | C118: =' '!D126 ->  | D118: =' '!H126 ->  | E118: =' '!F126 ->  | F118: =' '!G126 ->  | M118: =' '!I126 ->  | N118: =' '!J126 ->  | Q118: =' '!P126 ->  | R118: =' '!Q126 -> 
A119: =' '!A127 ->  | B119: =' '!C127 ->  | C119: =' '!D127 ->  | D119: =' '!H127 ->  | E119: =' '!F127 ->  | F119: =' '!G127 ->  | M119: =' '!I127 ->  | N119: =' '!J127 ->  | Q119: =' '!P127 ->  | R119: =' '!Q127 -> 
A120: =' '!A128 ->  | B120: =' '!C128 ->  | C120: =' '!D128 ->  | D120: =' '!H128 ->  | E120: =' '!F128 ->  | F120: =' '!G128 ->  | M120: =' '!I128 ->  | N120: =' '!J128 ->  | Q120: =' '!P128 ->  | R120: =' '!Q128 -> 
A121: =' '!A129 ->  | B121: =' '!C129 ->  | C121: =' '!D129 ->  | D121: =' '!H129 ->  | E121: =' '!F129 ->  | F121: =' '!G129 ->  | M121: =' '!I129 ->  | N121: =' '!J129 ->  | Q121: =' '!P129 ->  | R121: =' '!Q129 -> 
A122: =' '!A130 ->  | B122: =' '!C130 ->  | C122: =' '!D130 ->  | D122: =' '!H130 ->  | E122: =' '!F130 ->  | F122: =' '!G130 ->  | M122: =' '!I130 ->  | N122: =' '!J130 ->  | Q122: =' '!P130 ->  | R122: =' '!Q130 -> 
A123: =' '!A131 ->  | B123: =' '!C131 ->  | C123: =' '!D131 ->  | D123: =' '!H131 ->  | E123: =' '!F131 ->  | F123: =' '!G131 ->  | M123: =' '!I131 ->  | N123: =' '!J131 ->  | Q123: =' '!P131 ->  | R123: =' '!Q131 -> 
A124: =' '!A132 ->  | B124: =' '!C132 ->  | C124: =' '!D132 ->  | D124: =' '!H132 ->  | E124: =' '!F132 ->  | F124: =' '!G132 ->  | M124: =' '!I132 ->  | N124: =' '!J132 ->  | Q124: =' '!P132 ->  | R124: =' '!Q132 -> 
A125: =' '!A133 ->  | B125: =' '!C133 ->  | C125: =' '!D133 ->  | D125: =' '!H133 ->  | E125: =' '!F133 ->  | F125: =' '!G133 ->  | M125: =' '!I133 ->  | N125: =' '!J133 ->  | O125: =' '!K133 ->  | Q125: =' '!P133 ->  | R125: =' '!Q133 -> 
A126: =' '!A134 ->  | B126: =' '!C134 ->  | C126: =' '!D134 ->  | D126: =' '!H134 ->  | E126: =' '!F134 ->  | F126: =' '!G134 ->  | M126: =' '!I134 ->  | N126: =' '!J134 ->  | Q126: =' '!P134 ->  | R126: =' '!Q134 -> 
A127: =' '!A135 ->  | B127: =' '!C135 ->  | C127: =' '!D135 ->  | D127: =' '!H135 ->  | E127: =' '!F135 ->  | F127: =' '!G135 ->  | M127: =' '!I135 ->  | N127: =' '!J135 ->  | Q127: =' '!P135 ->  | R127: =' '!Q135 -> 
A128: =' '!A136 ->  | B128: =' '!C136 ->  | C128: =' '!D136 ->  | D128: =' '!H136 ->  | E128: =' '!F136 ->  | F128: =' '!G136 ->  | M128: =' '!I136 ->  | N128: =' '!J136 ->  | Q128: =' '!P136 ->  | R128: =' '!Q136 -> 
A129: =' '!A137 ->  | B129: =' '!C137 ->  | C129: =' '!D137 ->  | D129: =' '!H137 ->  | E129: =' '!F137 ->  | F129: =' '!G137 ->  | M129: =' '!I137 ->  | N129: =' '!J137 ->  | Q129: =' '!P137 ->  | R129: =' '!Q137 -> 
A130: =' '!A138 ->  | B130: =' '!C138 ->  | C130: =' '!D138 ->  | D130: =' '!H138 ->  | E130: =' '!F138 ->  | F130: =' '!G138 ->  | M130: =' '!I138 ->  | N130: =' '!J138 ->  | Q130: =' '!P138 ->  | R130: =' '!Q138 -> 
A131: =' '!A139 ->  | B131: =' '!C139 ->  | C131: =' '!D139 ->  | D131: =' '!H139 ->  | E131: =' '!F139 ->  | F131: =' '!G139 ->  | M131: =' '!I139 ->  | N131: =' '!J139 ->  | Q131: =' '!P139 ->  | R131: =' '!Q139 -> 
A132: =' '!A140 ->  | B132: =' '!C140 ->  | C132: =' '!D140 ->  | D132: =' '!H140 ->  | E132: =' '!F140 ->  | F132: =' '!G140 ->  | M132: =' '!I140 ->  | N132: =' '!J140 ->  | Q132: =' '!P140 ->  | R132: =' '!Q140 -> 
A133: =' '!A141 ->  | B133: =' '!C141 ->  | C133: =' '!D141 ->  | D133: =' '!H141 ->  | E133: =' '!F141 ->  | F133: =' '!G141 ->  | M133: =' '!I141 ->  | N133: =' '!J141 ->  | Q133: =' '!P141 ->  | R133: =' '!Q141 -> 
A134: =' '!A142 ->  | B134: =' '!C142 ->  | C134: =' '!D142 ->  | D134: =' '!H142 ->  | E134: =' '!F142 ->  | F134: =' '!G142 ->  | M134: =' '!I142 ->  | N134: =' '!J142 ->  | Q134: =' '!P142 ->  | R134: =' '!Q142 -> 
A135: =' '!A143 ->  | B135: =' '!C143 ->  | C135: =' '!D143 ->  | D135: =' '!H143 ->  | E135: =' '!F143 ->  | F135: =' '!G143 ->  | M135: =' '!I143 ->  | N135: =' '!J143 ->  | Q135: =' '!P143 ->  | R135: =' '!Q143 -> 
A136: =' '!A144 ->  | B136: =' '!C144 ->  | C136: =' '!D144 ->  | D136: =' '!H144 ->  | E136: =' '!F144 ->  | F136: =' '!G144 ->  | M136: =' '!I144 ->  | N136: =' '!J144 ->  | Q136: =' '!P144 ->  | R136: =' '!Q144 -> 
A137: =' '!A145 ->  | B137: =' '!C145 ->  | C137: =' '!D145 ->  | D137: =' '!H145 ->  | E137: =' '!F145 ->  | F137: =' '!G145 ->  | M137: =' '!I145 ->  | N137: =' '!J145 ->  | O137: =' '!K145 ->  | Q137: =' '!P145 ->  | R137: =' '!Q145 -> 
A138: =' '!A146 ->  | B138: =' '!C146 ->  | C138: =' '!D146 ->  | D138: =' '!H146 ->  | E138: =' '!F146 ->  | F138: =' '!G146 ->  | M138: =' '!I146 ->  | N138: =' '!J146 ->  | Q138: =' '!P146 ->  | R138: =' '!Q146 -> 
A139: =' '!A147 ->  | B139: =' '!C147 ->  | C139: =' '!D147 ->  | D139: =' '!H147 ->  | E139: =' '!F147 ->  | F139: =' '!G147 ->  | M139: =' '!I147 ->  | N139: =' '!J147 ->  | Q139: =' '!P147 ->  | R139: =' '!Q147 -> 
A140: =' '!A148 ->  | B140: =' '!C148 ->  | C140: =' '!D148 ->  | D140: =' '!H148 ->  | E140: =' '!F148 ->  | F140: =' '!G148 ->  | M140: =' '!I148 ->  | N140: =' '!J148 ->  | Q140: =' '!P148 ->  | R140: =' '!Q148 -> 
A141: =' '!A149 ->  | B141: =' '!C149 ->  | C141: =' '!D149 ->  | D141: =' '!H149 ->  | E141: =' '!F149 ->  | F141: =' '!G149 ->  | M141: =' '!I149 ->  | N141: =' '!J149 ->  | Q141: =' '!P149 ->  | R141: =' '!Q149 -> 
A142: =' '!A150 ->  | B142: =' '!C150 ->  | C142: =' '!D150 ->  | D142: =' '!H150 ->  | E142: =' '!F150 ->  | F142: =' '!G150 ->  | M142: =' '!I150 ->  | N142: =' '!J150 ->  | Q142: =' '!P150 ->  | R142: =' '!Q150 -> 
A143: =' '!A151 ->  | B143: =' '!C151 ->  | C143: =' '!D151 ->  | D143: =' '!H151 ->  | E143: =' '!F151 ->  | F143: =' '!G151 ->  | M143: =' '!I151 ->  | N143: =' '!J151 ->  | Q143: =' '!P151 ->  | R143: =' '!Q151 -> 
A144: =' '!A152 ->  | B144: =' '!C152 ->  | C144: =' '!D152 ->  | D144: =' '!H152 ->  | E144: =' '!F152 ->  | F144: =' '!G152 ->  | M144: =' '!I152 ->  | N144: =' '!J152 ->  | Q144: =' '!P152 ->  | R144: =' '!Q152 -> 
A145: =' '!A153 ->  | B145: =' '!C153 ->  | C145: =' '!D153 ->  | D145: =' '!H153 ->  | E145: =' '!F153 ->  | F145: =' '!G153 ->  | M145: =' '!I153 ->  | N145: =' '!J153 ->  | Q145: =' '!P153 ->  | R145: =' '!Q153 -> 
A146: =' '!A154 ->  | B146: =' '!C154 ->  | C146: =' '!D154 ->  | D146: =' '!H154 ->  | E146: =' '!F154 ->  | F146: =' '!G154 ->  | M146: =' '!I154 ->  | N146: =' '!J154 ->  | Q146: =' '!P154 ->  | R146: =' '!Q154 -> 
A147: =' '!A155 ->  | B147: =' '!C155 ->  | C147: =' '!D155 ->  | D147: =' '!H155 ->  | E147: =' '!F155 ->  | F147: =' '!G155 ->  | M147: =' '!I155 ->  | N147: =' '!J155 ->  | Q147: =' '!P155 ->  | R147: =' '!Q155 -> 
A148: =' '!A156 ->  | B148: =' '!C156 ->  | C148: =' '!D156 ->  | D148: =' '!H156 ->  | E148: =' '!F156 ->  | F148: =' '!G156 ->  | M148: =' '!I156 ->  | N148: =' '!J156 ->  | Q148: =' '!P156 ->  | R148: =' '!Q156 -> 
A149: =' '!A157 ->  | B149: =' '!C157 ->  | C149: =' '!D157 ->  | D149: =' '!H157 ->  | E149: =' '!F157 ->  | F149: =' '!G157 ->  | M149: =' '!I157 ->  | N149: =' '!J157 ->  | O149: =' '!K157 ->  | Q149: =' '!P157 ->  | R149: =' '!Q157 -> 
A150: =' '!A158 ->  | B150: =' '!C158 ->  | C150: =' '!D158 ->  | D150: =' '!H158 ->  | E150: =' '!F158 ->  | F150: =' '!G158 ->  | M150: =' '!I158 ->  | N150: =' '!J158 ->  | Q150: =' '!P158 ->  | R150: =' '!Q158 -> 
A151: =' '!A159 ->  | B151: =' '!C159 ->  | C151: =' '!D159 ->  | D151: =' '!H159 ->  | E151: =' '!F159 ->  | F151: =' '!G159 ->  | M151: =' '!I159 ->  | N151: =' '!J159 ->  | Q151: =' '!P159 ->  | R151: =' '!Q159 -> 
A152: =' '!A160 ->  | B152: =' '!C160 ->  | C152: =' '!D160 ->  | D152: =' '!H160 ->  | E152: =' '!F160 ->  | F152: =' '!G160 ->  | M152: =' '!I160 ->  | N152: =' '!J160 ->  | Q152: =' '!P160 ->  | R152: =' '!Q160 -> 
A153: =' '!A161 ->  | B153: =' '!C161 ->  | C153: =' '!D161 ->  | D153: =' '!H161 ->  | E153: =' '!F161 ->  | F153: =' '!G161 ->  | M153: =' '!I161 ->  | N153: =' '!J161 ->  | Q153: =' '!P161 ->  | R153: =' '!Q161 -> 
A154: =' '!A162 ->  | B154: =' '!C162 ->  | C154: =' '!D162 ->  | D154: =' '!H162 ->  | E154: =' '!F162 ->  | F154: =' '!G162 ->  | M154: =' '!I162 ->  | N154: =' '!J162 ->  | Q154: =' '!P162 ->  | R154: =' '!Q162 -> 
A155: =' '!A163 ->  | B155: =' '!C163 ->  | C155: =' '!D163 ->  | D155: =' '!H163 ->  | E155: =' '!F163 ->  | F155: =' '!G163 ->  | M155: =' '!I163 ->  | N155: =' '!J163 ->  | Q155: =' '!P163 ->  | R155: =' '!Q163 -> 
A156: =' '!A164 ->  | B156: =' '!C164 ->  | C156: =' '!D164 ->  | D156: =' '!H164 ->  | E156: =' '!F164 ->  | F156: =' '!G164 ->  | M156: =' '!I164 ->  | N156: =' '!J164 ->  | Q156: =' '!P164 ->  | R156: =' '!Q164 -> 
A157: =' '!A165 ->  | B157: =' '!C165 ->  | C157: =' '!D165 ->  | D157: =' '!H165 ->  | E157: =' '!F165 ->  | F157: =' '!G165 ->  | M157: =' '!I165 ->  | N157: =' '!J165 ->  | Q157: =' '!P165 ->  | R157: =' '!Q165 -> 
A158: =' '!A166 ->  | B158: =' '!C166 ->  | C158: =' '!D166 ->  | D158: =' '!H166 ->  | E158: =' '!F166 ->  | F158: =' '!G166 ->  | M158: =' '!I166 ->  | N158: =' '!J166 ->  | Q158: =' '!P166 ->  | R158: =' '!Q166 -> 
A159: =' '!A167 ->  | B159: =' '!C167 ->  | C159: =' '!D167 ->  | D159: =' '!H167 ->  | E159: =' '!F167 ->  | F159: =' '!G167 ->  | M159: =' '!I167 ->  | N159: =' '!J167 ->  | Q159: =' '!P167 ->  | R159: =' '!Q167 -> 
A160: =' '!A168 ->  | B160: =' '!C168 ->  | C160: =' '!D168 ->  | D160: =' '!H168 ->  | E160: =' '!F168 ->  | F160: =' '!G168 ->  | M160: =' '!I168 ->  | N160: =' '!J168 ->  | Q160: =' '!P168 ->  | R160: =' '!Q168 -> 
A161: =' '!A169 ->  | B161: =' '!C169 ->  | C161: =' '!D169 ->  | D161: =' '!H169 ->  | E161: =' '!F169 ->  | F161: =' '!G169 ->  | M161: =' '!I169 ->  | N161: =' '!J169 ->  | O161: =' '!K169 ->  | Q161: =' '!P169 ->  | R161: =' '!Q169 -> 
A162: =' '!A170 ->  | B162: =' '!C170 ->  | C162: =' '!D170 ->  | D162: =' '!H170 ->  | E162: =' '!F170 ->  | F162: =' '!G170 ->  | M162: =' '!I170 ->  | N162: =' '!J170 ->  | Q162: =' '!P170 ->  | R162: =' '!Q170 -> 
A163: =' '!A171 ->  | B163: =' '!C171 ->  | C163: =' '!D171 ->  | D163: =' '!H171 ->  | E163: =' '!F171 ->  | F163: =' '!G171 ->  | M163: =' '!I171 ->  | N163: =' '!J171 ->  | Q163: =' '!P171 ->  | R163: =' '!Q171 -> 
A164: =' '!A172 ->  | B164: =' '!C172 ->  | C164: =' '!D172 ->  | D164: =' '!H172 ->  | E164: =' '!F172 ->  | F164: =' '!G172 ->  | M164: =' '!I172 ->  | N164: =' '!J172 ->  | Q164: =' '!P172 ->  | R164: =' '!Q172 -> 
A165: =' '!A173 ->  | B165: =' '!C173 ->  | C165: =' '!D173 ->  | D165: =' '!H173 ->  | E165: =' '!F173 ->  | F165: =' '!G173 ->  | M165: =' '!I173 ->  | N165: =' '!J173 ->  | Q165: =' '!P173 ->  | R165: =' '!Q173 -> 
A166: =' '!A174 ->  | B166: =' '!C174 ->  | C166: =' '!D174 ->  | D166: =' '!H174 ->  | E166: =' '!F174 ->  | F166: =' '!G174 ->  | M166: =' '!I174 ->  | N166: =' '!J174 ->  | Q166: =' '!P174 ->  | R166: =' '!Q174 -> 
A167: =' '!A175 ->  | B167: =' '!C175 ->  | C167: =' '!D175 ->  | D167: =' '!H175 ->  | E167: =' '!F175 ->  | F167: =' '!G175 ->  | M167: =' '!I175 ->  | N167: =' '!J175 ->  | Q167: =' '!P175 ->  | R167: =' '!Q175 -> 
A168: =' '!A176 ->  | B168: =' '!C176 ->  | C168: =' '!D176 ->  | D168: =' '!H176 ->  | E168: =' '!F176 ->  | F168: =' '!G176 ->  | M168: =' '!I176 ->  | N168: =' '!J176 ->  | Q168: =' '!P176 ->  | R168: =' '!Q176 -> 
A169: =' '!A177 ->  | B169: =' '!C177 ->  | C169: =' '!D177 ->  | D169: =' '!H177 ->  | E169: =' '!F177 ->  | F169: =' '!G177 ->  | M169: =' '!I177 ->  | N169: =' '!J177 ->  | Q169: =' '!P177 ->  | R169: =' '!Q177 -> 
A170: =' '!A178 ->  | B170: =' '!C178 ->  | C170: =' '!D178 ->  | D170: =' '!H178 ->  | E170: =' '!F178 ->  | F170: =' '!G178 ->  | M170: =' '!I178 ->  | N170: =' '!J178 ->  | Q170: =' '!P178 ->  | R170: =' '!Q178 -> 
A171: =' '!A179 ->  | B171: =' '!C179 ->  | C171: =' '!D179 ->  | D171: =' '!H179 ->  | E171: =' '!F179 ->  | F171: =' '!G179 ->  | M171: =' '!I179 ->  | N171: =' '!J179 ->  | Q171: =' '!P179 ->  | R171: =' '!Q179 -> 
A172: =' '!A180 ->  | B172: =' '!C180 ->  | C172: =' '!D180 ->  | D172: =' '!H180 ->  | E172: =' '!F180 ->  | F172: =' '!G180 ->  | M172: =' '!I180 ->  | N172: =' '!J180 ->  | Q172: =' '!P180 ->  | R172: =' '!Q180 -> 
A173: =' '!A181 ->  | B173: =' '!C181 ->  | C173: =' '!D181 ->  | D173: =' '!H181 ->  | E173: =' '!F181 ->  | F173: =' '!G181 ->  | M173: =' '!I181 ->  | N173: =' '!J181 ->  | O173: =' '!K181 ->  | Q173: =' '!P181 ->  | R173: =' '!Q181 -> 
A174: =' '!A182 ->  | B174: =' '!C182 ->  | C174: =' '!D182 ->  | D174: =' '!H182 ->  | E174: =' '!F182 ->  | F174: =' '!G182 ->  | M174: =' '!I182 ->  | N174: =' '!J182 ->  | Q174: =' '!P182 ->  | R174: =' '!Q182 -> 
A175: =' '!A183 ->  | B175: =' '!C183 ->  | C175: =' '!D183 ->  | D175: =' '!H183 ->  | E175: =' '!F183 ->  | F175: =' '!G183 ->  | M175: =' '!I183 ->  | N175: =' '!J183 ->  | Q175: =' '!P183 ->  | R175: =' '!Q183 -> 
A176: =' '!A184 ->  | B176: =' '!C184 ->  | C176: =' '!D184 ->  | D176: =' '!H184 ->  | E176: =' '!F184 ->  | F176: =' '!G184 ->  | M176: =' '!I184 ->  | N176: =' '!J184 ->  | Q176: =' '!P184 ->  | R176: =' '!Q184 -> 
A177: =' '!A185 ->  | B177: =' '!C185 ->  | C177: =' '!D185 ->  | D177: =' '!H185 ->  | E177: =' '!F185 ->  | F177: =' '!G185 ->  | M177: =' '!I185 ->  | N177: =' '!J185 ->  | Q177: =' '!P185 ->  | R177: =' '!Q185 -> 
A178: =' '!A186 ->  | B178: =' '!C186 ->  | C178: =' '!D186 ->  | D178: =' '!H186 ->  | E178: =' '!F186 ->  | F178: =' '!G186 ->  | M178: =' '!I186 ->  | N178: =' '!J186 ->  | Q178: =' '!P186 ->  | R178: =' '!Q186 -> 
A179: =' '!A187 ->  | B179: =' '!C187 ->  | C179: =' '!D187 ->  | D179: =' '!H187 ->  | E179: =' '!F187 ->  | F179: =' '!G187 ->  | M179: =' '!I187 ->  | N179: =' '!J187 ->  | Q179: =' '!P187 ->  | R179: =' '!Q187 -> 
A180: =' '!A188 ->  | B180: =' '!C188 ->  | C180: =' '!D188 ->  | D180: =' '!H188 ->  | E180: =' '!F188 ->  | F180: =' '!G188 ->  | M180: =' '!I188 ->  | N180: =' '!J188 ->  | Q180: =' '!P188 ->  | R180: =' '!Q188 -> 
A181: =' '!A189 ->  | B181: =' '!C189 ->  | C181: =' '!D189 ->  | D181: =' '!H189 ->  | E181: =' '!F189 ->  | F181: =' '!G189 ->  | M181: =' '!I189 ->  | N181: =' '!J189 ->  | Q181: =' '!P189 ->  | R181: =' '!Q189 -> 
A182: =' '!A190 ->  | B182: =' '!C190 ->  | C182: =' '!D190 ->  | D182: =' '!H190 ->  | E182: =' '!F190 ->  | F182: =' '!G190 ->  | M182: =' '!I190 ->  | N182: =' '!J190 ->  | Q182: =' '!P190 ->  | R182: =' '!Q190 -> 
A183: =' '!A191 ->  | B183: =' '!C191 ->  | C183: =' '!D191 ->  | D183: =' '!H191 ->  | E183: =' '!F191 ->  | F183: =' '!G191 ->  | M183: =' '!I191 ->  | N183: =' '!J191 ->  | Q183: =' '!P191 ->  | R183: =' '!Q191 -> 
A184: =' '!A192 ->  | B184: =' '!C192 ->  | C184: =' '!D192 ->  | D184: =' '!H192 ->  | E184: =' '!F192 ->  | F184: =' '!G192 ->  | M184: =' '!I192 ->  | N184: =' '!J192 ->  | Q184: =' '!P192 ->  | R184: =' '!Q192 -> 
A185: =' '!A193 ->  | B185: =' '!C193 ->  | C185: =' '!D193 ->  | D185: =' '!H193 ->  | E185: =' '!F193 ->  | F185: =' '!G193 ->  | M185: =' '!I193 ->  | N185: =' '!J193 ->  | O185: =' '!K193 ->  | Q185: =' '!P193 ->  | R185: =' '!Q193 -> 
A186: =' '!A194 ->  | B186: =' '!C194 ->  | C186: =' '!D194 ->  | D186: =' '!H194 ->  | E186: =' '!F194 ->  | F186: =' '!G194 ->  | M186: =' '!I194 ->  | N186: =' '!J194 ->  | Q186: =' '!P194 ->  | R186: =' '!Q194 -> 
A187: =' '!A195 ->  | B187: =' '!C195 ->  | C187: =' '!D195 ->  | D187: =' '!H195 ->  | E187: =' '!F195 ->  | F187: =' '!G195 ->  | M187: =' '!I195 ->  | N187: =' '!J195 ->  | Q187: =' '!P195 ->  | R187: =' '!Q195 -> 
A188: =' '!A196 ->  | B188: =' '!C196 ->  | C188: =' '!D196 ->  | D188: =' '!H196 ->  | E188: =' '!F196 ->  | F188: =' '!G196 ->  | M188: =' '!I196 ->  | N188: =' '!J196 ->  | Q188: =' '!P196 ->  | R188: =' '!Q196 -> 
A189: =' '!A197 ->  | B189: =' '!C197 ->  | C189: =' '!D197 ->  | D189: =' '!H197 ->  | E189: =' '!F197 ->  | F189: =' '!G197 ->  | M189: =' '!I197 ->  | N189: =' '!J197 ->  | Q189: =' '!P197 ->  | R189: =' '!Q197 -> 
A190: =' '!A198 ->  | B190: =' '!C198 ->  | C190: =' '!D198 ->  | D190: =' '!H198 ->  | E190: =' '!F198 ->  | F190: =' '!G198 ->  | M190: =' '!I198 ->  | N190: =' '!J198 ->  | Q190: =' '!P198 ->  | R190: =' '!Q198 -> 
A191: =' '!A199 ->  | B191: =' '!C199 ->  | C191: =' '!D199 ->  | D191: =' '!H199 ->  | E191: =' '!F199 ->  | F191: =' '!G199 ->  | M191: =' '!I199 ->  | N191: =' '!J199 ->  | Q191: =' '!P199 ->  | R191: =' '!Q199 -> 
A192: =' '!A200 ->  | B192: =' '!C200 ->  | C192: =' '!D200 ->  | D192: =' '!H200 ->  | E192: =' '!F200 ->  | F192: =' '!G200 ->  | M192: =' '!I200 ->  | N192: =' '!J200 ->  | Q192: =' '!P200 ->  | R192: =' '!Q200 -> 
A193: =' '!A201 ->  | B193: =' '!C201 ->  | C193: =' '!D201 ->  | D193: =' '!H201 ->  | E193: =' '!F201 ->  | F193: =' '!G201 ->  | M193: =' '!I201 ->  | N193: =' '!J201 ->  | Q193: =' '!P201 ->  | R193: =' '!Q201 -> 
A194: =' '!A202 ->  | B194: =' '!C202 ->  | C194: =' '!D202 ->  | D194: =' '!H202 ->  | E194: =' '!F202 ->  | F194: =' '!G202 ->  | M194: =' '!I202 ->  | N194: =' '!J202 ->  | Q194: =' '!P202 ->  | R194: =' '!Q202 -> 
A195: =' '!A203 ->  | B195: =' '!C203 ->  | C195: =' '!D203 ->  | D195: =' '!H203 ->  | E195: =' '!F203 ->  | F195: =' '!G203 ->  | M195: =' '!I203 ->  | N195: =' '!J203 ->  | Q195: =' '!P203 ->  | R195: =' '!Q203 -> 
A196: =' '!A204 ->  | B196: =' '!C204 ->  | C196: =' '!D204 ->  | D196: =' '!H204 ->  | E196: =' '!F204 ->  | F196: =' '!G204 ->  | M196: =' '!I204 ->  | N196: =' '!J204 ->  | Q196: =' '!P204 ->  | R196: =' '!Q204 -> 
A197: =' '!A205 ->  | B197: =' '!C205 ->  | C197: =' '!D205 ->  | D197: =' '!H205 ->  | E197: =' '!F205 ->  | F197: =' '!G205 ->  | M197: =' '!I205 ->  | N197: =' '!J205 ->  | O197: =' '!K205 ->  | Q197: =' '!P205 ->  | R197: =' '!Q205 -> 
A198: =' '!A206 ->  | B198: =' '!C206 ->  | C198: =' '!D206 ->  | D198: =' '!H206 ->  | E198: =' '!F206 ->  | F198: =' '!G206 ->  | M198: =' '!I206 ->  | N198: =' '!J206 ->  | Q198: =' '!P206 ->  | R198: =' '!Q206 -> 
A199: =' '!A207 ->  | B199: =' '!C207 ->  | C199: =' '!D207 ->  | D199: =' '!H207 ->  | E199: =' '!F207 ->  | F199: =' '!G207 ->  | M199: =' '!I207 ->  | N199: =' '!J207 ->  | Q199: =' '!P207 ->  | R199: =' '!Q207 -> 
A200: =' '!A208 ->  | B200: =' '!C208 ->  | C200: =' '!D208 ->  | D200: =' '!H208 ->  | E200: =' '!F208 ->  | F200: =' '!G208 ->  | M200: =' '!I208 ->  | N200: =' '!J208 ->  | Q200: =' '!P208 ->  | R200: =' '!Q208 -> 
A201: =' '!A209 ->  | B201: =' '!C209 ->  | C201: =' '!D209 ->  | D201: =' '!H209 ->  | E201: =' '!F209 ->  | F201: =' '!G209 ->  | M201: =' '!I209 ->  | N201: =' '!J209 ->  | Q201: =' '!P209 ->  | R201: =' '!Q209 -> 
A202: =' '!A210 ->  | B202: =' '!C210 ->  | C202: =' '!D210 ->  | D202: =' '!H210 ->  | E202: =' '!F210 ->  | F202: =' '!G210 ->  | M202: =' '!I210 ->  | N202: =' '!J210 ->  | Q202: =' '!P210 ->  | R202: =' '!Q210 -> 
A203: =' '!A211 ->  | B203: =' '!C211 ->  | C203: =' '!D211 ->  | D203: =' '!H211 ->  | E203: =' '!F211 ->  | F203: =' '!G211 ->  | M203: =' '!I211 ->  | N203: =' '!J211 ->  | Q203: =' '!P211 ->  | R203: =' '!Q211 -> 
A204: =' '!A212 ->  | B204: =' '!C212 ->  | C204: =' '!D212 ->  | D204: =' '!H212 ->  | E204: =' '!F212 ->  | F204: =' '!G212 ->  | M204: =' '!I212 ->  | N204: =' '!J212 ->  | Q204: =' '!P212 ->  | R204: =' '!Q212 -> 
... 53 more rows

Sheet Лист1
